Workbook

Sheet Option vs Stock
A2: Risk Free Interest Rate
A3: =Data!B3/1000 -> 0.035
A5: Present Cost of Stock
A6: 100
A8: Strike Price
A9: 110
A11: Time to Maturity (yrs)
A12: =Data!B12/100 -> 3
A14: Volatility of Market
A15: =Data!B15/1000 -> 0.2
A17: ECO / EPO
A20: Dividend?
A21: 10
A23: Dividend Yield (δ)
A24: =(IF(Data!C5,LN(A6/(A6-A21*EXP(-1*A3))),"n/a")) -> n/a
A26: Value of Option
A27: =IF(Data!C5,IF(Data!C4,A6*Data!C26*EXP(-1*A24*A12)-EXP(-1*A3*A12)*A9*Data!C27,-1*A6*EXP(-1*A24*A12)*Data!C28+EXP(-1*A3*A12)*A9*Data!C29),IF(Data!C4,A6*Data!C22-EXP(-1*A3*A12)*A9*Data!C23,-1*A6*Data!C24+EXP(-1*A3*A12)*A9*Data!C25)) -> 14.17212772

Sheet Option vs Time
A2: Risk Free Interest Rate
A3: =Data!B3/1000 -> 0.035
A5: Present Cost of Stock
A6: 100
A8: Strike Price
A9: 110
A11: Time to Maturity (yrs)
A12: =Data!A12 -> 15
A14: Volatility of Market
A15: =Data!B15/1000 -> 0.2
A17: ECO / EPO
A20: Dividend?
A21: 10
A23: Dividend Yield (δ)
A24: =(IF(Data!C5,LN(A6/(A6-A21*EXP(-1*A3))),"n/a")) -> n/a
A26: Value of Option
A27: =IF(Data!C5,IF(Data!C4,A6*Data!P32*EXP(-1*A24*A12)-EXP(-1*A3*A12)*A9*Data!P33,-1*A6*EXP(-1*A24*A12)*Data!R32+EXP(-1*A3*A12)*A9*Data!R33),IF(Data!C4,A6*Data!P28-EXP(-1*A3*A12)*A9*Data!P29,-1*A6*Data!P30+EXP(-1*A3*A12)*A9*Data!P31)) -> 45.82931025

Sheet Other Graphs
A2: Risk Free Interest Rate
A3: =Data!B3/1000 -> 0.035
A5: Present Cost of Stock
A6: 110
A8: Strike Price
A9: 110
A11: Time to Maturity (yrs)
A12: =Data!B12/100 -> 3
A14: Volatility of Market
A15: =Data!B15/1000 -> 0.2
A17: ECO / EPO
A20: Dividend?
A21: 10
A23: Dividend Yield (δ)
A24: =(IF(Data!C5,LN(A6/(A6-A21*EXP(-1*A3))),"n/a")) -> n/a
A26: Value of Option
A27: =IF(Data!C5,IF(Data!C4,A6*Data!C26*EXP(-1*A24*A12)-EXP(-1*A3*A12)*A9*Data!C27,-1*A6*EXP(-1*A24*A12)*Data!C28+EXP(-1*A3*A12)*A9*Data!C29),IF(Data!C4,A6*Data!C22-EXP(-1*A3*A12)*A9*Data!C23,-1*A6*Data!C24+EXP(-1*A3*A12)*A9*Data!C25)) -> 19.96932756

Sheet Enter Values
A2: Risk Free Interest Rate
A3: 0.035 | B3: 50 | C3: Call?
C4: TRUE
A5: Present Cost of Stock | C5: FALSE
A6: 110
A8: Strike Price
A9: 110
A11: Time to Maturity (yrs)
A12: 3 | B12: 25
A14: Volatility of Market
A15: 0.2 | B15: 197
A17: ECO / EPO
A20: Dividend?
A21: 10
B22: =(LN(A6/A9)+(A3+0.5*A15^2)*A12)/(A15*SQRT(A12)) -> 0.4763139721 | C22: =NORMSDIST(B22) -> 0.6830746436
A23: Dividend Yield (δ) | B23: =B22-A15*SQRT(A12) -> 0.1299038106 | C23: =NORMSDIST(B23) -> 0.5516787353
A24: =(IF(C5,LN(A6/(A6-A21*EXP(-1*A3))),"n/a")) -> n/a | C24: =NORMSDIST(-1*B22) -> 0.3169253564
C25: =NORMSDIST(-1*B23) -> 0.4483212647
A26: Value of Option | B26: =(LN(A6/A9)+(A3-A24+0.5*A15^2)*A12)/(A15*SQRT(A12)) ->  | C26: =NORMSDIST(B26) -> 
A27: =IF(C5,IF(C4,A6*C26*EXP(-1*A24*A12)-EXP(-1*A3*A12)*A9*C27,-1*A6*EXP(-1*A24*A12)*C28+EXP(-1*A3*A12)*A9*C29),IF(C4,A6*C22-EXP(-1*A3*A12)*A9*C23,-1*A6*C24+EXP(-1*A3*A12)*A9*C25)) -> 20.50232246 | B27: =(LN(A6/A9)+(A3-A24-0.5*A15^2)*A12)/(A15*SQRT(A12)) ->  | C27: =NORMSDIST(B27) -> 
C28: =NORMSDIST(-1*B26) -> 
C29: =NORMSDIST(-1*B27) -> 
B31: =A6*C22-EXP(-1*A3*A12)*A9*C23 -> 20.50232246 | C31: =-1*A6*C24+EXP(-1*A3*A12)*A9*C25 -> 9.538019946
B32: =-1*A6*C24+EXP(-1*A3*A12)*A9*C25 -> 9.538019946

Sheet Student Guided Sheet
A1: Principal | D1: time | E1: Balance | F1: Cont. Balance
D2: 0 | E2: =IF(AND($A$2=0,$A$4=0,$A$6=0,$A$8=0),"enter values",$A$2*(1+$A$4/$A$6)^($A$6*D2)) -> enter values | F2: =IF(AND($A$2=0,$A$4=0,$A$6=0,$A$8=0),"enter values",$A$2*EXP($A$4*D2)) -> enter values
A3: Interest Rate | D3: =D2+2 -> 2 | E3: =IF(AND($A$2=0,$A$4=0,$A$6=0,$A$8=0),"enter values",$A$2*(1+$A$4/$A$6)^($A$6*D3)) -> enter values | F3: =IF(AND($A$2=0,$A$4=0,$A$6=0,$A$8=0),"enter values",$A$2*EXP($A$4*D3)) -> enter values
D4: =D3+2 -> 4 | E4: enter values | F4: enter values
A5: Compounding Periods | D5: 6 | E5: enter values | F5: enter values
D6: 8 | E6: enter values | F6: enter values
A7: Time (years) | D7: 10 | E7: enter values | F7: enter values
D8: 12 | E8: enter values | F8: enter values
A9: Balance | D9: 14 | E9: enter values | F9: enter values
A10: =IF(A6=0,0,A2*(1+A4/A6)^(A6*A8)) -> 0 | D10: 16 | E10: enter values | F10: enter values
D11: 18 | E11: enter values | F11: enter values
A12: Continuous Interest Balance | D12: 20 | E12: enter values | F12: enter values
A13: =A2*EXP(A8*A4) -> 0 | D13: 22 | E13: enter values | F13: enter values
D14: 24 | E14: enter values | F14: enter values
D15: 26 | E15: enter values | F15: enter values
D16: 28 | E16: enter values | F16: enter values
D17: 30 | E17: enter values | F17: enter values
D18: 32 | E18: enter values | F18: enter values
D19: 34 | E19: enter values | F19: enter values
D20: 36 | E20: enter values | F20: enter values
D21: 38 | E21: enter values | F21: enter values
D22: 40 | E22: enter values | F22: enter values
D23: 42 | E23: enter values | F23: enter values
D24: 44 | E24: enter values | F24: enter values
D25: 46 | E25: enter values | F25: enter values
D26: 48 | E26: enter values | F26: enter values
D27: 50 | E27: enter values | F27: enter values
D28: 52 | E28: enter values | F28: enter values
D29: 54 | E29: enter values | F29: enter values
D30: 56 | E30: enter values | F30: enter values

Sheet Student Designed Sheet
A1: Principal
A2: =A10/(1+A4/A6)^(A6*A8) -> 
A3: Interest Rate
A5: Compounding Periods
A7: Time (years)
A9: Balance

Sheet Data
D1: Option vs Cost Data
B2: Time roll | C2: Call?
B3: 35 | D3: S | E3: C | F3: d1 | G3: d2 | H3: N(d1) | I3: N(d2) | J3: delta C | K3: gamma C | L3: gamma 2
C4: TRUE | D4: 50 | E4: =IF($C$4,D4*H4-EXP(-1*'Option vs Stock'!$A$3*'Option vs Stock'!$A$12)*'Option vs Stock'!$A$9*I4,-1*D4*H4+EXP(-1*'Option vs Stock'!$A$3*'Option vs Stock'!$A$12)*'Option vs Stock'!$A$9*I4) -> 0.2198543526 | F4: =(LN(D4/'Option vs Stock'!$A$9)+('Option vs Stock'!$A$3+0.5*'Option vs Stock'!$A$15^2)*'Option vs Stock'!$A$12)/('Option vs Stock'!$A$15*SQRT('Option vs Stock'!$A$12)) -> -1.799766374 | G4: =F4-'Option vs Stock'!$A$15*SQRT('Option vs Stock'!$A$12) -> -2.146176536 | H4: =IF($C$4,NORMSDIST(F4),NORMSDIST(-1*F4)) -> 0.03594876779 | I4: =IF($C$4,NORMSDIST(G4),NORMSDIST(-1*G4)) -> 0.01592944844 | J4: =(E5-E4)/5 -> 0.04898172548 | K4: =((H5-H4)/(D5-D4))/(D4*'Option vs Stock'!$A$15*SQRT('Option vs Stock'!$A$12)) -> 0.000320163694 | L4: =(J5-J4)/(D5-D4) -> 0.006548676749
C5: FALSE | D5: =D4+5 -> 55 | E5: =IF($C$4,D5*H5-EXP(-1*'Option vs Stock'!$A$3*'Option vs Stock'!$A$12)*'Option vs Stock'!$A$9*I5,-1*D5*H5+EXP(-1*'Option vs Stock'!$A$3*'Option vs Stock'!$A$12)*'Option vs Stock'!$A$9*I5) -> 0.46476298 | F5: =(LN(D5/'Option vs Stock'!$A$9)+('Option vs Stock'!$A$3+0.5*'Option vs Stock'!$A$15^2)*'Option vs Stock'!$A$12)/('Option vs Stock'!$A$15*SQRT('Option vs Stock'!$A$12)) -> -1.524629584 | G5: =F5-'Option vs Stock'!$A$15*SQRT('Option vs Stock'!$A$12) -> -1.871039746 | H5: 0.06367575702 | I5: 0.03066978608 | J5: =(E6-E5)/5 -> 0.08172510923 | K5: =((H6-H5)/(D6-D5))/(D5*'Option vs Stock'!$A$15*SQRT('Option vs Stock'!$A$12)) -> 0.0003963095592 | L5: =(J6-J5)/(D6-D5) -> 0.008512700815
C6: Dividend? | D6: 60 | E6: =IF($C$4,D6*H6-EXP(-1*'Option vs Stock'!$A$3*'Option vs Stock'!$A$12)*'Option vs Stock'!$A$9*I6,-1*D6*H6+EXP(-1*'Option vs Stock'!$A$3*'Option vs Stock'!$A$12)*'Option vs Stock'!$A$9*I6) -> 0.8733885261 | F6: =(LN(D6/'Option vs Stock'!$A$9)+('Option vs Stock'!$A$3+0.5*'Option vs Stock'!$A$15^2)*'Option vs Stock'!$A$12)/('Option vs Stock'!$A$15*SQRT('Option vs Stock'!$A$12)) -> -1.273449375 | G6: =F6-'Option vs Stock'!$A$15*SQRT('Option vs Stock'!$A$12) -> -1.619859536 | H6: 0.1014293131 | I6: 0.05263122683 | J6: 0.1242886133 | K6: =((H7-H6)/(D7-D6))/(D6*'Option vs Stock'!$A$15*SQRT('Option vs Stock'!$A$12)) -> 0.0004540577805 | L6: 0.01025929059
D7: 65 | E7: =IF($C$4,D7*H7-EXP(-1*'Option vs Stock'!$A$3*'Option vs Stock'!$A$12)*'Option vs Stock'!$A$9*I7,-1*D7*H7+EXP(-1*'Option vs Stock'!$A$3*'Option vs Stock'!$A$12)*'Option vs Stock'!$A$9*I7) -> 1.494831593 | F7: =(LN(D7/'Option vs Stock'!$A$9)+('Option vs Stock'!$A$3+0.5*'Option vs Stock'!$A$15^2)*'Option vs Stock'!$A$12)/('Option vs Stock'!$A$15*SQRT('Option vs Stock'!$A$12)) -> -1.042385981 | G7: =F7-'Option vs Stock'!$A$15*SQRT('Option vs Stock'!$A$12) -> -1.388796142 | H7: 0.1486163818 | I7: 0.08244737436 | J7: 0.1755850663 | K7: =((H8-H7)/(D8-D7))/(D7*'Option vs Stock'!$A$15*SQRT('Option vs Stock'!$A$12)) -> 0.0004893278033 | L7: 0.0116346107
D8: 70 | E8: =IF($C$4,D8*H8-EXP(-1*'Option vs Stock'!$A$3*'Option vs Stock'!$A$12)*'Option vs Stock'!$A$9*I8,-1*D8*H8+EXP(-1*'Option vs Stock'!$A$3*'Option vs Stock'!$A$12)*'Option vs Stock'!$A$9*I8) -> 2.372756924 | F8: =(LN(D8/'Option vs Stock'!$A$9)+('Option vs Stock'!$A$3+0.5*'Option vs Stock'!$A$15^2)*'Option vs Stock'!$A$12)/('Option vs Stock'!$A$15*SQRT('Option vs Stock'!$A$12)) -> -0.8284546922 | G8: =F8-'Option vs Stock'!$A$15*SQRT('Option vs Stock'!$A$12) -> -1.174864854 | H8: 0.2037065219 | I8: 0.1200243943 | J8: 0.2337581198 | K8: =((H9-H8)/(D9-D8))/(D8*'Option vs Stock'!$A$15*SQRT('Option vs Stock'!$A$12)) -> 0.000502074301 | L8: 0.01255755247
D9: 75 | E9: =IF($C$4,D9*H9-EXP(-1*'Option vs Stock'!$A$3*'Option vs Stock'!$A$12)*'Option vs Stock'!$A$9*I9,-1*D9*H9+EXP(-1*'Option vs Stock'!$A$3*'Option vs Stock'!$A$12)*'Option vs Stock'!$A$9*I9) -> 3.541547523 | F9: =(LN(D9/'Option vs Stock'!$A$9)+('Option vs Stock'!$A$3+0.5*'Option vs Stock'!$A$15^2)*'Option vs Stock'!$A$12)/('Option vs Stock'!$A$15*SQRT('Option vs Stock'!$A$12)) -> -0.6292894276 | G9: =F9-'Option vs Stock'!$A$15*SQRT('Option vs Stock'!$A$12) -> -0.9756995891 | H9: 0.2645797958 | I9: 0.164606678 | J9: 0.2965458821 | K9: =((H10-H9)/(D10-D9))/(D9*'Option vs Stock'!$A$15*SQRT('Option vs Stock'!$A$12)) -> 0.0004950532589 | L9: 0.01301405031
D10: 80 | E10: =IF($C$4,D10*H10-EXP(-1*'Option vs Stock'!$A$3*'Option vs Stock'!$A$12)*'Option vs Stock'!$A$9*I10,-1*D10*H10+EXP(-1*'Option vs Stock'!$A$3*'Option vs Stock'!$A$12)*'Option vs Stock'!$A$9*I10) -> 5.024276933 | F10: =(LN(D10/'Option vs Stock'!$A$9)+('Option vs Stock'!$A$3+0.5*'Option vs Stock'!$A$15^2)*'Option vs Stock'!$A$12)/('Option vs Stock'!$A$15*SQRT('Option vs Stock'!$A$12)) -> -0.4429827648 | G10: =F10-'Option vs Stock'!$A$15*SQRT('Option vs Stock'!$A$12) -> -0.7893929264 | H10: 0.3288891006 | I10: 0.2149411945 | J10: 0.3616161337 | K10: =((H11-H10)/(D11-D10))/(D10*'Option vs Stock'!$A$15*SQRT('Option vs Stock'!$A$12)) -> 0.0004724915624 | L10: 0.01304062234
D11: 85 | E11: =IF($C$4,D11*H11-EXP(-1*'Option vs Stock'!$A$3*'Option vs Stock'!$A$12)*'Option vs Stock'!$A$9*I11,-1*D11*H11+EXP(-1*'Option vs Stock'!$A$3*'Option vs Stock'!$A$12)*'Option vs Stock'!$A$9*I11) -> 6.832357602 | F11: =(LN(D11/'Option vs Stock'!$A$9)+('Option vs Stock'!$A$3+0.5*'Option vs Stock'!$A$15^2)*'Option vs Stock'!$A$12)/('Option vs Stock'!$A$15*SQRT('Option vs Stock'!$A$12)) -> -0.2679745562 | G11: =F11-'Option vs Stock'!$A$15*SQRT('Option vs Stock'!$A$12) -> -0.6143847177 | H11: 0.3943594519 | I11: 0.269480566 | J11: 0.4268192454 | K11: =((H12-H11)/(D12-D11))/(D11*'Option vs Stock'!$A$15*SQRT('Option vs Stock'!$A$12)) -> 0.0004390101821 | L11: 0.01270505436
A12: 15 | B12: 300 | D12: 90 | E12: =IF($C$4,D12*H12-EXP(-1*'Option vs Stock'!$A$3*'Option vs Stock'!$A$12)*'Option vs Stock'!$A$9*I12,-1*D12*H12+EXP(-1*'Option vs Stock'!$A$3*'Option vs Stock'!$A$12)*'Option vs Stock'!$A$9*I12) -> 8.966453828 | F12: =(LN(D12/'Option vs Stock'!$A$9)+('Option vs Stock'!$A$3+0.5*'Option vs Stock'!$A$15^2)*'Option vs Stock'!$A$12)/('Option vs Stock'!$A$15*SQRT('Option vs Stock'!$A$12)) -> -0.1029724281 | G12: =F12-'Option vs Stock'!$A$15*SQRT('Option vs Stock'!$A$12) -> -0.4493825897 | H12: 0.4589924269 | I12: 0.3265778443 | J12: 0.4903445172 | K12: =((H13-H12)/(D13-D12))/(D12*'Option vs Stock'!$A$15*SQRT('Option vs Stock'!$A$12)) -> 0.0003989100688 | L12: 0.01208914894
D13: 95 | E13: =IF($C$4,D13*H13-EXP(-1*'Option vs Stock'!$A$3*'Option vs Stock'!$A$12)*'Option vs Stock'!$A$9*I13,-1*D13*H13+EXP(-1*'Option vs Stock'!$A$3*'Option vs Stock'!$A$12)*'Option vs Stock'!$A$9*I13) -> 11.41817641 | F13: =(LN(D13/'Option vs Stock'!$A$9)+('Option vs Stock'!$A$3+0.5*'Option vs Stock'!$A$15^2)*'Option vs Stock'!$A$12)/('Option vs Stock'!$A$15*SQRT('Option vs Stock'!$A$12)) -> 0.05310619564 | G13: =F13-'Option vs Stock'!$A$15*SQRT('Option vs Stock'!$A$12) -> -0.2933039659 | H13: 0.5211763525 | I13: 0.3846449113 | J13: 0.5507902619 | K13: =((H14-H13)/(D14-D13))/(D13*'Option vs Stock'!$A$15*SQRT('Option vs Stock'!$A$12)) -> 0.0003557913812 | L13: 0.01127572861
D14: 100 | E14: =IF($C$4,D14*H14-EXP(-1*'Option vs Stock'!$A$3*'Option vs Stock'!$A$12)*'Option vs Stock'!$A$9*I14,-1*D14*H14+EXP(-1*'Option vs Stock'!$A$3*'Option vs Stock'!$A$12)*'Option vs Stock'!$A$9*I14) -> 14.17212772 | F14: =(LN(D14/'Option vs Stock'!$A$9)+('Option vs Stock'!$A$3+0.5*'Option vs Stock'!$A$15^2)*'Option vs Stock'!$A$12)/('Option vs Stock'!$A$15*SQRT('Option vs Stock'!$A$12)) -> 0.2011771822 | G14: =F14-'Option vs Stock'!$A$15*SQRT('Option vs Stock'!$A$12) -> -0.1452329793 | H14: 0.5797199837 | I14: 0.4422634641 | J14: 0.6071689049 | K14: =((H15-H14)/(D15-D14))/(D14*'Option vs Stock'!$A$15*SQRT('Option vs Stock'!$A$12)) -> 0.0003124212281 | L14: 0.01034022756
B15: 200 | D15: 105 | E15: =IF($C$4,D15*H15-EXP(-1*'Option vs Stock'!$A$3*'Option vs Stock'!$A$12)*'Option vs Stock'!$A$9*I15,-1*D15*H15+EXP(-1*'Option vs Stock'!$A$3*'Option vs Stock'!$A$12)*'Option vs Stock'!$A$9*I15) -> 17.20797225 | F15: =(LN(D15/'Option vs Stock'!$A$9)+('Option vs Stock'!$A$3+0.5*'Option vs Stock'!$A$15^2)*'Option vs Stock'!$A$12)/('Option vs Stock'!$A$15*SQRT('Option vs Stock'!$A$12)) -> 0.3420222543 | G15: =F15-'Option vs Stock'!$A$15*SQRT('Option vs Stock'!$A$12) -> -0.00438790718 | H15: 0.6338329277 | I15: 0.4982494839 | J15: 0.6588700427 | K15: =((H16-H15)/(D16-D15))/(D15*'Option vs Stock'!$A$15*SQRT('Option vs Stock'!$A$12)) -> 0.0002707592184 | L15: 0.009346220152
D16: 110 | E16: =IF($C$4,D16*H16-EXP(-1*'Option vs Stock'!$A$3*'Option vs Stock'!$A$12)*'Option vs Stock'!$A$9*I16,-1*D16*H16+EXP(-1*'Option vs Stock'!$A$3*'Option vs Stock'!$A$12)*'Option vs Stock'!$A$9*I16) -> 20.50232246 | F16: =(LN(D16/'Option vs Stock'!$A$9)+('Option vs Stock'!$A$3+0.5*'Option vs Stock'!$A$15^2)*'Option vs Stock'!$A$12)/('Option vs Stock'!$A$15*SQRT('Option vs Stock'!$A$12)) -> 0.4763139721 | G16: =F16-'Option vs Stock'!$A$15*SQRT('Option vs Stock'!$A$12) -> 0.1299038106 | H16: 0.6830746436 | I16: 0.5516787353 | J16: 0.7056011435 | K16: =((H17-H16)/(D17-D16))/(D16*'Option vs Stock'!$A$15*SQRT('Option vs Stock'!$A$12)) -> 0.0002320666538 | L16: 0.008343874866
D17: 115 | E17: =IF($C$4,D17*H17-EXP(-1*'Option vs Stock'!$A$3*'Option vs Stock'!$A$12)*'Option vs Stock'!$A$9*I17,-1*D17*H17+EXP(-1*'Option vs Stock'!$A$3*'Option vs Stock'!$A$12)*'Option vs Stock'!$A$9*I17) -> 24.03032818 | F17: =(LN(D17/'Option vs Stock'!$A$9)+('Option vs Stock'!$A$3+0.5*'Option vs Stock'!$A$15^2)*'Option vs Stock'!$A$12)/('Option vs Stock'!$A$15*SQRT('Option vs Stock'!$A$12)) -> 0.6046351575 | G17: =F17-'Option vs Stock'!$A$15*SQRT('Option vs Stock'!$A$12) -> 0.258224996 | H17: 0.7272892795 | I17: 0.601883366 | J17: 0.7473205178 | K17: =((H18-H17)/(D18-D17))/(D17*'Option vs Stock'!$A$15*SQRT('Option vs Stock'!$A$12)) -> 0.0001970475453 | L17: 0.007370329026
D18: 120 | E18: =IF($C$4,D18*H18-EXP(-1*'Option vs Stock'!$A$3*'Option vs Stock'!$A$12)*'Option vs Stock'!$A$9*I18,-1*D18*H18+EXP(-1*'Option vs Stock'!$A$3*'Option vs Stock'!$A$12)*'Option vs Stock'!$A$9*I18) -> 27.76693077 | F18: =(LN(D18/'Option vs Stock'!$A$9)+('Option vs Stock'!$A$3+0.5*'Option vs Stock'!$A$15^2)*'Option vs Stock'!$A$12)/('Option vs Stock'!$A$15*SQRT('Option vs Stock'!$A$12)) -> 0.7274941817 | G18: =F18-'Option vs Stock'!$A$15*SQRT('Option vs Stock'!$A$12) -> 0.3810840202 | H18: 0.7665383609 | I18: 0.6484295478 | J18: 0.7841721629 | K18: =((H19-H18)/(D19-D18))/(D18*'Option vs Stock'!$A$15*SQRT('Option vs Stock'!$A$12)) -> 0.000165989747 | L18: 0.006451155988
D19: 125 | E19: =IF($C$4,D19*H19-EXP(-1*'Option vs Stock'!$A$3*'Option vs Stock'!$A$12)*'Option vs Stock'!$A$9*I19,-1*D19*H19+EXP(-1*'Option vs Stock'!$A$3*'Option vs Stock'!$A$12)*'Option vs Stock'!$A$9*I19) -> 31.68779158 | F19: =(LN(D19/'Option vs Stock'!$A$9)+('Option vs Stock'!$A$3+0.5*'Option vs Stock'!$A$15^2)*'Option vs Stock'!$A$12)/('Option vs Stock'!$A$15*SQRT('Option vs Stock'!$A$12)) -> 0.8453371293 | G19: =F19-'Option vs Stock'!$A$15*SQRT('Option vs Stock'!$A$12) -> 0.4989269678 | H19: 0.8010386819 | I19: 0.6910845826 | J19: 0.8164279429 | K19: =((H20-H19)/(D20-D19))/(D19*'Option vs Stock'!$A$15*SQRT('Option vs Stock'!$A$12)) -> 0.0001388896045 | L19: 0.005602319888
B20: Option vs Cost Data | D20: 130 | E20: =IF($C$4,D20*H20-EXP(-1*'Option vs Stock'!$A$3*'Option vs Stock'!$A$12)*'Option vs Stock'!$A$9*I20,-1*D20*H20+EXP(-1*'Option vs Stock'!$A$3*'Option vs Stock'!$A$12)*'Option vs Stock'!$A$9*I20) -> 35.7699313 | F20: =(LN(D20/'Option vs Stock'!$A$9)+('Option vs Stock'!$A$3+0.5*'Option vs Stock'!$A$15^2)*'Option vs Stock'!$A$12)/('Option vs Stock'!$A$15*SQRT('Option vs Stock'!$A$12)) -> 0.9585575758 | G20: =F20-'Option vs Stock'!$A$15*SQRT('Option vs Stock'!$A$12) -> 0.6121474143 | H20: 0.8311091634 | I20: 0.7297798852 | J20: 0.8444395423 | K20: =((H21-H20)/(D21-D20))/(D20*'Option vs Stock'!$A$15*SQRT('Option vs Stock'!$A$12)) -> 0.0001155535452 | L20: 0.004832219461
D21: 135 | E21: =IF($C$4,D21*H21-EXP(-1*'Option vs Stock'!$A$3*'Option vs Stock'!$A$12)*'Option vs Stock'!$A$9*I21,-1*D21*H21+EXP(-1*'Option vs Stock'!$A$3*'Option vs Stock'!$A$12)*'Option vs Stock'!$A$9*I21) -> 39.99212901 | F21: =(LN(D21/'Option vs Stock'!$A$9)+('Option vs Stock'!$A$3+0.5*'Option vs Stock'!$A$15^2)*'Option vs Stock'!$A$12)/('Option vs Stock'!$A$15*SQRT('Option vs Stock'!$A$12)) -> 1.067504518 | G21: =F21-'Option vs Stock'!$A$15*SQRT('Option vs Stock'!$A$12) -> 0.7210943569 | H21: 0.8571279628 | I21: 0.7645742686 | J21: 0.8686006396 | K21: =((H22-H21)/(D22-D21))/(D21*'Option vs Stock'!$A$15*SQRT('Option vs Stock'!$A$12)) -> 9.567599327e-05 | L21: 0.004143586663
B22: =(LN('Option vs Stock'!A6/'Option vs Stock'!A9)+('Option vs Stock'!A3+0.5*'Option vs Stock'!A15^2)*'Option vs Stock'!A12)/('Option vs Stock'!A15*SQRT('Option vs Stock'!A12)) -> 0.2011771822 | C22: =NORMSDIST(B22) -> 0.5797199837 | D22: 140 | E22: =IF($C$4,D22*H22-EXP(-1*'Option vs Stock'!$A$3*'Option vs Stock'!$A$12)*'Option vs Stock'!$A$9*I22,-1*D22*H22+EXP(-1*'Option vs Stock'!$A$3*'Option vs Stock'!$A$12)*'Option vs Stock'!$A$9*I22) -> 44.33513221 | F22: =(LN(D22/'Option vs Stock'!$A$9)+('Option vs Stock'!$A$3+0.5*'Option vs Stock'!$A$15^2)*'Option vs Stock'!$A$12)/('Option vs Stock'!$A$15*SQRT('Option vs Stock'!$A$12)) -> 1.172488864 | G22: =F22-'Option vs Stock'!$A$15*SQRT('Option vs Stock'!$A$12) -> 0.8260787027 | H22: 0.8794995798 | I22: 0.795620276 | J22: 0.8893185729 | K22: =((H23-H22)/(D23-D22))/(D22*'Option vs Stock'!$A$15*SQRT('Option vs Stock'!$A$12)) -> 7.889606364e-05 | L22: 0.00353512364
B23: =B22-'Option vs Stock'!A15*SQRT('Option vs Stock'!A12) -> -0.1452329793 | C23: =NORMSDIST(B23) -> 0.4422634641 | D23: 145 | E23: =IF($C$4,D23*H23-EXP(-1*'Option vs Stock'!$A$3*'Option vs Stock'!$A$12)*'Option vs Stock'!$A$9*I23,-1*D23*H23+EXP(-1*'Option vs Stock'!$A$3*'Option vs Stock'!$A$12)*'Option vs Stock'!$A$9*I23) -> 48.78172507 | F23: =(LN(D23/'Option vs Stock'!$A$9)+('Option vs Stock'!$A$3+0.5*'Option vs Stock'!$A$15^2)*'Option vs Stock'!$A$12)/('Option vs Stock'!$A$15*SQRT('Option vs Stock'!$A$12)) -> 1.273788779 | G23: =F23-'Option vs Stock'!$A$15*SQRT('Option vs Stock'!$A$12) -> 0.9273786174 | H23: 0.8986308585 | I23: 0.8231350057 | J23: 0.9069941911 | K23: =((H24-H23)/(D24-D23))/(D23*'Option vs Stock'!$A$15*SQRT('Option vs Stock'!$A$12)) -> 6.483673052e-05 | L23: 0.003002839111
C24: =NORMSDIST(-1*B22) -> 0.4202800163 | D24: 150 | E24: =IF($C$4,D24*H24-EXP(-1*'Option vs Stock'!$A$3*'Option vs Stock'!$A$12)*'Option vs Stock'!$A$9*I24,-1*D24*H24+EXP(-1*'Option vs Stock'!$A$3*'Option vs Stock'!$A$12)*'Option vs Stock'!$A$9*I24) -> 53.31669603 | F24: =(LN(D24/'Option vs Stock'!$A$9)+('Option vs Stock'!$A$3+0.5*'Option vs Stock'!$A$15^2)*'Option vs Stock'!$A$12)/('Option vs Stock'!$A$15*SQRT('Option vs Stock'!$A$12)) -> 1.371654129 | G24: =F24-'Option vs Stock'!$A$15*SQRT('Option vs Stock'!$A$12) -> 1.025243967 | H24: 0.9149144327 | I24: 0.8473759564 | J24: 0.9220083867 | K24: =((H25-H24)/(D25-D24))/(D24*'Option vs Stock'!$A$15*SQRT('Option vs Stock'!$A$12)) -> 5.313034116e-05 | L24: 0.002541091629
C25: =NORMSDIST(-1*B23) -> 0.5577365359 | D25: 155 | E25: =IF($C$4,D25*H25-EXP(-1*'Option vs Stock'!$A$3*'Option vs Stock'!$A$12)*'Option vs Stock'!$A$9*I25,-1*D25*H25+EXP(-1*'Option vs Stock'!$A$3*'Option vs Stock'!$A$12)*'Option vs Stock'!$A$9*I25) -> 57.92673796 | F25: =(LN(D25/'Option vs Stock'!$A$9)+('Option vs Stock'!$A$3+0.5*'Option vs Stock'!$A$15^2)*'Option vs Stock'!$A$12)/('Option vs Stock'!$A$15*SQRT('Option vs Stock'!$A$12)) -> 1.466310194 | G25: =F25-'Option vs Stock'!$A$15*SQRT('Option vs Stock'!$A$12) -> 1.119900032 | H25: 0.9287181002 | I25: 0.8686218178 | J25: 0.9347138448 | K25: =((H26-H25)/(D26-D25))/(D25*'Option vs Stock'!$A$15*SQRT('Option vs Stock'!$A$12)) -> 4.343398011e-05 | L25: 0.00214337166
B26: =(LN('Option vs Stock'!A6/'Option vs Stock'!A9)+('Option vs Stock'!A3-'Option vs Stock'!A24+0.5*'Option vs Stock'!A15^2)*'Option vs Stock'!A12)/('Option vs Stock'!A15*SQRT('Option vs Stock'!A12)) ->  | C26: =NORMSDIST(B26) ->  | D26: 160 | E26: =IF($C$4,D26*H26-EXP(-1*'Option vs Stock'!$A$3*'Option vs Stock'!$A$12)*'Option vs Stock'!$A$9*I26,-1*D26*H26+EXP(-1*'Option vs Stock'!$A$3*'Option vs Stock'!$A$12)*'Option vs Stock'!$A$9*I26) -> 62.60030718 | F26: =(LN(D26/'Option vs Stock'!$A$9)+('Option vs Stock'!$A$3+0.5*'Option vs Stock'!$A$15^2)*'Option vs Stock'!$A$12)/('Option vs Stock'!$A$15*SQRT('Option vs Stock'!$A$12)) -> 1.557960792 | G26: =F26-'Option vs Stock'!$A$15*SQRT('Option vs Stock'!$A$12) -> 1.21155063 | H26: 0.9403787286 | I26: 0.8871577786 | J26: 0.9454307031 | K26: =((H27-H26)/(D27-D26))/(D26*'Option vs Stock'!$A$15*SQRT('Option vs Stock'!$A$12)) -> 3.54376048e-05 | L26: 0.001802864447 | P26: Option vs Time Data
B27: =(LN('Option vs Stock'!A6/'Option vs Stock'!A9)+('Option vs Stock'!A3-'Option vs Stock'!A24-0.5*'Option vs Stock'!A15^2)*'Option vs Stock'!A12)/('Option vs Stock'!A15*SQRT('Option vs Stock'!A12)) ->  | C27: =NORMSDIST(B27) ->  | D27: 165 | E27: =IF($C$4,D27*H27-EXP(-1*'Option vs Stock'!$A$3*'Option vs Stock'!$A$12)*'Option vs Stock'!$A$9*I27,-1*D27*H27+EXP(-1*'Option vs Stock'!$A$3*'Option vs Stock'!$A$12)*'Option vs Stock'!$A$9*I27) -> 67.3274607 | F27: =(LN(D27/'Option vs Stock'!$A$9)+('Option vs Stock'!$A$3+0.5*'Option vs Stock'!$A$15^2)*'Option vs Stock'!$A$12)/('Option vs Stock'!$A$15*SQRT('Option vs Stock'!$A$12)) -> 1.646790919 | G27: =F27-'Option vs Stock'!$A$15*SQRT('Option vs Stock'!$A$12) -> 1.300380757 | H27: 0.9501994857 | I27: 0.9032647491 | J27: 0.9544450254 | K27: =((H28-H27)/(D28-D27))/(D27*'Option vs Stock'!$A$15*SQRT('Option vs Stock'!$A$12)) -> 2.886725066e-05 | L27: 0.001512837013
C28: =NORMSDIST(-1*B26) ->  | D28: 170 | E28: =IF($C$4,D28*H28-EXP(-1*'Option vs Stock'!$A$3*'Option vs Stock'!$A$12)*'Option vs Stock'!$A$9*I28,-1*D28*H28+EXP(-1*'Option vs Stock'!$A$3*'Option vs Stock'!$A$12)*'Option vs Stock'!$A$9*I28) -> 72.09968583 | F28: =(LN(D28/'Option vs Stock'!$A$9)+('Option vs Stock'!$A$3+0.5*'Option vs Stock'!$A$15^2)*'Option vs Stock'!$A$12)/('Option vs Stock'!$A$15*SQRT('Option vs Stock'!$A$12)) -> 1.732969 | G28: =F28-'Option vs Stock'!$A$15*SQRT('Option vs Stock'!$A$12) -> 1.386558839 | H28: 0.9584494106 | I28: 0.9172118365 | J28: 0.9620092104 | K28: =((H29-H28)/(D29-D28))/(D28*'Option vs Stock'!$A$15*SQRT('Option vs Stock'!$A$12)) -> 2.348503728e-05 | L28: 0.001266889229 | O28: =(LN('Option vs Time'!A6/'Option vs Time'!A9)+('Option vs Time'!A3+0.5*'Option vs Time'!A15^2)*'Option vs Time'!A12)/('Option vs Time'!A15*SQRT('Option vs Time'!A12)) -> 0.9420255072 | P28: =NORMSDIST(O28) -> 0.8269102095
C29: =NORMSDIST(-1*B27) ->  | D29: 175 | E29: =IF($C$4,D29*H29-EXP(-1*'Option vs Stock'!$A$3*'Option vs Stock'!$A$12)*'Option vs Stock'!$A$9*I29,-1*D29*H29+EXP(-1*'Option vs Stock'!$A$3*'Option vs Stock'!$A$12)*'Option vs Stock'!$A$9*I29) -> 76.90973188 | F29: =(LN(D29/'Option vs Stock'!$A$9)+('Option vs Stock'!$A$3+0.5*'Option vs Stock'!$A$15^2)*'Option vs Stock'!$A$12)/('Option vs Stock'!$A$15*SQRT('Option vs Stock'!$A$12)) -> 1.816648811 | G29: =F29-'Option vs Stock'!$A$15*SQRT('Option vs Stock'!$A$12) -> 1.47023865 | H29: 0.9653645478 | I29: 0.9292514348 | J29: 0.9683436566 | K29: =((H30-H29)/(D30-D29))/(D29*'Option vs Stock'!$A$15*SQRT('Option vs Stock'!$A$12)) -> 1.908723117e-05 | L29: 0.001059103287 | O29: =O28-'Option vs Time'!A15*SQRT('Option vs Time'!A12) -> 0.1674288379 | P29: =NORMSDIST(O29) -> 0.566483682
D30: 180 | E30: =IF($C$4,D30*H30-EXP(-1*'Option vs Stock'!$A$3*'Option vs Stock'!$A$12)*'Option vs Stock'!$A$9*I30,-1*D30*H30+EXP(-1*'Option vs Stock'!$A$3*'Option vs Stock'!$A$12)*'Option vs Stock'!$A$9*I30) -> 81.75145016 | F30: =(LN(D30/'Option vs Stock'!$A$9)+('Option vs Stock'!$A$3+0.5*'Option vs Stock'!$A$15^2)*'Option vs Stock'!$A$12)/('Option vs Stock'!$A$15*SQRT('Option vs Stock'!$A$12)) -> 1.897971128 | G30: =F30-'Option vs Stock'!$A$15*SQRT('Option vs Stock'!$A$12) -> 1.551560967 | H30: 0.9711500573 | I30: 0.9396163455 | J30: 0.973639173 | K30: =((H31-H30)/(D31-D30))/(D30*'Option vs Stock'!$A$15*SQRT('Option vs Stock'!$A$12)) -> 1.550124442e-05 | L30: 0.0008841197359 | P30: =NORMSDIST(-1*O28) -> 0.1730897905
B31: ='Option vs Stock'!A6*C22-EXP(-1*'Option vs Stock'!A3*'Option vs Stock'!A12)*'Option vs Stock'!A9*C23 -> 14.17212772 | C31: =-1*'Option vs Stock'!A6*C24+EXP(-1*'Option vs Stock'!A3*'Option vs Stock'!A12)*'Option vs Stock'!A9*C25 -> 13.20782521 | D31: 185 | E31: =IF($C$4,D31*H31-EXP(-1*'Option vs Stock'!$A$3*'Option vs Stock'!$A$12)*'Option vs Stock'!$A$9*I31,-1*D31*H31+EXP(-1*'Option vs Stock'!$A$3*'Option vs Stock'!$A$12)*'Option vs Stock'!$A$9*I31) -> 86.61964603 | F31: =(LN(D31/'Option vs Stock'!$A$9)+('Option vs Stock'!$A$3+0.5*'Option vs Stock'!$A$15^2)*'Option vs Stock'!$A$12)/('Option vs Stock'!$A$15*SQRT('Option vs Stock'!$A$12)) -> 1.977065154 | G31: =F31-'Option vs Stock'!$A$15*SQRT('Option vs Stock'!$A$12) -> 1.630654992 | H31: 0.975982867 | I31: 0.9485184308 | J31: 0.9780597717 | K31: =((H32-H31)/(D32-D31))/(D31*'Option vs Stock'!$A$15*SQRT('Option vs Stock'!$A$12)) -> 1.258216219e-05 | L31: 0.0007371623143 | P31: =NORMSDIST(-1*O29) -> 0.433516318
B32: =-1*'Option vs Stock'!A6*C24+EXP(-1*'Option vs Stock'!A3*'Option vs Stock'!A12)*'Option vs Stock'!A9*C25 -> 13.20782521 | D32: 190 | E32: =IF($C$4,D32*H32-EXP(-1*'Option vs Stock'!$A$3*'Option vs Stock'!$A$12)*'Option vs Stock'!$A$9*I32,-1*D32*H32+EXP(-1*'Option vs Stock'!$A$3*'Option vs Stock'!$A$12)*'Option vs Stock'!$A$9*I32) -> 91.50994489 | F32: =(LN(D32/'Option vs Stock'!$A$9)+('Option vs Stock'!$A$3+0.5*'Option vs Stock'!$A$15^2)*'Option vs Stock'!$A$12)/('Option vs Stock'!$A$15*SQRT('Option vs Stock'!$A$12)) -> 2.054049752 | G32: =F32-'Option vs Stock'!$A$15*SQRT('Option vs Stock'!$A$12) -> 1.707639591 | H32: 0.9800145617 | I32: 0.9561483812 | J32: 0.9817455833 | K32: =((H33-H32)/(D33-D32))/(D32*'Option vs Stock'!$A$15*SQRT('Option vs Stock'!$A$12)) -> 1.020918201e-05 | L32: 0.0006140286019 | O32: =(LN('Option vs Time'!A6/'Option vs Time'!A9)+('Option vs Time'!A3-'Option vs Time'!A24+0.5*'Option vs Time'!A15^2)*'Option vs Time'!A12)/('Option vs Time'!A15*SQRT('Option vs Time'!A12)) ->  | P32: =NORMSDIST(O32) ->  | R32: =NORMSDIST(-O32) -> 
D33: 195 | E33: =IF($C$4,D33*H33-EXP(-1*'Option vs Stock'!$A$3*'Option vs Stock'!$A$12)*'Option vs Stock'!$A$9*I33,-1*D33*H33+EXP(-1*'Option vs Stock'!$A$3*'Option vs Stock'!$A$12)*'Option vs Stock'!$A$9*I33) -> 96.4186728 | F33: =(LN(D33/'Option vs Stock'!$A$9)+('Option vs Stock'!$A$3+0.5*'Option vs Stock'!$A$15^2)*'Option vs Stock'!$A$12)/('Option vs Stock'!$A$15*SQRT('Option vs Stock'!$A$12)) -> 2.129034522 | G33: =F33-'Option vs Stock'!$A$15*SQRT('Option vs Stock'!$A$12) -> 1.782624361 | H33: 0.9833742979 | I33: 0.9626762642 | J33: 0.9848157263 | K33: =((H34-H33)/(D34-D33))/(D33*'Option vs Stock'!$A$15*SQRT('Option vs Stock'!$A$12)) -> 8.282198237e-06 | L33: -4.250673203 | O33: =(LN('Option vs Time'!A6/'Option vs Time'!A9)+('Option vs Time'!A3-'Option vs Time'!A24-0.5*'Option vs Time'!A15^2)*'Option vs Time'!A12)/('Option vs Time'!A15*SQRT('Option vs Time'!A12)) ->  | P33: =NORMSDIST(O33) ->  | R33: =NORMSDIST(-O33) -> 
D34: 200 | E34: =IF($C$4,D34*H34-EXP(-1*'Option vs Stock'!$A$3*'Option vs Stock'!$A$12)*'Option vs Stock'!$A$9*I34,-1*D34*H34+EXP(-1*'Option vs Stock'!$A$3*'Option vs Stock'!$A$12)*'Option vs Stock'!$A$9*I34) -> 101.3427514 | F34: =(LN(D34/'Option vs Stock'!$A$9)+('Option vs Stock'!$A$3+0.5*'Option vs Stock'!$A$15^2)*'Option vs Stock'!$A$12)/('Option vs Stock'!$A$15*SQRT('Option vs Stock'!$A$12)) -> 2.202120739 | G34: =F34-'Option vs Stock'!$A$15*SQRT('Option vs Stock'!$A$12) -> 1.855710577 | H34: 0.9861716095 | I34: 0.9682525888 | J34: -20.26855029 | K34: =((H35-H34)/(D35-D34))/(D34*'Option vs Stock'!$A$15*SQRT('Option vs Stock'!$A$12)) -> 7.117080553e-05 | L34: -0.1013427514
E36: Other data
D37: t | E37: C (time) | F37: d1(time) | G37: d2(time) | H37: N(d1) time | I37: N(d2) time | J37: sigma1 | K37: sigma2 | O37: t | P37: C (time) | Q37: d1(time) | R37: d2(time) | S37: N(d1) time | T37: N(d2) time | U37: dC
D38: 1e-06 | E38: =IF($C$4, 'Other Graphs'!$A$6*H38-EXP(-1*'Other Graphs'!$A$3*D38)*'Other Graphs'!$A$9*I38,-1*'Other Graphs'!$A$6*H38+EXP(-1*'Other Graphs'!$A$3*D38)*'Other Graphs'!$A$9*I38) -> 0.008778655135 | F38: =(LN('Other Graphs'!$A$6/'Other Graphs'!$A$9)+('Other Graphs'!$A$3+0.5*'Other Graphs'!$A$15^2)*D38)/('Other Graphs'!$A$15*SQRT(D38)) -> 0.000275 | G38: =F38-'Other Graphs'!$A$15*SQRT(D38) -> 7.5e-05 | H38: =IF($C$4,NORMSDIST(F38),NORMSDIST(-1*F38)) -> 0.5001097091 | I38: =IF($C$4,NORMSDIST(G38),NORMSDIST(-1*G38)) -> 0.5000299207 | J38: =(F38*SQRT(D38)+SQRT(F38^2*D38-2*D38*LN('Other Graphs'!$A$6/'Other Graphs'!$A$9)-2*D38^2*'Other Graphs'!$A$3))/D38 -> 0.35 | K38: =(F38*SQRT(D38)-SQRT(F38^2*D38-2*D38*LN('Other Graphs'!$A$6/'Other Graphs'!$A$9)-2*Data!D38^2*'Other Graphs'!$A$3))/D38 -> 0.2 | O38: 1e-06 | P38: =IF($C$4, 'Option vs Time'!$A$6*S38-EXP(-1*'Option vs Time'!$A$3*O38)*'Option vs Time'!$A$9*T38,-1*'Option vs Time'!$A$6*S38+EXP(-1*'Option vs Time'!$A$3*O38)*'Option vs Time'!$A$9*T38) -> 0 | Q38: =(LN('Option vs Time'!$A$6/'Option vs Time'!$A$9)+('Option vs Time'!$A$3+0.5*'Option vs Time'!$A$15^2)*O38)/('Option vs Time'!$A$15*SQRT(O38)) -> -476.550624 | R38: =Q38-'Option vs Time'!$A$15*SQRT(O38) -> -476.550824 | S38: =IF($C$4,NORMSDIST(Q38),NORMSDIST(-1*Q38)) -> 0 | T38: =IF($C$4,NORMSDIST(R38),NORMSDIST(-1*R38)) -> 0 | U38: =(P39-P38)/(O39-O38) -> 5.474114061
D39: 1.000001 | E39: =IF($C$4, 'Other Graphs'!$A$6*H39-EXP(-1*'Other Graphs'!$A$3*D39)*'Other Graphs'!$A$9*I39,-1*'Other Graphs'!$A$6*H39+EXP(-1*'Other Graphs'!$A$3*D39)*'Other Graphs'!$A$9*I39) -> 10.6342203 | F39: =(LN('Other Graphs'!$A$6/'Other Graphs'!$A$9)+('Other Graphs'!$A$3+0.5*'Other Graphs'!$A$15^2)*D39)/('Other Graphs'!$A$15*SQRT(D39)) -> 0.2750001375 | G39: =F39-'Other Graphs'!$A$15*SQRT(D39) -> 0.0750000375 | H39: =IF($C$4,NORMSDIST(F39),NORMSDIST(-1*F39)) -> 0.6083419337 | I39: =IF($C$4,NORMSDIST(G39),NORMSDIST(-1*G39)) -> 0.529892659 | J39: =(F39*SQRT(D39)+SQRT(F39^2*D39-2*D39*LN('Other Graphs'!$A$6/'Other Graphs'!$A$9)-2*Data!D39^2*'Other Graphs'!$A$3))/D39 -> 0.35 | K39: =(F39*SQRT(D39)-SQRT(F39^2*D39-2*D39*LN('Other Graphs'!$A$6/'Other Graphs'!$A$9)-2*Data!D39^2*'Other Graphs'!$A$3))/D39 -> 0.2 | O39: 1.000001 | P39: =IF($C$4, 'Option vs Time'!$A$6*S39-EXP(-1*'Option vs Time'!$A$3*O39)*'Option vs Time'!$A$9*T39,-1*'Option vs Time'!$A$6*S39+EXP(-1*'Option vs Time'!$A$3*O39)*'Option vs Time'!$A$9*T39) -> 5.474114061 | Q39: =(LN('Option vs Time'!$A$6/'Option vs Time'!$A$9)+('Option vs Time'!$A$3+0.5*'Option vs Time'!$A$15^2)*O39)/('Option vs Time'!$A$15*SQRT(O39)) -> -0.2015505232 | R39: =Q39-'Option vs Time'!$A$15*SQRT(O39) -> -0.4015506232 | S39: =IF($C$4,NORMSDIST(Q39),NORMSDIST(-1*Q39)) -> 0.420134064 | T39: =IF($C$4,NORMSDIST(R39),NORMSDIST(-1*R39)) -> 0.3440073874 | U39: =(P40-P39)/(O40-O39) -> 4.679929322
D40: 2.000001 | E40: =IF($C$4, 'Other Graphs'!$A$6*H40-EXP(-1*'Other Graphs'!$A$3*D40)*'Other Graphs'!$A$9*I40,-1*'Other Graphs'!$A$6*H40+EXP(-1*'Other Graphs'!$A$3*D40)*'Other Graphs'!$A$9*I40) -> 16.03268 | F40: =(LN('Other Graphs'!$A$6/'Other Graphs'!$A$9)+('Other Graphs'!$A$3+0.5*'Other Graphs'!$A$15^2)*D40)/('Other Graphs'!$A$15*SQRT(D40)) -> 0.3889088269 | G40: =F40-'Other Graphs'!$A$15*SQRT(D40) -> 0.1060660437 | H40: 0.6513282039 | I40: 0.5422350238 | J40: =(F40*SQRT(D40)+SQRT(F40^2*D40-2*D40*LN('Other Graphs'!$A$6/'Other Graphs'!$A$9)-2*Data!D40^2*'Other Graphs'!$A$3))/D40 -> 0.35 | K40: =(F40*SQRT(D40)-SQRT(F40^2*D40-2*D40*LN('Other Graphs'!$A$6/'Other Graphs'!$A$9)-2*Data!D40^2*'Other Graphs'!$A$3))/D40 -> 0.2 | O40: 2.000001 | P40: =IF($C$4, 'Option vs Time'!$A$6*S40-EXP(-1*'Option vs Time'!$A$3*O40)*'Option vs Time'!$A$9*T40,-1*'Option vs Time'!$A$6*S40+EXP(-1*'Option vs Time'!$A$3*O40)*'Option vs Time'!$A$9*T40) -> 10.15404338 | Q40: =(LN('Option vs Time'!$A$6/'Option vs Time'!$A$9)+('Option vs Time'!$A$3+0.5*'Option vs Time'!$A$15^2)*O40)/('Option vs Time'!$A$15*SQRT(O40)) -> 0.05193653884 | R40: =Q40-'Option vs Time'!$A$15*SQRT(O40) -> -0.2309062443 | S40: 0.5207103701 | T40: 0.4086938198 | U40: 4.018088131
D41: 3.000001 | E41: =IF($C$4, 'Other Graphs'!$A$6*H41-EXP(-1*'Other Graphs'!$A$3*D41)*'Other Graphs'!$A$9*I41,-1*'Other Graphs'!$A$6*H41+EXP(-1*'Other Graphs'!$A$3*D41)*'Other Graphs'!$A$9*I41) -> 20.50232664 | F41: =(LN('Other Graphs'!$A$6/'Other Graphs'!$A$9)+('Other Graphs'!$A$3+0.5*'Other Graphs'!$A$15^2)*D41)/('Other Graphs'!$A$15*SQRT(D41)) -> 0.4763140515 | G41: =F41-'Other Graphs'!$A$15*SQRT(D41) -> 0.1299038322 | H41: 0.6830746719 | I41: 0.5516787438 | J41: =(F41*SQRT(D41)+SQRT(F41^2*D41-2*D41*LN('Other Graphs'!$A$6/'Other Graphs'!$A$9)-2*Data!D41^2*'Other Graphs'!$A$3))/D41 -> 0.35 | K41: =(F41*SQRT(D41)-SQRT(F41^2*D41-2*D41*LN('Other Graphs'!$A$6/'Other Graphs'!$A$9)-2*Data!D41^2*'Other Graphs'!$A$3))/D41 -> 0.2 | O41: 3.000001 | P41: =IF($C$4, 'Option vs Time'!$A$6*S41-EXP(-1*'Option vs Time'!$A$3*O41)*'Option vs Time'!$A$9*T41,-1*'Option vs Time'!$A$6*S41+EXP(-1*'Option vs Time'!$A$3*O41)*'Option vs Time'!$A$9*T41) -> 14.17213151 | Q41: =(LN('Option vs Time'!$A$6/'Option vs Time'!$A$9)+('Option vs Time'!$A$3+0.5*'Option vs Time'!$A$15^2)*O41)/('Option vs Time'!$A$15*SQRT(O41)) -> 0.2011773075 | R41: =Q41-'Option vs Time'!$A$15*SQRT(O41) -> -0.1452329118 | S41: 0.5797200326 | T41: 0.4422634908 | U41: 3.614069305
D42: 4.000001 | E42: =IF($C$4, 'Other Graphs'!$A$6*H42-EXP(-1*'Other Graphs'!$A$3*D42)*'Other Graphs'!$A$9*I42,-1*'Other Graphs'!$A$6*H42+EXP(-1*'Other Graphs'!$A$3*D42)*'Other Graphs'!$A$9*I42) -> 24.45653076 | F42: =(LN('Other Graphs'!$A$6/'Other Graphs'!$A$9)+('Other Graphs'!$A$3+0.5*'Other Graphs'!$A$15^2)*D42)/('Other Graphs'!$A$15*SQRT(D42)) -> 0.5500000687 | G42: =F42-'Other Graphs'!$A$15*SQRT(D42) -> 0.1500000187 | H42: 0.7088403368 | I42: 0.5596176998 | J42: =(F42*SQRT(D42)+SQRT(F42^2*D42-2*D42*LN('Other Graphs'!$A$6/'Other Graphs'!$A$9)-2*Data!D42^2*'Other Graphs'!$A$3))/D42 -> 0.35 | K42: =(F42*SQRT(D42)-SQRT(F42^2*D42-2*D42*LN('Other Graphs'!$A$6/'Other Graphs'!$A$9)-2*Data!D42^2*'Other Graphs'!$A$3))/D42 -> 0.2 | O42: 4.000001 | P42: =IF($C$4, 'Option vs Time'!$A$6*S42-EXP(-1*'Option vs Time'!$A$3*O42)*'Option vs Time'!$A$9*T42,-1*'Option vs Time'!$A$6*S42+EXP(-1*'Option vs Time'!$A$3*O42)*'Option vs Time'!$A$9*T42) -> 17.78620082 | Q42: =(LN('Option vs Time'!$A$6/'Option vs Time'!$A$9)+('Option vs Time'!$A$3+0.5*'Option vs Time'!$A$15^2)*O42)/('Option vs Time'!$A$15*SQRT(O42)) -> 0.311724649 | R42: =Q42-'Option vs Time'!$A$15*SQRT(O42) -> -0.08827540098 | S42: 0.6223751032 | T42: 0.4648288949 | U42: 3.324496218
D43: 5.000001 | E43: =IF($C$4, 'Other Graphs'!$A$6*H43-EXP(-1*'Other Graphs'!$A$3*D43)*'Other Graphs'!$A$9*I43,-1*'Other Graphs'!$A$6*H43+EXP(-1*'Other Graphs'!$A$3*D43)*'Other Graphs'!$A$9*I43) -> 28.05724798 | F43: =(LN('Other Graphs'!$A$6/'Other Graphs'!$A$9)+('Other Graphs'!$A$3+0.5*'Other Graphs'!$A$15^2)*D43)/('Other Graphs'!$A$15*SQRT(D43)) -> 0.6149187553 | G43: =F43-'Other Graphs'!$A$15*SQRT(D43) -> 0.1677051151 | H43: 0.730695812 | I43: 0.566592364 | J43: =(F43*SQRT(D43)+SQRT(F43^2*D43-2*D43*LN('Other Graphs'!$A$6/'Other Graphs'!$A$9)-2*Data!D43^2*'Other Graphs'!$A$3))/D43 -> 0.35 | K43: =(F43*SQRT(D43)-SQRT(F43^2*D43-2*D43*LN('Other Graphs'!$A$6/'Other Graphs'!$A$9)-2*Data!D43^2*'Other Graphs'!$A$3))/D43 -> 0.2 | O43: 5.000001 | P43: =IF($C$4, 'Option vs Time'!$A$6*S43-EXP(-1*'Option vs Time'!$A$3*O43)*'Option vs Time'!$A$9*T43,-1*'Option vs Time'!$A$6*S43+EXP(-1*'Option vs Time'!$A$3*O43)*'Option vs Time'!$A$9*T43) -> 21.11069704 | Q43: =(LN('Option vs Time'!$A$6/'Option vs Time'!$A$9)+('Option vs Time'!$A$3+0.5*'Option vs Time'!$A$15^2)*O43)/('Option vs Time'!$A$15*SQRT(O43)) -> 0.4017987356 | R43: =Q43-'Option vs Time'!$A$15*SQRT(O43) -> -0.0454149046 | S43: 0.6560839236 | T43: 0.4818883005 | U43: 3.097888602
D44: 6.000001 | E44: =IF($C$4, 'Other Graphs'!$A$6*H44-EXP(-1*'Other Graphs'!$A$3*D44)*'Other Graphs'!$A$9*I44,-1*'Other Graphs'!$A$6*H44+EXP(-1*'Other Graphs'!$A$3*D44)*'Other Graphs'!$A$9*I44) -> 31.38878795 | F44: =(LN('Other Graphs'!$A$6/'Other Graphs'!$A$9)+('Other Graphs'!$A$3+0.5*'Other Graphs'!$A$15^2)*D44)/('Other Graphs'!$A$15*SQRT(D44)) -> 0.6736097354 | G44: =F44-'Other Graphs'!$A$15*SQRT(D44) -> 0.183711746 | H44: 0.7497202689 | I44: 0.5728802031 | J44: =(F44*SQRT(D44)+SQRT(F44^2*D44-2*D44*LN('Other Graphs'!$A$6/'Other Graphs'!$A$9)-2*Data!D44^2*'Other Graphs'!$A$3))/D44 -> 0.35 | K44: =(F44*SQRT(D44)-SQRT(F44^2*D44-2*D44*LN('Other Graphs'!$A$6/'Other Graphs'!$A$9)-2*Data!D44^2*'Other Graphs'!$A$3))/D44 -> 0.2 | O44: 6.000001 | P44: =IF($C$4, 'Option vs Time'!$A$6*S44-EXP(-1*'Option vs Time'!$A$3*O44)*'Option vs Time'!$A$9*T44,-1*'Option vs Time'!$A$6*S44+EXP(-1*'Option vs Time'!$A$3*O44)*'Option vs Time'!$A$9*T44) -> 24.20858564 | Q44: =(LN('Option vs Time'!$A$6/'Option vs Time'!$A$9)+('Option vs Time'!$A$3+0.5*'Option vs Time'!$A$15^2)*O44)/('Option vs Time'!$A$15*SQRT(O44)) -> 0.4790586618 | R44: =Q44-'Option vs Time'!$A$15*SQRT(O44) -> -0.01083932761 | S44: 0.6840515515 | T44: 0.4956758186 | U44: 2.910663884
D45: 7.000001 | E45: =IF($C$4, 'Other Graphs'!$A$6*H45-EXP(-1*'Other Graphs'!$A$3*D45)*'Other Graphs'!$A$9*I45,-1*'Other Graphs'!$A$6*H45+EXP(-1*'Other Graphs'!$A$3*D45)*'Other Graphs'!$A$9*I45) -> 34.5021762 | F45: =(LN('Other Graphs'!$A$6/'Other Graphs'!$A$9)+('Other Graphs'!$A$3+0.5*'Other Graphs'!$A$15^2)*D45)/('Other Graphs'!$A$15*SQRT(D45)) -> 0.7275816625 | G45: =F45-'Other Graphs'!$A$15*SQRT(D45) -> 0.1984313625 | H45: 0.7665651454 | I45: 0.5786462092 | J45: =(F45*SQRT(D45)+SQRT(F45^2*D45-2*D45*LN('Other Graphs'!$A$6/'Other Graphs'!$A$9)-2*Data!D45^2*'Other Graphs'!$A$3))/D45 -> 0.35 | K45: =(F45*SQRT(D45)-SQRT(F45^2*D45-2*D45*LN('Other Graphs'!$A$6/'Other Graphs'!$A$9)-2*Data!D45^2*'Other Graphs'!$A$3))/D45 -> 0.2 | O45: 7.000001 | P45: =IF($C$4, 'Option vs Time'!$A$6*S45-EXP(-1*'Option vs Time'!$A$3*O45)*'Option vs Time'!$A$9*T45,-1*'Option vs Time'!$A$6*S45+EXP(-1*'Option vs Time'!$A$3*O45)*'Option vs Time'!$A$9*T45) -> 27.11924952 | Q45: =(LN('Option vs Time'!$A$6/'Option vs Time'!$A$9)+('Option vs Time'!$A$3+0.5*'Option vs Time'!$A$15^2)*O45)/('Option vs Time'!$A$15*SQRT(O45)) -> 0.547462366 | R45: =Q45-'Option vs Time'!$A$15*SQRT(O45) -> 0.01831206596 | S45: 0.7079694406 | T45: 0.5073050491 | U45: 2.750280531
D46: 8.000001 | E46: =IF($C$4, 'Other Graphs'!$A$6*H46-EXP(-1*'Other Graphs'!$A$3*D46)*'Other Graphs'!$A$9*I46,-1*'Other Graphs'!$A$6*H46+EXP(-1*'Other Graphs'!$A$3*D46)*'Other Graphs'!$A$9*I46) -> 37.4314079 | F46: =(LN('Other Graphs'!$A$6/'Other Graphs'!$A$9)+('Other Graphs'!$A$3+0.5*'Other Graphs'!$A$15^2)*D46)/('Other Graphs'!$A$15*SQRT(D46)) -> 0.7778175079 | G46: =F46-'Other Graphs'!$A$15*SQRT(D46) -> 0.2121320476 | H46: 0.7816616975 | I46: 0.5839979909 | J46: =(F46*SQRT(D46)+SQRT(F46^2*D46-2*D46*LN('Other Graphs'!$A$6/'Other Graphs'!$A$9)-2*Data!D46^2*'Other Graphs'!$A$3))/D46 -> 0.35 | K46: =(F46*SQRT(D46)-SQRT(F46^2*D46-2*D46*LN('Other Graphs'!$A$6/'Other Graphs'!$A$9)-2*Data!D46^2*'Other Graphs'!$A$3))/D46 -> 0.2 | O46: 8.000001 | P46: =IF($C$4, 'Option vs Time'!$A$6*S46-EXP(-1*'Option vs Time'!$A$3*O46)*'Option vs Time'!$A$9*T46,-1*'Option vs Time'!$A$6*S46+EXP(-1*'Option vs Time'!$A$3*O46)*'Option vs Time'!$A$9*T46) -> 29.86953005 | Q46: =(LN('Option vs Time'!$A$6/'Option vs Time'!$A$9)+('Option vs Time'!$A$3+0.5*'Option vs Time'!$A$15^2)*O46)/('Option vs Time'!$A$15*SQRT(O46)) -> 0.6093313323 | R46: =Q46-'Option vs Time'!$A$15*SQRT(O46) -> 0.04364587201 | S46: 0.7288475785 | T46: 0.517406657 | U46: 2.609360336
D47: 9.000001 | E47: =IF($C$4, 'Other Graphs'!$A$6*H47-EXP(-1*'Other Graphs'!$A$3*D47)*'Other Graphs'!$A$9*I47,-1*'Other Graphs'!$A$6*H47+EXP(-1*'Other Graphs'!$A$3*D47)*'Other Graphs'!$A$9*I47) -> 40.20071215 | F47: =(LN('Other Graphs'!$A$6/'Other Graphs'!$A$9)+('Other Graphs'!$A$3+0.5*'Other Graphs'!$A$15^2)*D47)/('Other Graphs'!$A$15*SQRT(D47)) -> 0.8250000458 | G47: =F47-'Other Graphs'!$A$15*SQRT(D47) -> 0.2250000125 | H47: 0.7953142177 | I47: 0.5890103677 | J47: =(F47*SQRT(D47)+SQRT(F47^2*D47-2*D47*LN('Other Graphs'!$A$6/'Other Graphs'!$A$9)-2*Data!D47^2*'Other Graphs'!$A$3))/D47 -> 0.35 | K47: =(F47*SQRT(D47)-SQRT(F47^2*D47-2*D47*LN('Other Graphs'!$A$6/'Other Graphs'!$A$9)-2*Data!D47^2*'Other Graphs'!$A$3))/D47 -> 0.2 | O47: 9.000001 | P47: =IF($C$4, 'Option vs Time'!$A$6*S47-EXP(-1*'Option vs Time'!$A$3*O47)*'Option vs Time'!$A$9*T47,-1*'Option vs Time'!$A$6*S47+EXP(-1*'Option vs Time'!$A$3*O47)*'Option vs Time'!$A$9*T47) -> 32.47889039 | Q47: =(LN('Option vs Time'!$A$6/'Option vs Time'!$A$9)+('Option vs Time'!$A$3+0.5*'Option vs Time'!$A$15^2)*O47)/('Option vs Time'!$A$15*SQRT(O47)) -> 0.666149755 | R47: =Q47-'Option vs Time'!$A$15*SQRT(O47) -> 0.06614972165 | S47: 0.7473423076 | T47: 0.5263706873 | U47: 2.483232452
D48: 10.000001 | E48: =IF($C$4, 'Other Graphs'!$A$6*H48-EXP(-1*'Other Graphs'!$A$3*D48)*'Other Graphs'!$A$9*I48,-1*'Other Graphs'!$A$6*H48+EXP(-1*'Other Graphs'!$A$3*D48)*'Other Graphs'!$A$9*I48) -> 42.82824771 | F48: =(LN('Other Graphs'!$A$6/'Other Graphs'!$A$9)+('Other Graphs'!$A$3+0.5*'Other Graphs'!$A$15^2)*D48)/('Other Graphs'!$A$15*SQRT(D48)) -> 0.8696264 | G48: =F48-'Other Graphs'!$A$15*SQRT(D48) -> 0.2371708364 | H48: 0.8077476972 | I48: 0.5937378699 | J48: =(F48*SQRT(D48)+SQRT(F48^2*D48-2*D48*LN('Other Graphs'!$A$6/'Other Graphs'!$A$9)-2*Data!D48^2*'Other Graphs'!$A$3))/D48 -> 0.35 | K48: =(F48*SQRT(D48)-SQRT(F48^2*D48-2*D48*LN('Other Graphs'!$A$6/'Other Graphs'!$A$9)-2*Data!D48^2*'Other Graphs'!$A$3))/D48 -> 0.2 | O48: 10.000001 | P48: =IF($C$4, 'Option vs Time'!$A$6*S48-EXP(-1*'Option vs Time'!$A$3*O48)*'Option vs Time'!$A$9*T48,-1*'Option vs Time'!$A$6*S48+EXP(-1*'Option vs Time'!$A$3*O48)*'Option vs Time'!$A$9*T48) -> 34.96212284 | Q48: =(LN('Option vs Time'!$A$6/'Option vs Time'!$A$9)+('Option vs Time'!$A$3+0.5*'Option vs Time'!$A$15^2)*O48)/('Option vs Time'!$A$15*SQRT(O48)) -> 0.7189277814 | R48: =Q48-'Option vs Time'!$A$15*SQRT(O48) -> 0.08647221772 | S48: 0.763907291 | T48: 0.5344544798 | U48: 2.368769611
D49: 11.000001 | E49: =IF($C$4, 'Other Graphs'!$A$6*H49-EXP(-1*'Other Graphs'!$A$3*D49)*'Other Graphs'!$A$9*I49,-1*'Other Graphs'!$A$6*H49+EXP(-1*'Other Graphs'!$A$3*D49)*'Other Graphs'!$A$9*I49) -> 45.3281652 | F49: =(LN('Other Graphs'!$A$6/'Other Graphs'!$A$9)+('Other Graphs'!$A$3+0.5*'Other Graphs'!$A$15^2)*D49)/('Other Graphs'!$A$15*SQRT(D49)) -> 0.9120718588 | G49: =F49-'Other Graphs'!$A$15*SQRT(D49) -> 0.2487468706 | H49: 0.8191345544 | I49: 0.5982217047 | J49: =(F49*SQRT(D49)+SQRT(F49^2*D49-2*D49*LN('Other Graphs'!$A$6/'Other Graphs'!$A$9)-2*Data!D49^2*'Other Graphs'!$A$3))/D49 -> 0.35 | K49: =(F49*SQRT(D49)-SQRT(F49^2*D49-2*D49*LN('Other Graphs'!$A$6/'Other Graphs'!$A$9)-2*Data!D49^2*'Other Graphs'!$A$3))/D49 -> 0.2 | O49: 11.000001 | P49: =IF($C$4, 'Option vs Time'!$A$6*S49-EXP(-1*'Option vs Time'!$A$3*O49)*'Option vs Time'!$A$9*T49,-1*'Option vs Time'!$A$6*S49+EXP(-1*'Option vs Time'!$A$3*O49)*'Option vs Time'!$A$9*T49) -> 37.33089245 | Q49: =(LN('Option vs Time'!$A$6/'Option vs Time'!$A$9)+('Option vs Time'!$A$3+0.5*'Option vs Time'!$A$15^2)*O49)/('Option vs Time'!$A$15*SQRT(O49)) -> 0.768386363 | R49: =Q49-'Option vs Time'!$A$15*SQRT(O49) -> 0.1050613748 | S49: 0.7788711601 | T49: 0.541836446 | U49: 2.263782915
D50: 12.000001 | E50: =IF($C$4, 'Other Graphs'!$A$6*H50-EXP(-1*'Other Graphs'!$A$3*D50)*'Other Graphs'!$A$9*I50,-1*'Other Graphs'!$A$6*H50+EXP(-1*'Other Graphs'!$A$3*D50)*'Other Graphs'!$A$9*I50) -> 47.71184046 | F50: =(LN('Other Graphs'!$A$6/'Other Graphs'!$A$9)+('Other Graphs'!$A$3+0.5*'Other Graphs'!$A$15^2)*D50)/('Other Graphs'!$A$15*SQRT(D50)) -> 0.9526279839 | G50: =F50-'Other Graphs'!$A$15*SQRT(D50) -> 0.259807632 | H50: 0.8296107033 | I50: 0.6024939182 | J50: =(F50*SQRT(D50)+SQRT(F50^2*D50-2*D50*LN('Other Graphs'!$A$6/'Other Graphs'!$A$9)-2*Data!D50^2*'Other Graphs'!$A$3))/D50 -> 0.35 | K50: =(F50*SQRT(D50)-SQRT(F50^2*D50-2*D50*LN('Other Graphs'!$A$6/'Other Graphs'!$A$9)-2*Data!D50^2*'Other Graphs'!$A$3))/D50 -> 0.2 | O50: 12.000001 | P50: =IF($C$4, 'Option vs Time'!$A$6*S50-EXP(-1*'Option vs Time'!$A$3*O50)*'Option vs Time'!$A$9*T50,-1*'Option vs Time'!$A$6*S50+EXP(-1*'Option vs Time'!$A$3*O50)*'Option vs Time'!$A$9*T50) -> 39.59467537 | Q50: =(LN('Option vs Time'!$A$6/'Option vs Time'!$A$9)+('Option vs Time'!$A$3+0.5*'Option vs Time'!$A$15^2)*O50)/('Option vs Time'!$A$15*SQRT(O50)) -> 0.8150595947 | R50: =Q50-'Option vs Time'!$A$15*SQRT(O50) -> 0.1222392428 | S50: 0.7924809008 | T50: 0.5486452259 | U50: 2.166683689
D51: 13.000001 | E51: =IF($C$4, 'Other Graphs'!$A$6*H51-EXP(-1*'Other Graphs'!$A$3*D51)*'Other Graphs'!$A$9*I51,-1*'Other Graphs'!$A$6*H51+EXP(-1*'Other Graphs'!$A$3*D51)*'Other Graphs'!$A$9*I51) -> 49.98865368 | F51: =(LN('Other Graphs'!$A$6/'Other Graphs'!$A$9)+('Other Graphs'!$A$3+0.5*'Other Graphs'!$A$15^2)*D51)/('Other Graphs'!$A$15*SQRT(D51)) -> 0.9915266389 | G51: =F51-'Other Graphs'!$A$15*SQRT(D51) -> 0.2704163561 | H51: 0.8392857544 | I51: 0.6065800208 | J51: =(F51*SQRT(D51)+SQRT(F51^2*D51-2*D51*LN('Other Graphs'!$A$6/'Other Graphs'!$A$9)-2*Data!D51^2*'Other Graphs'!$A$3))/D51 -> 0.35 | K51: =(F51*SQRT(D51)-SQRT(F51^2*D51-2*D51*LN('Other Graphs'!$A$6/'Other Graphs'!$A$9)-2*Data!D51^2*'Other Graphs'!$A$3))/D51 -> 0.2 | O51: 13.000001 | P51: =IF($C$4, 'Option vs Time'!$A$6*S51-EXP(-1*'Option vs Time'!$A$3*O51)*'Option vs Time'!$A$9*T51,-1*'Option vs Time'!$A$6*S51+EXP(-1*'Option vs Time'!$A$3*O51)*'Option vs Time'!$A$9*T51) -> 41.76135906 | Q51: =(LN('Option vs Time'!$A$6/'Option vs Time'!$A$9)+('Option vs Time'!$A$3+0.5*'Option vs Time'!$A$15^2)*O51)/('Option vs Time'!$A$15*SQRT(O51)) -> 0.8593552054 | R51: =Q51-'Option vs Time'!$A$15*SQRT(O51) -> 0.1382449225 | S51: 0.8049277123 | T51: 0.5549765736 | U51: 2.076283418
D52: 14.000001 | E52: =IF($C$4, 'Other Graphs'!$A$6*H52-EXP(-1*'Other Graphs'!$A$3*D52)*'Other Graphs'!$A$9*I52,-1*'Other Graphs'!$A$6*H52+EXP(-1*'Other Graphs'!$A$3*D52)*'Other Graphs'!$A$9*I52) -> 52.16650356 | F52: =(LN('Other Graphs'!$A$6/'Other Graphs'!$A$9)+('Other Graphs'!$A$3+0.5*'Other Graphs'!$A$15^2)*D52)/('Other Graphs'!$A$15*SQRT(D52)) -> 1.028955818 | G52: =F52-'Other Graphs'!$A$15*SQRT(D52) -> 0.280624314 | H52: 0.8482497816 | I52: 0.6105007174 | J52: =(F52*SQRT(D52)+SQRT(F52^2*D52-2*D52*LN('Other Graphs'!$A$6/'Other Graphs'!$A$9)-2*Data!D52^2*'Other Graphs'!$A$3))/D52 -> 0.35 | K52: =(F52*SQRT(D52)-SQRT(F52^2*D52-2*D52*LN('Other Graphs'!$A$6/'Other Graphs'!$A$9)-2*Data!D52^2*'Other Graphs'!$A$3))/D52 -> 0.2 | O52: 14.000001 | P52: =IF($C$4, 'Option vs Time'!$A$6*S52-EXP(-1*'Option vs Time'!$A$3*O52)*'Option vs Time'!$A$9*T52,-1*'Option vs Time'!$A$6*S52+EXP(-1*'Option vs Time'!$A$3*O52)*'Option vs Time'!$A$9*T52) -> 43.83764248 | Q52: =(LN('Option vs Time'!$A$6/'Option vs Time'!$A$9)+('Option vs Time'!$A$3+0.5*'Option vs Time'!$A$15^2)*O52)/('Option vs Time'!$A$15*SQRT(O52)) -> 0.9015922376 | R52: =Q52-'Option vs Time'!$A$15*SQRT(O52) -> 0.1532607335 | S52: 0.816363242 | T52: 0.5609036675 | U52: 1.991669729
D53: 15.000001 | E53: =IF($C$4, 'Other Graphs'!$A$6*H53-EXP(-1*'Other Graphs'!$A$3*D53)*'Other Graphs'!$A$9*I53,-1*'Other Graphs'!$A$6*H53+EXP(-1*'Other Graphs'!$A$3*D53)*'Other Graphs'!$A$9*I53) -> 54.25215926 | F53: =(LN('Other Graphs'!$A$6/'Other Graphs'!$A$9)+('Other Graphs'!$A$3+0.5*'Other Graphs'!$A$15^2)*D53)/('Other Graphs'!$A$15*SQRT(D53)) -> 1.065070456 | G53: =F53-'Other Graphs'!$A$15*SQRT(D53) -> 0.2904737606 | H53: 0.8565779761 | I53: 0.6142730891 | J53: =(F53*SQRT(D53)+SQRT(F53^2*D53-2*D53*LN('Other Graphs'!$A$6/'Other Graphs'!$A$9)-2*Data!D53^2*'Other Graphs'!$A$3))/D53 -> 0.35 | K53: =(F53*SQRT(D53)-SQRT(F53^2*D53-2*D53*LN('Other Graphs'!$A$6/'Other Graphs'!$A$9)-2*Data!D53^2*'Other Graphs'!$A$3))/D53 -> 0.2 | O53: 15.000001 | P53: =IF($C$4, 'Option vs Time'!$A$6*S53-EXP(-1*'Option vs Time'!$A$3*O53)*'Option vs Time'!$A$9*T53,-1*'Option vs Time'!$A$6*S53+EXP(-1*'Option vs Time'!$A$3*O53)*'Option vs Time'!$A$9*T53) -> 45.8293122 | Q53: =(LN('Option vs Time'!$A$6/'Option vs Time'!$A$9)+('Option vs Time'!$A$3+0.5*'Option vs Time'!$A$15^2)*O53)/('Option vs Time'!$A$15*SQRT(O53)) -> 0.9420255468 | R53: =Q53-'Option vs Time'!$A$15*SQRT(O53) -> 0.1674288517 | S53: 0.8269102197 | T53: 0.5664836874 | U53: 1.912126433
D54: 16.000001 | E54: =IF($C$4, 'Other Graphs'!$A$6*H54-EXP(-1*'Other Graphs'!$A$3*D54)*'Other Graphs'!$A$9*I54,-1*'Other Graphs'!$A$6*H54+EXP(-1*'Other Graphs'!$A$3*D54)*'Other Graphs'!$A$9*I54) -> 56.2515087 | F54: =(LN('Other Graphs'!$A$6/'Other Graphs'!$A$9)+('Other Graphs'!$A$3+0.5*'Other Graphs'!$A$15^2)*D54)/('Other Graphs'!$A$15*SQRT(D54)) -> 1.100000034 | G54: =F54-'Other Graphs'!$A$15*SQRT(D54) -> 0.3000000094 | H54: 0.8643339465 | I54: 0.6179114258 | J54: =(F54*SQRT(D54)+SQRT(F54^2*D54-2*D54*LN('Other Graphs'!$A$6/'Other Graphs'!$A$9)-2*Data!D54^2*'Other Graphs'!$A$3))/D54 -> 0.35 | K54: =(F54*SQRT(D54)-SQRT(F54^2*D54-2*D54*LN('Other Graphs'!$A$6/'Other Graphs'!$A$9)-2*Data!D54^2*'Other Graphs'!$A$3))/D54 -> 0.2 | O54: 16.000001 | P54: =IF($C$4, 'Option vs Time'!$A$6*S54-EXP(-1*'Option vs Time'!$A$3*O54)*'Option vs Time'!$A$9*T54,-1*'Option vs Time'!$A$6*S54+EXP(-1*'Option vs Time'!$A$3*O54)*'Option vs Time'!$A$9*T54) -> 47.74143864 | Q54: =(LN('Option vs Time'!$A$6/'Option vs Time'!$A$9)+('Option vs Time'!$A$3+0.5*'Option vs Time'!$A$15^2)*O54)/('Option vs Time'!$A$15*SQRT(O54)) -> 0.9808623133 | R54: =Q54-'Option vs Time'!$A$15*SQRT(O54) -> 0.1808622883 | S54: 0.8366696779 | T54: 0.5717621649 | U54: 1.837080274
D55: 17.000001 | E55: =IF($C$4, 'Other Graphs'!$A$6*H55-EXP(-1*'Other Graphs'!$A$3*D55)*'Other Graphs'!$A$9*I55,-1*'Other Graphs'!$A$6*H55+EXP(-1*'Other Graphs'!$A$3*D55)*'Other Graphs'!$A$9*I55) -> 58.16973847 | F55: =(LN('Other Graphs'!$A$6/'Other Graphs'!$A$9)+('Other Graphs'!$A$3+0.5*'Other Graphs'!$A$15^2)*D55)/('Other Graphs'!$A$15*SQRT(D55)) -> 1.13385408 | G55: =F55-'Other Graphs'!$A$15*SQRT(D55) -> 0.309232931 | H55: 0.8715721192 | I55: 0.6214278273 | J55: =(F55*SQRT(D55)+SQRT(F55^2*D55-2*D55*LN('Other Graphs'!$A$6/'Other Graphs'!$A$9)-2*Data!D55^2*'Other Graphs'!$A$3))/D55 -> 0.35 | K55: =(F55*SQRT(D55)-SQRT(F55^2*D55-2*D55*LN('Other Graphs'!$A$6/'Other Graphs'!$A$9)-2*Data!D55^2*'Other Graphs'!$A$3))/D55 -> 0.2 | O55: 17.000001 | P55: =IF($C$4, 'Option vs Time'!$A$6*S55-EXP(-1*'Option vs Time'!$A$3*O55)*'Option vs Time'!$A$9*T55,-1*'Option vs Time'!$A$6*S55+EXP(-1*'Option vs Time'!$A$3*O55)*'Option vs Time'!$A$9*T55) -> 49.57851891 | Q55: =(LN('Option vs Time'!$A$6/'Option vs Time'!$A$9)+('Option vs Time'!$A$3+0.5*'Option vs Time'!$A$15^2)*O55)/('Option vs Time'!$A$15*SQRT(O55)) -> 1.018273514 | R55: =Q55-'Option vs Time'!$A$15*SQRT(O55) -> 0.1936523643 | S55: 0.8457260041 | T55: 0.5767759533 | U55: 1.766064415
D56: 18.000001 | E56: =IF($C$4, 'Other Graphs'!$A$6*H56-EXP(-1*'Other Graphs'!$A$3*D56)*'Other Graphs'!$A$9*I56,-1*'Other Graphs'!$A$6*H56+EXP(-1*'Other Graphs'!$A$3*D56)*'Other Graphs'!$A$9*I56) -> 60.01146704 | F56: =(LN('Other Graphs'!$A$6/'Other Graphs'!$A$9)+('Other Graphs'!$A$3+0.5*'Other Graphs'!$A$15^2)*D56)/('Other Graphs'!$A$15*SQRT(D56)) -> 1.166726221 | G56: =F56-'Other Graphs'!$A$15*SQRT(D56) -> 0.3181980604 | H56: 0.878339525 | I56: 0.624832648 | J56: =(F56*SQRT(D56)+SQRT(F56^2*D56-2*D56*LN('Other Graphs'!$A$6/'Other Graphs'!$A$9)-2*Data!D56^2*'Other Graphs'!$A$3))/D56 -> 0.35 | K56: =(F56*SQRT(D56)-SQRT(F56^2*D56-2*D56*LN('Other Graphs'!$A$6/'Other Graphs'!$A$9)-2*Data!D56^2*'Other Graphs'!$A$3))/D56 -> 0.2 | O56: 18.000001 | P56: =IF($C$4, 'Option vs Time'!$A$6*S56-EXP(-1*'Option vs Time'!$A$3*O56)*'Option vs Time'!$A$9*T56,-1*'Option vs Time'!$A$6*S56+EXP(-1*'Option vs Time'!$A$3*O56)*'Option vs Time'!$A$9*T56) -> 51.34458333 | Q56: =(LN('Option vs Time'!$A$6/'Option vs Time'!$A$9)+('Option vs Time'!$A$3+0.5*'Option vs Time'!$A$15^2)*O56)/('Option vs Time'!$A$15*SQRT(O56)) -> 1.0544021 | R56: =Q56-'Option vs Time'!$A$15*SQRT(O56) -> 0.2058739394 | S56: 0.8541505695 | T56: 0.5815553086 | U56: 1.698692801
D57: 19.000001 | E57: =IF($C$4, 'Other Graphs'!$A$6*H57-EXP(-1*'Other Graphs'!$A$3*D57)*'Other Graphs'!$A$9*I57,-1*'Other Graphs'!$A$6*H57+EXP(-1*'Other Graphs'!$A$3*D57)*'Other Graphs'!$A$9*I57) -> 61.78084553 | F57: =(LN('Other Graphs'!$A$6/'Other Graphs'!$A$9)+('Other Graphs'!$A$3+0.5*'Other Graphs'!$A$15^2)*D57)/('Other Graphs'!$A$15*SQRT(D57)) -> 1.198697241 | G57: =F57-'Other Graphs'!$A$15*SQRT(D57) -> 0.3269174294 | H57: 0.8846771544 | I57: 0.628134831 | J57: =(F57*SQRT(D57)+SQRT(F57^2*D57-2*D57*LN('Other Graphs'!$A$6/'Other Graphs'!$A$9)-2*Data!D57^2*'Other Graphs'!$A$3))/D57 -> 0.35 | K57: =(F57*SQRT(D57)-SQRT(F57^2*D57-2*D57*LN('Other Graphs'!$A$6/'Other Graphs'!$A$9)-2*Data!D57^2*'Other Graphs'!$A$3))/D57 -> 0.2 | O57: 19.000001 | P57: =IF($C$4, 'Option vs Time'!$A$6*S57-EXP(-1*'Option vs Time'!$A$3*O57)*'Option vs Time'!$A$9*T57,-1*'Option vs Time'!$A$6*S57+EXP(-1*'Option vs Time'!$A$3*O57)*'Option vs Time'!$A$9*T57) -> 53.04327613 | Q57: =(LN('Option vs Time'!$A$6/'Option vs Time'!$A$9)+('Option vs Time'!$A$3+0.5*'Option vs Time'!$A$15^2)*O57)/('Option vs Time'!$A$15*SQRT(O57)) -> 1.08936897 | R57: =Q57-'Option vs Time'!$A$15*SQRT(O57) -> 0.217589158 | S57: 0.8620043953 | T57: 0.5861253836 | U57: 1.634641745
D58: 20.000001 | E58: =IF($C$4, 'Other Graphs'!$A$6*H58-EXP(-1*'Other Graphs'!$A$3*D58)*'Other Graphs'!$A$9*I58,-1*'Other Graphs'!$A$6*H58+EXP(-1*'Other Graphs'!$A$3*D58)*'Other Graphs'!$A$9*I58) -> 63.48163513 | F58: =(LN('Other Graphs'!$A$6/'Other Graphs'!$A$9)+('Other Graphs'!$A$3+0.5*'Other Graphs'!$A$15^2)*D58)/('Other Graphs'!$A$15*SQRT(D58)) -> 1.229837418 | G58: =F58-'Other Graphs'!$A$15*SQRT(D58) -> 0.335410205 | H58: 0.8906210035 | I58: 0.6313421646 | J58: =(F58*SQRT(D58)+SQRT(F58^2*D58-2*D58*LN('Other Graphs'!$A$6/'Other Graphs'!$A$9)-2*Data!D58^2*'Other Graphs'!$A$3))/D58 -> 0.35 | K58: =(F58*SQRT(D58)-SQRT(F58^2*D58-2*D58*LN('Other Graphs'!$A$6/'Other Graphs'!$A$9)-2*Data!D58^2*'Other Graphs'!$A$3))/D58 -> 0.2 | O58: 20.000001 | P58: =IF($C$4, 'Option vs Time'!$A$6*S58-EXP(-1*'Option vs Time'!$A$3*O58)*'Option vs Time'!$A$9*T58,-1*'Option vs Time'!$A$6*S58+EXP(-1*'Option vs Time'!$A$3*O58)*'Option vs Time'!$A$9*T58) -> 54.67791787 | Q58: =(LN('Option vs Time'!$A$6/'Option vs Time'!$A$9)+('Option vs Time'!$A$3+0.5*'Option vs Time'!$A$15^2)*O58)/('Option vs Time'!$A$15*SQRT(O58)) -> 1.123277401 | R58: =Q58-'Option vs Time'!$A$15*SQRT(O58) -> 0.2288501872 | S58: 0.8693401506 | T58: 0.590507321 | U58: 1.573636467
D59: 21.000001 | E59: =IF($C$4, 'Other Graphs'!$A$6*H59-EXP(-1*'Other Graphs'!$A$3*D59)*'Other Graphs'!$A$9*I59,-1*'Other Graphs'!$A$6*H59+EXP(-1*'Other Graphs'!$A$3*D59)*'Other Graphs'!$A$9*I59) -> 65.11726763 | F59: =(LN('Other Graphs'!$A$6/'Other Graphs'!$A$9)+('Other Graphs'!$A$3+0.5*'Other Graphs'!$A$15^2)*D59)/('Other Graphs'!$A$15*SQRT(D59)) -> 1.260208346 | G59: =F59-'Other Graphs'!$A$15*SQRT(D59) -> 0.3436931853 | H59: 0.8962028936 | I59: 0.6344614817 | J59: =(F59*SQRT(D59)+SQRT(F59^2*D59-2*D59*LN('Other Graphs'!$A$6/'Other Graphs'!$A$9)-2*Data!D59^2*'Other Graphs'!$A$3))/D59 -> 0.35 | K59: =(F59*SQRT(D59)-SQRT(F59^2*D59-2*D59*LN('Other Graphs'!$A$6/'Other Graphs'!$A$9)-2*Data!D59^2*'Other Graphs'!$A$3))/D59 -> 0.2 | O59: 21.000001 | P59: =IF($C$4, 'Option vs Time'!$A$6*S59-EXP(-1*'Option vs Time'!$A$3*O59)*'Option vs Time'!$A$9*T59,-1*'Option vs Time'!$A$6*S59+EXP(-1*'Option vs Time'!$A$3*O59)*'Option vs Time'!$A$9*T59) -> 56.25155434 | Q59: =(LN('Option vs Time'!$A$6/'Option vs Time'!$A$9)+('Option vs Time'!$A$3+0.5*'Option vs Time'!$A$15^2)*O59)/('Option vs Time'!$A$15*SQRT(O59)) -> 1.156216417 | R59: =Q59-'Option vs Time'!$A$15*SQRT(O59) -> 0.239701256 | S59: 0.8762036768 | T59: 0.5947190694 | U59: 1.515441064
D60: 22.000001 | E60: =IF($C$4, 'Other Graphs'!$A$6*H60-EXP(-1*'Other Graphs'!$A$3*D60)*'Other Graphs'!$A$9*I60,-1*'Other Graphs'!$A$6*H60+EXP(-1*'Other Graphs'!$A$3*D60)*'Other Graphs'!$A$9*I60) -> 66.6908934 | F60: =(LN('Other Graphs'!$A$6/'Other Graphs'!$A$9)+('Other Graphs'!$A$3+0.5*'Other Graphs'!$A$15^2)*D60)/('Other Graphs'!$A$15*SQRT(D60)) -> 1.289864363 | G60: =F60-'Other Graphs'!$A$15*SQRT(D60) -> 0.35178119 | H60: 0.901451122 | I60: 0.6374988169 | J60: =(F60*SQRT(D60)+SQRT(F60^2*D60-2*D60*LN('Other Graphs'!$A$6/'Other Graphs'!$A$9)-2*Data!D60^2*'Other Graphs'!$A$3))/D60 -> 0.35 | K60: =(F60*SQRT(D60)-SQRT(F60^2*D60-2*D60*LN('Other Graphs'!$A$6/'Other Graphs'!$A$9)-2*Data!D60^2*'Other Graphs'!$A$3))/D60 -> 0.2 | O60: 22.000001 | P60: =IF($C$4, 'Option vs Time'!$A$6*S60-EXP(-1*'Option vs Time'!$A$3*O60)*'Option vs Time'!$A$9*T60,-1*'Option vs Time'!$A$6*S60+EXP(-1*'Option vs Time'!$A$3*O60)*'Option vs Time'!$A$9*T60) -> 57.7669954 | Q60: =(LN('Option vs Time'!$A$6/'Option vs Time'!$A$9)+('Option vs Time'!$A$3+0.5*'Option vs Time'!$A$15^2)*O60)/('Option vs Time'!$A$15*SQRT(O60)) -> 1.188263373 | R60: =Q60-'Option vs Time'!$A$15*SQRT(O60) -> 0.2501801992 | S60: 0.8826351684 | T60: 0.5987760014 | U60: 1.459850935
D61: 23.000001 | E61: =IF($C$4, 'Other Graphs'!$A$6*H61-EXP(-1*'Other Graphs'!$A$3*D61)*'Other Graphs'!$A$9*I61,-1*'Other Graphs'!$A$6*H61+EXP(-1*'Other Graphs'!$A$3*D61)*'Other Graphs'!$A$9*I61) -> 68.2054199 | F61: =(LN('Other Graphs'!$A$6/'Other Graphs'!$A$9)+('Other Graphs'!$A$3+0.5*'Other Graphs'!$A$15^2)*D61)/('Other Graphs'!$A$15*SQRT(D61)) -> 1.318853698 | G61: =F61-'Other Graphs'!$A$15*SQRT(D61) -> 0.3596873721 | H61: 0.9063909859 | I61: 0.6404595317 | J61: =(F61*SQRT(D61)+SQRT(F61^2*D61-2*D61*LN('Other Graphs'!$A$6/'Other Graphs'!$A$9)-2*Data!D61^2*'Other Graphs'!$A$3))/D61 -> 0.35 | K61: =(F61*SQRT(D61)-SQRT(F61^2*D61-2*D61*LN('Other Graphs'!$A$6/'Other Graphs'!$A$9)-2*Data!D61^2*'Other Graphs'!$A$3))/D61 -> 0.2 | O61: 23.000001 | P61: =IF($C$4, 'Option vs Time'!$A$6*S61-EXP(-1*'Option vs Time'!$A$3*O61)*'Option vs Time'!$A$9*T61,-1*'Option vs Time'!$A$6*S61+EXP(-1*'Option vs Time'!$A$3*O61)*'Option vs Time'!$A$9*T61) -> 59.22684634 | Q61: =(LN('Option vs Time'!$A$6/'Option vs Time'!$A$9)+('Option vs Time'!$A$3+0.5*'Option vs Time'!$A$15^2)*O61)/('Option vs Time'!$A$15*SQRT(O61)) -> 1.219485968 | R61: =Q61-'Option vs Time'!$A$15*SQRT(O61) -> 0.2603196428 | S61: 0.8886701008 | T61: 0.602691389 | U61: 1.406686979
D62: 24.000001 | E62: =IF($C$4, 'Other Graphs'!$A$6*H62-EXP(-1*'Other Graphs'!$A$3*D62)*'Other Graphs'!$A$9*I62,-1*'Other Graphs'!$A$6*H62+EXP(-1*'Other Graphs'!$A$3*D62)*'Other Graphs'!$A$9*I62) -> 69.66354289 | F62: =(LN('Other Graphs'!$A$6/'Other Graphs'!$A$9)+('Other Graphs'!$A$3+0.5*'Other Graphs'!$A$15^2)*D62)/('Other Graphs'!$A$15*SQRT(D62)) -> 1.347219387 | G62: =F62-'Other Graphs'!$A$15*SQRT(D62) -> 0.3674234691 | H62: 0.911045207 | I62: 0.6433484159 | J62: =(F62*SQRT(D62)+SQRT(F62^2*D62-2*D62*LN('Other Graphs'!$A$6/'Other Graphs'!$A$9)-2*Data!D62^2*'Other Graphs'!$A$3))/D62 -> 0.35 | K62: =(F62*SQRT(D62)-SQRT(F62^2*D62-2*D62*LN('Other Graphs'!$A$6/'Other Graphs'!$A$9)-2*Data!D62^2*'Other Graphs'!$A$3))/D62 -> 0.2 | O62: 24.000001 | P62: =IF($C$4, 'Option vs Time'!$A$6*S62-EXP(-1*'Option vs Time'!$A$3*O62)*'Option vs Time'!$A$9*T62,-1*'Option vs Time'!$A$6*S62+EXP(-1*'Option vs Time'!$A$3*O62)*'Option vs Time'!$A$9*T62) -> 60.63353332 | Q62: =(LN('Option vs Time'!$A$6/'Option vs Time'!$A$9)+('Option vs Time'!$A$3+0.5*'Option vs Time'!$A$15^2)*O62)/('Option vs Time'!$A$15*SQRT(O62)) -> 1.249943844 | R62: =Q62-'Option vs Time'!$A$15*SQRT(O62) -> 0.2701479262 | S62: 0.8943399691 | T62: 0.6064767737 | U62: 1.355791084
D63: 25.000001 | E63: =IF($C$4, 'Other Graphs'!$A$6*H63-EXP(-1*'Other Graphs'!$A$3*D63)*'Other Graphs'!$A$9*I63,-1*'Other Graphs'!$A$6*H63+EXP(-1*'Other Graphs'!$A$3*D63)*'Other Graphs'!$A$9*I63) -> 71.06777218 | F63: =(LN('Other Graphs'!$A$6/'Other Graphs'!$A$9)+('Other Graphs'!$A$3+0.5*'Other Graphs'!$A$15^2)*D63)/('Other Graphs'!$A$15*SQRT(D63)) -> 1.375000028 | G63: =F63-'Other Graphs'!$A$15*SQRT(D63) -> 0.3750000075 | H63: 0.9154342819 | I63: 0.6461697695 | J63: =(F63*SQRT(D63)+SQRT(F63^2*D63-2*D63*LN('Other Graphs'!$A$6/'Other Graphs'!$A$9)-2*Data!D63^2*'Other Graphs'!$A$3))/D63 -> 0.35 | K63: =(F63*SQRT(D63)-SQRT(F63^2*D63-2*D63*LN('Other Graphs'!$A$6/'Other Graphs'!$A$9)-2*Data!D63^2*'Other Graphs'!$A$3))/D63 -> 0.2 | O63: 25.000001 | P63: =IF($C$4, 'Option vs Time'!$A$6*S63-EXP(-1*'Option vs Time'!$A$3*O63)*'Option vs Time'!$A$9*T63,-1*'Option vs Time'!$A$6*S63+EXP(-1*'Option vs Time'!$A$3*O63)*'Option vs Time'!$A$9*T63) -> 61.9893244 | Q63: =(LN('Option vs Time'!$A$6/'Option vs Time'!$A$9)+('Option vs Time'!$A$3+0.5*'Option vs Time'!$A$15^2)*O63)/('Option vs Time'!$A$15*SQRT(O63)) -> 1.27968985 | R63: =Q63-'Option vs Time'!$A$15*SQRT(O63) -> 0.2796898296 | S63: 0.8996728821 | T63: 0.6101422591 | U63: 1.307022589
D64: 26.000001 | E64: =IF($C$4, 'Other Graphs'!$A$6*H64-EXP(-1*'Other Graphs'!$A$3*D64)*'Other Graphs'!$A$9*I64,-1*'Other Graphs'!$A$6*H64+EXP(-1*'Other Graphs'!$A$3*D64)*'Other Graphs'!$A$9*I64) -> 72.42045287 | F64: =(LN('Other Graphs'!$A$6/'Other Graphs'!$A$9)+('Other Graphs'!$A$3+0.5*'Other Graphs'!$A$15^2)*D64)/('Other Graphs'!$A$15*SQRT(D64)) -> 1.402230393 | G64: =F64-'Other Graphs'!$A$15*SQRT(D64) -> 0.3824264709 | H64: 0.9195767708 | I64: 0.6489274705 | J64: =(F64*SQRT(D64)+SQRT(F64^2*D64-2*D64*LN('Other Graphs'!$A$6/'Other Graphs'!$A$9)-2*Data!D64^2*'Other Graphs'!$A$3))/D64 -> 0.35 | K64: =(F64*SQRT(D64)-SQRT(F64^2*D64-2*D64*LN('Other Graphs'!$A$6/'Other Graphs'!$A$9)-2*Data!D64^2*'Other Graphs'!$A$3))/D64 -> 0.2 | O64: 26.000001 | P64: =IF($C$4, 'Option vs Time'!$A$6*S64-EXP(-1*'Option vs Time'!$A$3*O64)*'Option vs Time'!$A$9*T64,-1*'Option vs Time'!$A$6*S64+EXP(-1*'Option vs Time'!$A$3*O64)*'Option vs Time'!$A$9*T64) -> 63.29634699 | Q64: =(LN('Option vs Time'!$A$6/'Option vs Time'!$A$9)+('Option vs Time'!$A$3+0.5*'Option vs Time'!$A$15^2)*O64)/('Option vs Time'!$A$15*SQRT(O64)) -> 1.308771074 | R64: =Q64-'Option vs Time'!$A$15*SQRT(O64) -> 0.2889671522 | S64: 0.9046940461 | T64: 0.6136967427 | U64: 1.260255483
D65: 27.000001 | E65: =IF($C$4, 'Other Graphs'!$A$6*H65-EXP(-1*'Other Graphs'!$A$3*D65)*'Other Graphs'!$A$9*I65,-1*'Other Graphs'!$A$6*H65+EXP(-1*'Other Graphs'!$A$3*D65)*'Other Graphs'!$A$9*I65) -> 73.72378318 | F65: =(LN('Other Graphs'!$A$6/'Other Graphs'!$A$9)+('Other Graphs'!$A$3+0.5*'Other Graphs'!$A$15^2)*D65)/('Other Graphs'!$A$15*SQRT(D65)) -> 1.428941943 | G65: =F65-'Other Graphs'!$A$15*SQRT(D65) -> 0.3897114389 | H65: 0.9234895395 | I65: 0.6516250315 | J65: =(F65*SQRT(D65)+SQRT(F65^2*D65-2*D65*LN('Other Graphs'!$A$6/'Other Graphs'!$A$9)-2*Data!D65^2*'Other Graphs'!$A$3))/D65 -> 0.35 | K65: =(F65*SQRT(D65)-SQRT(F65^2*D65-2*D65*LN('Other Graphs'!$A$6/'Other Graphs'!$A$9)-2*Data!D65^2*'Other Graphs'!$A$3))/D65 -> 0.2 | O65: 27.000001 | P65: =IF($C$4, 'Option vs Time'!$A$6*S65-EXP(-1*'Option vs Time'!$A$3*O65)*'Option vs Time'!$A$9*T65,-1*'Option vs Time'!$A$6*S65+EXP(-1*'Option vs Time'!$A$3*O65)*'Option vs Time'!$A$9*T65) -> 64.55660247 | Q65: =(LN('Option vs Time'!$A$6/'Option vs Time'!$A$9)+('Option vs Time'!$A$3+0.5*'Option vs Time'!$A$15^2)*O65)/('Option vs Time'!$A$15*SQRT(O65)) -> 1.337229681 | R65: =Q65-'Option vs Time'!$A$15*SQRT(O65) -> 0.2979991773 | S65: 0.9094261619 | T65: 0.6171481042 | U65: 1.215376151
D66: 28.000001 | E66: =IF($C$4, 'Other Graphs'!$A$6*H66-EXP(-1*'Other Graphs'!$A$3*D66)*'Other Graphs'!$A$9*I66,-1*'Other Graphs'!$A$6*H66+EXP(-1*'Other Graphs'!$A$3*D66)*'Other Graphs'!$A$9*I66) -> 74.9798295 | F66: =(LN('Other Graphs'!$A$6/'Other Graphs'!$A$9)+('Other Graphs'!$A$3+0.5*'Other Graphs'!$A$15^2)*D66)/('Other Graphs'!$A$15*SQRT(D66)) -> 1.455163247 | G66: =F66-'Other Graphs'!$A$15*SQRT(D66) -> 0.3968627037 | H66: 0.9271879635 | I66: 0.6542656457 | J66: =(F66*SQRT(D66)+SQRT(F66^2*D66-2*D66*LN('Other Graphs'!$A$6/'Other Graphs'!$A$9)-2*Data!D66^2*'Other Graphs'!$A$3))/D66 -> 0.35 | K66: =(F66*SQRT(D66)-SQRT(F66^2*D66-2*D66*LN('Other Graphs'!$A$6/'Other Graphs'!$A$9)-2*Data!D66^2*'Other Graphs'!$A$3))/D66 -> 0.2 | O66: 28.000001 | P66: =IF($C$4, 'Option vs Time'!$A$6*S66-EXP(-1*'Option vs Time'!$A$3*O66)*'Option vs Time'!$A$9*T66,-1*'Option vs Time'!$A$6*S66+EXP(-1*'Option vs Time'!$A$3*O66)*'Option vs Time'!$A$9*T66) -> 65.77197862 | Q66: =(LN('Option vs Time'!$A$6/'Option vs Time'!$A$9)+('Option vs Time'!$A$3+0.5*'Option vs Time'!$A$15^2)*O66)/('Option vs Time'!$A$15*SQRT(O66)) -> 1.365103594 | R66: =Q66-'Option vs Time'!$A$15*SQRT(O66) -> 0.3068030506 | S66: 0.9138897537 | T66: 0.620503357 | U66: 1.172281552
D67: 29.000001 | E67: =IF($C$4, 'Other Graphs'!$A$6*H67-EXP(-1*'Other Graphs'!$A$3*D67)*'Other Graphs'!$A$9*I67,-1*'Other Graphs'!$A$6*H67+EXP(-1*'Other Graphs'!$A$3*D67)*'Other Graphs'!$A$9*I67) -> 76.19053917 | F67: =(LN('Other Graphs'!$A$6/'Other Graphs'!$A$9)+('Other Graphs'!$A$3+0.5*'Other Graphs'!$A$15^2)*D67)/('Other Graphs'!$A$15*SQRT(D67)) -> 1.480920347 | G67: =F67-'Other Graphs'!$A$15*SQRT(D67) -> 0.4038873675 | H67: 0.9306860999 | I67: 0.6568522269 | J67: =(F67*SQRT(D67)+SQRT(F67^2*D67-2*D67*LN('Other Graphs'!$A$6/'Other Graphs'!$A$9)-2*Data!D67^2*'Other Graphs'!$A$3))/D67 -> 0.35 | K67: =(F67*SQRT(D67)-SQRT(F67^2*D67-2*D67*LN('Other Graphs'!$A$6/'Other Graphs'!$A$9)-2*Data!D67^2*'Other Graphs'!$A$3))/D67 -> 0.2 | O67: 29.000001 | P67: =IF($C$4, 'Option vs Time'!$A$6*S67-EXP(-1*'Option vs Time'!$A$3*O67)*'Option vs Time'!$A$9*T67,-1*'Option vs Time'!$A$6*S67+EXP(-1*'Option vs Time'!$A$3*O67)*'Option vs Time'!$A$9*T67) -> 66.94426018 | Q67: =(LN('Option vs Time'!$A$6/'Option vs Time'!$A$9)+('Option vs Time'!$A$3+0.5*'Option vs Time'!$A$15^2)*O67)/('Option vs Time'!$A$15*SQRT(O67)) -> 1.392427069 | R67: =Q67-'Option vs Time'!$A$15*SQRT(O67) -> 0.3153940887 | S67: 0.9181034438 | T67: 0.6237687727 | U67: 1.130877744
D68: 30.000001 | E68: =IF($C$4, 'Other Graphs'!$A$6*H68-EXP(-1*'Other Graphs'!$A$3*D68)*'Other Graphs'!$A$9*I68,-1*'Other Graphs'!$A$6*H68+EXP(-1*'Other Graphs'!$A$3*D68)*'Other Graphs'!$A$9*I68) -> 77.35775145 | F68: =(LN('Other Graphs'!$A$6/'Other Graphs'!$A$9)+('Other Graphs'!$A$3+0.5*'Other Graphs'!$A$15^2)*D68)/('Other Graphs'!$A$15*SQRT(D68)) -> 1.506237058 | G68: =F68-'Other Graphs'!$A$15*SQRT(D68) -> 0.410791925 | H68: 0.9339968353 | I68: 0.6593874426 | J68: =(F68*SQRT(D68)+SQRT(F68^2*D68-2*D68*LN('Other Graphs'!$A$6/'Other Graphs'!$A$9)-2*Data!D68^2*'Other Graphs'!$A$3))/D68 -> 0.35 | K68: =(F68*SQRT(D68)-SQRT(F68^2*D68-2*D68*LN('Other Graphs'!$A$6/'Other Graphs'!$A$9)-2*Data!D68^2*'Other Graphs'!$A$3))/D68 -> 0.2 | O68: 30.000001 | P68: =IF($C$4, 'Option vs Time'!$A$6*S68-EXP(-1*'Option vs Time'!$A$3*O68)*'Option vs Time'!$A$9*T68,-1*'Option vs Time'!$A$6*S68+EXP(-1*'Option vs Time'!$A$3*O68)*'Option vs Time'!$A$9*T68) -> 68.07513792 | Q68: =(LN('Option vs Time'!$A$6/'Option vs Time'!$A$9)+('Option vs Time'!$A$3+0.5*'Option vs Time'!$A$15^2)*O68)/('Option vs Time'!$A$15*SQRT(O68)) -> 1.419231167 | R68: =Q68-'Option vs Time'!$A$15*SQRT(O68) -> 0.323786034 | S68: 0.9220841839 | T68: 0.6269499848 | U68: 1.091078657
D69: 31.000001 | E69: =IF($C$4, 'Other Graphs'!$A$6*H69-EXP(-1*'Other Graphs'!$A$3*D69)*'Other Graphs'!$A$9*I69,-1*'Other Graphs'!$A$6*H69+EXP(-1*'Other Graphs'!$A$3*D69)*'Other Graphs'!$A$9*I69) -> 78.48320704 | F69: =(LN('Other Graphs'!$A$6/'Other Graphs'!$A$9)+('Other Graphs'!$A$3+0.5*'Other Graphs'!$A$15^2)*D69)/('Other Graphs'!$A$15*SQRT(D69)) -> 1.531135224 | G69: =F69-'Other Graphs'!$A$15*SQRT(D69) -> 0.4175823339 | H69: 0.9371320121 | I69: 0.6618737423 | J69: =(F69*SQRT(D69)+SQRT(F69^2*D69-2*D69*LN('Other Graphs'!$A$6/'Other Graphs'!$A$9)-2*Data!D69^2*'Other Graphs'!$A$3))/D69 -> 0.35 | K69: =(F69*SQRT(D69)-SQRT(F69^2*D69-2*D69*LN('Other Graphs'!$A$6/'Other Graphs'!$A$9)-2*Data!D69^2*'Other Graphs'!$A$3))/D69 -> 0.2 | O69: 31.000001 | P69: =IF($C$4, 'Option vs Time'!$A$6*S69-EXP(-1*'Option vs Time'!$A$3*O69)*'Option vs Time'!$A$9*T69,-1*'Option vs Time'!$A$6*S69+EXP(-1*'Option vs Time'!$A$3*O69)*'Option vs Time'!$A$9*T69) -> 69.16621658 | Q69: =(LN('Option vs Time'!$A$6/'Option vs Time'!$A$9)+('Option vs Time'!$A$3+0.5*'Option vs Time'!$A$15^2)*O69)/('Option vs Time'!$A$15*SQRT(O69)) -> 1.445544158 | R69: =Q69-'Option vs Time'!$A$15*SQRT(O69) -> 0.3319912672 | S69: 0.9258474505 | T69: 0.6300520734 | U69: 1.052805085
D70: 32.000001 | E70: =IF($C$4, 'Other Graphs'!$A$6*H70-EXP(-1*'Other Graphs'!$A$3*D70)*'Other Graphs'!$A$9*I70,-1*'Other Graphs'!$A$6*H70+EXP(-1*'Other Graphs'!$A$3*D70)*'Other Graphs'!$A$9*I70) -> 79.56855625 | F70: =(LN('Other Graphs'!$A$6/'Other Graphs'!$A$9)+('Other Graphs'!$A$3+0.5*'Other Graphs'!$A$15^2)*D70)/('Other Graphs'!$A$15*SQRT(D70)) -> 1.555634943 | G70: =F70-'Other Graphs'!$A$15*SQRT(D70) -> 0.4242640753 | H70: 0.9401025377 | I70: 0.6643133821 | J70: =(F70*SQRT(D70)+SQRT(F70^2*D70-2*D70*LN('Other Graphs'!$A$6/'Other Graphs'!$A$9)-2*Data!D70^2*'Other Graphs'!$A$3))/D70 -> 0.35 | K70: =(F70*SQRT(D70)-SQRT(F70^2*D70-2*D70*LN('Other Graphs'!$A$6/'Other Graphs'!$A$9)-2*Data!D70^2*'Other Graphs'!$A$3))/D70 -> 0.2 | O70: 32.000001 | P70: =IF($C$4, 'Option vs Time'!$A$6*S70-EXP(-1*'Option vs Time'!$A$3*O70)*'Option vs Time'!$A$9*T70,-1*'Option vs Time'!$A$6*S70+EXP(-1*'Option vs Time'!$A$3*O70)*'Option vs Time'!$A$9*T70) -> 70.21902166 | Q70: =(LN('Option vs Time'!$A$6/'Option vs Time'!$A$9)+('Option vs Time'!$A$3+0.5*'Option vs Time'!$A$15^2)*O70)/('Option vs Time'!$A$15*SQRT(O70)) -> 1.471391851 | R70: =Q70-'Option vs Time'!$A$15*SQRT(O70) -> 0.3400209836 | S70: 0.929407412 | T70: 0.6330796371 | U70: 1.015983844
D71: 33.000001 | E71: =IF($C$4, 'Other Graphs'!$A$6*H71-EXP(-1*'Other Graphs'!$A$3*D71)*'Other Graphs'!$A$9*I71,-1*'Other Graphs'!$A$6*H71+EXP(-1*'Other Graphs'!$A$3*D71)*'Other Graphs'!$A$9*I71) -> 80.61536625 | F71: =(LN('Other Graphs'!$A$6/'Other Graphs'!$A$9)+('Other Graphs'!$A$3+0.5*'Other Graphs'!$A$15^2)*D71)/('Other Graphs'!$A$15*SQRT(D71)) -> 1.579754752 | G71: =F71-'Other Graphs'!$A$15*SQRT(D71) -> 0.430842205 | H71: 0.9429184792 | I71: 0.6667084453 | J71: =(F71*SQRT(D71)+SQRT(F71^2*D71-2*D71*LN('Other Graphs'!$A$6/'Other Graphs'!$A$9)-2*Data!D71^2*'Other Graphs'!$A$3))/D71 -> 0.35 | K71: =(F71*SQRT(D71)-SQRT(F71^2*D71-2*D71*LN('Other Graphs'!$A$6/'Other Graphs'!$A$9)-2*Data!D71^2*'Other Graphs'!$A$3))/D71 -> 0.2 | O71: 33.000001 | P71: =IF($C$4, 'Option vs Time'!$A$6*S71-EXP(-1*'Option vs Time'!$A$3*O71)*'Option vs Time'!$A$9*T71,-1*'Option vs Time'!$A$6*S71+EXP(-1*'Option vs Time'!$A$3*O71)*'Option vs Time'!$A$9*T71) -> 71.23500551 | Q71: =(LN('Option vs Time'!$A$6/'Option vs Time'!$A$9)+('Option vs Time'!$A$3+0.5*'Option vs Time'!$A$15^2)*O71)/('Option vs Time'!$A$15*SQRT(O71)) -> 1.49679789 | R71: =Q71-'Option vs Time'!$A$15*SQRT(O71) -> 0.3478853428 | S71: 0.9327770722 | T71: 0.6360368534 | U71: 0.9805470652
D72: 34.000001 | E72: =IF($C$4, 'Other Graphs'!$A$6*H72-EXP(-1*'Other Graphs'!$A$3*D72)*'Other Graphs'!$A$9*I72,-1*'Other Graphs'!$A$6*H72+EXP(-1*'Other Graphs'!$A$3*D72)*'Other Graphs'!$A$9*I72) -> 81.6251274 | F72: =(LN('Other Graphs'!$A$6/'Other Graphs'!$A$9)+('Other Graphs'!$A$3+0.5*'Other Graphs'!$A$15^2)*D72)/('Other Graphs'!$A$15*SQRT(D72)) -> 1.603511795 | G72: =F72-'Other Graphs'!$A$15*SQRT(D72) -> 0.4373213985 | H72: 0.9455891464 | I72: 0.6690608606 | J72: =(F72*SQRT(D72)+SQRT(F72^2*D72-2*D72*LN('Other Graphs'!$A$6/'Other Graphs'!$A$9)-2*Data!D72^2*'Other Graphs'!$A$3))/D72 -> 0.35 | K72: =(F72*SQRT(D72)-SQRT(F72^2*D72-2*D72*LN('Other Graphs'!$A$6/'Other Graphs'!$A$9)-2*Data!D72^2*'Other Graphs'!$A$3))/D72 -> 0.2 | O72: 34.000001 | P72: =IF($C$4, 'Option vs Time'!$A$6*S72-EXP(-1*'Option vs Time'!$A$3*O72)*'Option vs Time'!$A$9*T72,-1*'Option vs Time'!$A$6*S72+EXP(-1*'Option vs Time'!$A$3*O72)*'Option vs Time'!$A$9*T72) -> 72.21555257 | Q72: =(LN('Option vs Time'!$A$6/'Option vs Time'!$A$9)+('Option vs Time'!$A$3+0.5*'Option vs Time'!$A$15^2)*O72)/('Option vs Time'!$A$15*SQRT(O72)) -> 1.521783991 | R72: =Q72-'Option vs Time'!$A$15*SQRT(O72) -> 0.3555935948 | S72: 0.935968393 | T72: 0.6389275294 | U72: 0.9464315942
D73: 35.000001 | E73: =IF($C$4, 'Other Graphs'!$A$6*H73-EXP(-1*'Other Graphs'!$A$3*D73)*'Other Graphs'!$A$9*I73,-1*'Other Graphs'!$A$6*H73+EXP(-1*'Other Graphs'!$A$3*D73)*'Other Graphs'!$A$9*I73) -> 82.59925884 | F73: =(LN('Other Graphs'!$A$6/'Other Graphs'!$A$9)+('Other Graphs'!$A$3+0.5*'Other Graphs'!$A$15^2)*D73)/('Other Graphs'!$A$15*SQRT(D73)) -> 1.626921964 | G73: =F73-'Other Graphs'!$A$15*SQRT(D73) -> 0.4437059901 | H73: 0.9481231637 | I73: 0.6713724179 | J73: =(F73*SQRT(D73)+SQRT(F73^2*D73-2*D73*LN('Other Graphs'!$A$6/'Other Graphs'!$A$9)-2*Data!D73^2*'Other Graphs'!$A$3))/D73 -> 0.35 | K73: =(F73*SQRT(D73)-SQRT(F73^2*D73-2*D73*LN('Other Graphs'!$A$6/'Other Graphs'!$A$9)-2*Data!D73^2*'Other Graphs'!$A$3))/D73 -> 0.2 | O73: 35.000001 | P73: =IF($C$4, 'Option vs Time'!$A$6*S73-EXP(-1*'Option vs Time'!$A$3*O73)*'Option vs Time'!$A$9*T73,-1*'Option vs Time'!$A$6*S73+EXP(-1*'Option vs Time'!$A$3*O73)*'Option vs Time'!$A$9*T73) -> 73.16198417 | Q73: =(LN('Option vs Time'!$A$6/'Option vs Time'!$A$9)+('Option vs Time'!$A$3+0.5*'Option vs Time'!$A$15^2)*O73)/('Option vs Time'!$A$15*SQRT(O73)) -> 1.546370161 | R73: =Q73-'Option vs Time'!$A$15*SQRT(O73) -> 0.3631541872 | S73: 0.9389924018 | T73: 0.641755146 | U73: 0.9135784857
D74: 36.000001 | E74: =IF($C$4, 'Other Graphs'!$A$6*H74-EXP(-1*'Other Graphs'!$A$3*D74)*'Other Graphs'!$A$9*I74,-1*'Other Graphs'!$A$6*H74+EXP(-1*'Other Graphs'!$A$3*D74)*'Other Graphs'!$A$9*I74) -> 83.53911348 | F74: =(LN('Other Graphs'!$A$6/'Other Graphs'!$A$9)+('Other Graphs'!$A$3+0.5*'Other Graphs'!$A$15^2)*D74)/('Other Graphs'!$A$15*SQRT(D74)) -> 1.650000023 | G74: =F74-'Other Graphs'!$A$15*SQRT(D74) -> 0.4500000063 | H74: 0.9505285343 | I74: 0.673644782 | J74: =(F74*SQRT(D74)+SQRT(F74^2*D74-2*D74*LN('Other Graphs'!$A$6/'Other Graphs'!$A$9)-2*Data!D74^2*'Other Graphs'!$A$3))/D74 -> 0.35 | K74: =(F74*SQRT(D74)-SQRT(F74^2*D74-2*D74*LN('Other Graphs'!$A$6/'Other Graphs'!$A$9)-2*Data!D74^2*'Other Graphs'!$A$3))/D74 -> 0.2 | O74: 36.000001 | P74: =IF($C$4, 'Option vs Time'!$A$6*S74-EXP(-1*'Option vs Time'!$A$3*O74)*'Option vs Time'!$A$9*T74,-1*'Option vs Time'!$A$6*S74+EXP(-1*'Option vs Time'!$A$3*O74)*'Option vs Time'!$A$9*T74) -> 74.07556265 | Q74: =(LN('Option vs Time'!$A$6/'Option vs Time'!$A$9)+('Option vs Time'!$A$3+0.5*'Option vs Time'!$A$15^2)*O74)/('Option vs Time'!$A$15*SQRT(O74)) -> 1.570574874 | R74: =Q74-'Option vs Time'!$A$15*SQRT(O74) -> 0.3705748575 | S74: 0.941859285 | T74: 0.6445228942 | U74: 0.8819325672
D75: 37.000001 | E75: =IF($C$4, 'Other Graphs'!$A$6*H75-EXP(-1*'Other Graphs'!$A$3*D75)*'Other Graphs'!$A$9*I75,-1*'Other Graphs'!$A$6*H75+EXP(-1*'Other Graphs'!$A$3*D75)*'Other Graphs'!$A$9*I75) -> 84.44598248 | F75: =(LN('Other Graphs'!$A$6/'Other Graphs'!$A$9)+('Other Graphs'!$A$3+0.5*'Other Graphs'!$A$15^2)*D75)/('Other Graphs'!$A$15*SQRT(D75)) -> 1.672759718 | G75: =F75-'Other Graphs'!$A$15*SQRT(D75) -> 0.4562071959 | H75: 0.9528126962 | I75: 0.6758795043 | J75: =(F75*SQRT(D75)+SQRT(F75^2*D75-2*D75*LN('Other Graphs'!$A$6/'Other Graphs'!$A$9)-2*Data!D75^2*'Other Graphs'!$A$3))/D75 -> 0.35 | K75: =(F75*SQRT(D75)-SQRT(F75^2*D75-2*D75*LN('Other Graphs'!$A$6/'Other Graphs'!$A$9)-2*Data!D75^2*'Other Graphs'!$A$3))/D75 -> 0.2 | O75: 37.000001 | P75: =IF($C$4, 'Option vs Time'!$A$6*S75-EXP(-1*'Option vs Time'!$A$3*O75)*'Option vs Time'!$A$9*T75,-1*'Option vs Time'!$A$6*S75+EXP(-1*'Option vs Time'!$A$3*O75)*'Option vs Time'!$A$9*T75) -> 74.95749522 | Q75: =(LN('Option vs Time'!$A$6/'Option vs Time'!$A$9)+('Option vs Time'!$A$3+0.5*'Option vs Time'!$A$15^2)*O75)/('Option vs Time'!$A$15*SQRT(O75)) -> 1.594415234 | R75: =Q75-'Option vs Time'!$A$15*SQRT(O75) -> 0.3778627118 | S75: 0.9445784687 | T75: 0.647233708 | U75: 0.8514420656
D76: 38.000001 | E76: =IF($C$4, 'Other Graphs'!$A$6*H76-EXP(-1*'Other Graphs'!$A$3*D76)*'Other Graphs'!$A$9*I76,-1*'Other Graphs'!$A$6*H76+EXP(-1*'Other Graphs'!$A$3*D76)*'Other Graphs'!$A$9*I76) -> 85.32109925 | F76: =(LN('Other Graphs'!$A$6/'Other Graphs'!$A$9)+('Other Graphs'!$A$3+0.5*'Other Graphs'!$A$15^2)*D76)/('Other Graphs'!$A$15*SQRT(D76)) -> 1.695213873 | G76: =F76-'Other Graphs'!$A$15*SQRT(D76) -> 0.4623310563 | H76: 0.954982572 | I76: 0.6780780341 | J76: =(F76*SQRT(D76)+SQRT(F76^2*D76-2*D76*LN('Other Graphs'!$A$6/'Other Graphs'!$A$9)-2*Data!D76^2*'Other Graphs'!$A$3))/D76 -> 0.35 | K76: =(F76*SQRT(D76)-SQRT(F76^2*D76-2*D76*LN('Other Graphs'!$A$6/'Other Graphs'!$A$9)-2*Data!D76^2*'Other Graphs'!$A$3))/D76 -> 0.2 | O76: 38.000001 | P76: =IF($C$4, 'Option vs Time'!$A$6*S76-EXP(-1*'Option vs Time'!$A$3*O76)*'Option vs Time'!$A$9*T76,-1*'Option vs Time'!$A$6*S76+EXP(-1*'Option vs Time'!$A$3*O76)*'Option vs Time'!$A$9*T76) -> 75.80893728 | Q76: =(LN('Option vs Time'!$A$6/'Option vs Time'!$A$9)+('Option vs Time'!$A$3+0.5*'Option vs Time'!$A$15^2)*O76)/('Option vs Time'!$A$15*SQRT(O76)) -> 1.61790711 | R76: =Q76-'Option vs Time'!$A$15*SQRT(O76) -> 0.3850242932 | S76: 0.9471586911 | T76: 0.6498902915 | U76: 0.8220582847
D77: 39.000001 | E77: =IF($C$4, 'Other Graphs'!$A$6*H77-EXP(-1*'Other Graphs'!$A$3*D77)*'Other Graphs'!$A$9*I77,-1*'Other Graphs'!$A$6*H77+EXP(-1*'Other Graphs'!$A$3*D77)*'Other Graphs'!$A$9*I77) -> 86.16564303 | F77: =(LN('Other Graphs'!$A$6/'Other Graphs'!$A$9)+('Other Graphs'!$A$3+0.5*'Other Graphs'!$A$15^2)*D77)/('Other Graphs'!$A$15*SQRT(D77)) -> 1.717374472 | G77: =F77-'Other Graphs'!$A$15*SQRT(D77) -> 0.4683748559 | H77: 0.9570446135 | I77: 0.6802417271 | J77: =(F77*SQRT(D77)+SQRT(F77^2*D77-2*D77*LN('Other Graphs'!$A$6/'Other Graphs'!$A$9)-2*Data!D77^2*'Other Graphs'!$A$3))/D77 -> 0.35 | K77: =(F77*SQRT(D77)-SQRT(F77^2*D77-2*D77*LN('Other Graphs'!$A$6/'Other Graphs'!$A$9)-2*Data!D77^2*'Other Graphs'!$A$3))/D77 -> 0.2 | O77: 39.000001 | P77: =IF($C$4, 'Option vs Time'!$A$6*S77-EXP(-1*'Option vs Time'!$A$3*O77)*'Option vs Time'!$A$9*T77,-1*'Option vs Time'!$A$6*S77+EXP(-1*'Option vs Time'!$A$3*O77)*'Option vs Time'!$A$9*T77) -> 76.63099557 | Q77: =(LN('Option vs Time'!$A$6/'Option vs Time'!$A$9)+('Option vs Time'!$A$3+0.5*'Option vs Time'!$A$15^2)*O77)/('Option vs Time'!$A$15*SQRT(O77)) -> 1.641065257 | R77: =Q77-'Option vs Time'!$A$15*SQRT(O77) -> 0.3920656412 | S77: 0.9496080651 | T77: 0.6524951432 | U77: 0.7937353241
D78: 40.000001 | E78: =IF($C$4, 'Other Graphs'!$A$6*H78-EXP(-1*'Other Graphs'!$A$3*D78)*'Other Graphs'!$A$9*I78,-1*'Other Graphs'!$A$6*H78+EXP(-1*'Other Graphs'!$A$3*D78)*'Other Graphs'!$A$9*I78) -> 86.98074218 | F78: =(LN('Other Graphs'!$A$6/'Other Graphs'!$A$9)+('Other Graphs'!$A$3+0.5*'Other Graphs'!$A$15^2)*D78)/('Other Graphs'!$A$15*SQRT(D78)) -> 1.739252735 | G78: =F78-'Other Graphs'!$A$15*SQRT(D78) -> 0.474341655 | H78: 0.9590048414 | I78: 0.6823718541 | J78: =(F78*SQRT(D78)+SQRT(F78^2*D78-2*D78*LN('Other Graphs'!$A$6/'Other Graphs'!$A$9)-2*Data!D78^2*'Other Graphs'!$A$3))/D78 -> 0.35 | K78: =(F78*SQRT(D78)-SQRT(F78^2*D78-2*D78*LN('Other Graphs'!$A$6/'Other Graphs'!$A$9)-2*Data!D78^2*'Other Graphs'!$A$3))/D78 -> 0.2 | O78: 40.000001 | P78: =IF($C$4, 'Option vs Time'!$A$6*S78-EXP(-1*'Option vs Time'!$A$3*O78)*'Option vs Time'!$A$9*T78,-1*'Option vs Time'!$A$6*S78+EXP(-1*'Option vs Time'!$A$3*O78)*'Option vs Time'!$A$9*T78) -> 77.42473089 | Q78: =(LN('Option vs Time'!$A$6/'Option vs Time'!$A$9)+('Option vs Time'!$A$3+0.5*'Option vs Time'!$A$15^2)*O78)/('Option vs Time'!$A$15*SQRT(O78)) -> 1.663903423 | R78: =Q78-'Option vs Time'!$A$15*SQRT(O78) -> 0.3989923428 | S78: 0.9519341345 | T78: 0.6550505768 | U78: 0.7664298347
D79: 41.000001 | E79: =IF($C$4, 'Other Graphs'!$A$6*H79-EXP(-1*'Other Graphs'!$A$3*D79)*'Other Graphs'!$A$9*I79,-1*'Other Graphs'!$A$6*H79+EXP(-1*'Other Graphs'!$A$3*D79)*'Other Graphs'!$A$9*I79) -> 87.76747717 | F79: =(LN('Other Graphs'!$A$6/'Other Graphs'!$A$9)+('Other Graphs'!$A$3+0.5*'Other Graphs'!$A$15^2)*D79)/('Other Graphs'!$A$15*SQRT(D79)) -> 1.760859187 | G79: =F79-'Other Graphs'!$A$15*SQRT(D79) -> 0.4802343237 | H79: 0.9608688804 | I79: 0.6844696085 | J79: =(F79*SQRT(D79)+SQRT(F79^2*D79-2*D79*LN('Other Graphs'!$A$6/'Other Graphs'!$A$9)-2*Data!D79^2*'Other Graphs'!$A$3))/D79 -> 0.35 | K79: =(F79*SQRT(D79)-SQRT(F79^2*D79-2*D79*LN('Other Graphs'!$A$6/'Other Graphs'!$A$9)-2*Data!D79^2*'Other Graphs'!$A$3))/D79 -> 0.2 | O79: 41.000001 | P79: =IF($C$4, 'Option vs Time'!$A$6*S79-EXP(-1*'Option vs Time'!$A$3*O79)*'Option vs Time'!$A$9*T79,-1*'Option vs Time'!$A$6*S79+EXP(-1*'Option vs Time'!$A$3*O79)*'Option vs Time'!$A$9*T79) -> 78.19116073 | Q79: =(LN('Option vs Time'!$A$6/'Option vs Time'!$A$9)+('Option vs Time'!$A$3+0.5*'Option vs Time'!$A$15^2)*O79)/('Option vs Time'!$A$15*SQRT(O79)) -> 1.686434441 | R79: =Q79-'Option vs Time'!$A$15*SQRT(O79) -> 0.4058095779 | S79: 0.9541439238 | T79: 0.6575587397 | U79: 0.7401008039
D80: 42.000001 | E80: =IF($C$4, 'Other Graphs'!$A$6*H80-EXP(-1*'Other Graphs'!$A$3*D80)*'Other Graphs'!$A$9*I80,-1*'Other Graphs'!$A$6*H80+EXP(-1*'Other Graphs'!$A$3*D80)*'Other Graphs'!$A$9*I80) -> 88.52688329 | F80: =(LN('Other Graphs'!$A$6/'Other Graphs'!$A$9)+('Other Graphs'!$A$3+0.5*'Other Graphs'!$A$15^2)*D80)/('Other Graphs'!$A$15*SQRT(D80)) -> 1.782203713 | G80: =F80-'Other Graphs'!$A$15*SQRT(D80) -> 0.4860555582 | H80: 0.9626419913 | I80: 0.6865361123 | J80: =(F80*SQRT(D80)+SQRT(F80^2*D80-2*D80*LN('Other Graphs'!$A$6/'Other Graphs'!$A$9)-2*Data!D80^2*'Other Graphs'!$A$3))/D80 -> 0.35 | K80: =(F80*SQRT(D80)-SQRT(F80^2*D80-2*D80*LN('Other Graphs'!$A$6/'Other Graphs'!$A$9)-2*Data!D80^2*'Other Graphs'!$A$3))/D80 -> 0.2 | O80: 42.000001 | P80: =IF($C$4, 'Option vs Time'!$A$6*S80-EXP(-1*'Option vs Time'!$A$3*O80)*'Option vs Time'!$A$9*T80,-1*'Option vs Time'!$A$6*S80+EXP(-1*'Option vs Time'!$A$3*O80)*'Option vs Time'!$A$9*T80) -> 78.93126153 | Q80: =(LN('Option vs Time'!$A$6/'Option vs Time'!$A$9)+('Option vs Time'!$A$3+0.5*'Option vs Time'!$A$15^2)*O80)/('Option vs Time'!$A$15*SQRT(O80)) -> 1.708670314 | R80: =Q80-'Option vs Time'!$A$15*SQRT(O80) -> 0.4125221589 | S80: 0.956243982 | T80: 0.6600216287 | U80: 0.7147093663
D81: 43.000001 | E81: =IF($C$4, 'Other Graphs'!$A$6*H81-EXP(-1*'Other Graphs'!$A$3*D81)*'Other Graphs'!$A$9*I81,-1*'Other Graphs'!$A$6*H81+EXP(-1*'Other Graphs'!$A$3*D81)*'Other Graphs'!$A$9*I81) -> 89.25995309 | F81: =(LN('Other Graphs'!$A$6/'Other Graphs'!$A$9)+('Other Graphs'!$A$3+0.5*'Other Graphs'!$A$15^2)*D81)/('Other Graphs'!$A$15*SQRT(D81)) -> 1.803295615 | G81: =F81-'Other Graphs'!$A$15*SQRT(D81) -> 0.491807895 | H81: 0.9643290995 | I81: 0.6885724226 | J81: =(F81*SQRT(D81)+SQRT(F81^2*D81-2*D81*LN('Other Graphs'!$A$6/'Other Graphs'!$A$9)-2*Data!D81^2*'Other Graphs'!$A$3))/D81 -> 0.35 | K81: =(F81*SQRT(D81)-SQRT(F81^2*D81-2*D81*LN('Other Graphs'!$A$6/'Other Graphs'!$A$9)-2*Data!D81^2*'Other Graphs'!$A$3))/D81 -> 0.2 | O81: 43.000001 | P81: =IF($C$4, 'Option vs Time'!$A$6*S81-EXP(-1*'Option vs Time'!$A$3*O81)*'Option vs Time'!$A$9*T81,-1*'Option vs Time'!$A$6*S81+EXP(-1*'Option vs Time'!$A$3*O81)*'Option vs Time'!$A$9*T81) -> 79.6459709 | Q81: =(LN('Option vs Time'!$A$6/'Option vs Time'!$A$9)+('Option vs Time'!$A$3+0.5*'Option vs Time'!$A$15^2)*O81)/('Option vs Time'!$A$15*SQRT(O81)) -> 1.730622285 | R81: =Q81-'Option vs Time'!$A$15*SQRT(O81) -> 0.4191345651 | S81: 0.9582404228 | T81: 0.6624411047 | U81: 0.6902186362
D82: 44.000001 | E82: =IF($C$4, 'Other Graphs'!$A$6*H82-EXP(-1*'Other Graphs'!$A$3*D82)*'Other Graphs'!$A$9*I82,-1*'Other Graphs'!$A$6*H82+EXP(-1*'Other Graphs'!$A$3*D82)*'Other Graphs'!$A$9*I82) -> 89.96763875 | F82: =(LN('Other Graphs'!$A$6/'Other Graphs'!$A$9)+('Other Graphs'!$A$3+0.5*'Other Graphs'!$A$15^2)*D82)/('Other Graphs'!$A$15*SQRT(D82)) -> 1.824143655 | G82: =F82-'Other Graphs'!$A$15*SQRT(D82) -> 0.4974937242 | H82: 0.9659348214 | I82: 0.6905795363 | J82: =(F82*SQRT(D82)+SQRT(F82^2*D82-2*D82*LN('Other Graphs'!$A$6/'Other Graphs'!$A$9)-2*Data!D82^2*'Other Graphs'!$A$3))/D82 -> 0.35 | K82: =(F82*SQRT(D82)-SQRT(F82^2*D82-2*D82*LN('Other Graphs'!$A$6/'Other Graphs'!$A$9)-2*Data!D82^2*'Other Graphs'!$A$3))/D82 -> 0.2 | O82: 44.000001 | P82: =IF($C$4, 'Option vs Time'!$A$6*S82-EXP(-1*'Option vs Time'!$A$3*O82)*'Option vs Time'!$A$9*T82,-1*'Option vs Time'!$A$6*S82+EXP(-1*'Option vs Time'!$A$3*O82)*'Option vs Time'!$A$9*T82) -> 80.33618953 | Q82: =(LN('Option vs Time'!$A$6/'Option vs Time'!$A$9)+('Option vs Time'!$A$3+0.5*'Option vs Time'!$A$15^2)*O82)/('Option vs Time'!$A$15*SQRT(O82)) -> 1.752300905 | R82: =Q82-'Option vs Time'!$A$15*SQRT(O82) -> 0.4256509739 | S82: 0.9601389597 | T82: 0.6648189045 | U82: 0.6665935596
D83: 45.000001 | E83: =IF($C$4, 'Other Graphs'!$A$6*H83-EXP(-1*'Other Graphs'!$A$3*D83)*'Other Graphs'!$A$9*I83,-1*'Other Graphs'!$A$6*H83+EXP(-1*'Other Graphs'!$A$3*D83)*'Other Graphs'!$A$9*I83) -> 90.6508541 | F83: =(LN('Other Graphs'!$A$6/'Other Graphs'!$A$9)+('Other Graphs'!$A$3+0.5*'Other Graphs'!$A$15^2)*D83)/('Other Graphs'!$A$15*SQRT(D83)) -> 1.844756102 | G83: =F83-'Other Graphs'!$A$15*SQRT(D83) -> 0.5031153005 | H83: 0.9674634871 | I83: 0.692558395 | J83: =(F83*SQRT(D83)+SQRT(F83^2*D83-2*D83*LN('Other Graphs'!$A$6/'Other Graphs'!$A$9)-2*Data!D83^2*'Other Graphs'!$A$3))/D83 -> 0.35 | K83: =(F83*SQRT(D83)-SQRT(F83^2*D83-2*D83*LN('Other Graphs'!$A$6/'Other Graphs'!$A$9)-2*Data!D83^2*'Other Graphs'!$A$3))/D83 -> 0.2 | O83: 45.000001 | P83: =IF($C$4, 'Option vs Time'!$A$6*S83-EXP(-1*'Option vs Time'!$A$3*O83)*'Option vs Time'!$A$9*T83,-1*'Option vs Time'!$A$6*S83+EXP(-1*'Option vs Time'!$A$3*O83)*'Option vs Time'!$A$9*T83) -> 81.00278309 | Q83: =(LN('Option vs Time'!$A$6/'Option vs Time'!$A$9)+('Option vs Time'!$A$3+0.5*'Option vs Time'!$A$15^2)*O83)/('Option vs Time'!$A$15*SQRT(O83)) -> 1.773716089 | R83: =Q83-'Option vs Time'!$A$15*SQRT(O83) -> 0.4320752877 | S83: 0.9619449381 | T83: 0.6671566525 | U83: 0.6438007808
D84: 46.000001 | E84: =IF($C$4, 'Other Graphs'!$A$6*H84-EXP(-1*'Other Graphs'!$A$3*D84)*'Other Graphs'!$A$9*I84,-1*'Other Graphs'!$A$6*H84+EXP(-1*'Other Graphs'!$A$3*D84)*'Other Graphs'!$A$9*I84) -> 91.31047664 | F84: =(LN('Other Graphs'!$A$6/'Other Graphs'!$A$9)+('Other Graphs'!$A$3+0.5*'Other Graphs'!$A$15^2)*D84)/('Other Graphs'!$A$15*SQRT(D84)) -> 1.865140766 | G84: =F84-'Other Graphs'!$A$15*SQRT(D84) -> 0.5086747543 | H84: 0.9689191621 | I84: 0.6945098895 | J84: =(F84*SQRT(D84)+SQRT(F84^2*D84-2*D84*LN('Other Graphs'!$A$6/'Other Graphs'!$A$9)-2*Data!D84^2*'Other Graphs'!$A$3))/D84 -> 0.35 | K84: =(F84*SQRT(D84)-SQRT(F84^2*D84-2*D84*LN('Other Graphs'!$A$6/'Other Graphs'!$A$9)-2*Data!D84^2*'Other Graphs'!$A$3))/D84 -> 0.2 | O84: 46.000001 | P84: =IF($C$4, 'Option vs Time'!$A$6*S84-EXP(-1*'Option vs Time'!$A$3*O84)*'Option vs Time'!$A$9*T84,-1*'Option vs Time'!$A$6*S84+EXP(-1*'Option vs Time'!$A$3*O84)*'Option vs Time'!$A$9*T84) -> 81.64658388 | Q84: =(LN('Option vs Time'!$A$6/'Option vs Time'!$A$9)+('Option vs Time'!$A$3+0.5*'Option vs Time'!$A$15^2)*O84)/('Option vs Time'!$A$15*SQRT(O84)) -> 1.79487717 | R84: =Q84-'Option vs Time'!$A$15*SQRT(O84) -> 0.4384111583 | S84: 0.9636633639 | T84: 0.6694558704 | U84: 0.6218085242
D85: 47.000001 | E85: =IF($C$4, 'Other Graphs'!$A$6*H85-EXP(-1*'Other Graphs'!$A$3*D85)*'Other Graphs'!$A$9*I85,-1*'Other Graphs'!$A$6*H85+EXP(-1*'Other Graphs'!$A$3*D85)*'Other Graphs'!$A$9*I85) -> 91.94734929 | F85: =(LN('Other Graphs'!$A$6/'Other Graphs'!$A$9)+('Other Graphs'!$A$3+0.5*'Other Graphs'!$A$15^2)*D85)/('Other Graphs'!$A$15*SQRT(D85)) -> 1.885305035 | G85: =F85-'Other Graphs'!$A$15*SQRT(D85) -> 0.5141741005 | H85: 0.9703056666 | I85: 0.6964348632 | J85: =(F85*SQRT(D85)+SQRT(F85^2*D85-2*D85*LN('Other Graphs'!$A$6/'Other Graphs'!$A$9)-2*Data!D85^2*'Other Graphs'!$A$3))/D85 -> 0.35 | K85: =(F85*SQRT(D85)-SQRT(F85^2*D85-2*D85*LN('Other Graphs'!$A$6/'Other Graphs'!$A$9)-2*Data!D85^2*'Other Graphs'!$A$3))/D85 -> 0.2 | O85: 47.000001 | P85: =IF($C$4, 'Option vs Time'!$A$6*S85-EXP(-1*'Option vs Time'!$A$3*O85)*'Option vs Time'!$A$9*T85,-1*'Option vs Time'!$A$6*S85+EXP(-1*'Option vs Time'!$A$3*O85)*'Option vs Time'!$A$9*T85) -> 82.2683924 | Q85: =(LN('Option vs Time'!$A$6/'Option vs Time'!$A$9)+('Option vs Time'!$A$3+0.5*'Option vs Time'!$A$15^2)*O85)/('Option vs Time'!$A$15*SQRT(O85)) -> 1.815792943 | R85: =Q85-'Option vs Time'!$A$15*SQRT(O85) -> 0.4446620084 | S85: 0.9652989299 | T85: 0.6717179857 | U85: 0.6005864874
D86: 48.000001 | E86: =IF($C$4, 'Other Graphs'!$A$6*H86-EXP(-1*'Other Graphs'!$A$3*D86)*'Other Graphs'!$A$9*I86,-1*'Other Graphs'!$A$6*H86+EXP(-1*'Other Graphs'!$A$3*D86)*'Other Graphs'!$A$9*I86) -> 92.5622821 | F86: =(LN('Other Graphs'!$A$6/'Other Graphs'!$A$9)+('Other Graphs'!$A$3+0.5*'Other Graphs'!$A$15^2)*D86)/('Other Graphs'!$A$15*SQRT(D86)) -> 1.905255908 | G86: =F86-'Other Graphs'!$A$15*SQRT(D86) -> 0.5196152477 | H86: 0.971626593 | I86: 0.6983341157 | J86: =(F86*SQRT(D86)+SQRT(F86^2*D86-2*D86*LN('Other Graphs'!$A$6/'Other Graphs'!$A$9)-2*Data!D86^2*'Other Graphs'!$A$3))/D86 -> 0.35 | K86: =(F86*SQRT(D86)-SQRT(F86^2*D86-2*D86*LN('Other Graphs'!$A$6/'Other Graphs'!$A$9)-2*Data!D86^2*'Other Graphs'!$A$3))/D86 -> 0.2 | O86: 48.000001 | P86: =IF($C$4, 'Option vs Time'!$A$6*S86-EXP(-1*'Option vs Time'!$A$3*O86)*'Option vs Time'!$A$9*T86,-1*'Option vs Time'!$A$6*S86+EXP(-1*'Option vs Time'!$A$3*O86)*'Option vs Time'!$A$9*T86) -> 82.86897889 | Q86: =(LN('Option vs Time'!$A$6/'Option vs Time'!$A$9)+('Option vs Time'!$A$3+0.5*'Option vs Time'!$A$15^2)*O86)/('Option vs Time'!$A$15*SQRT(O86)) -> 1.836471711 | R86: =Q86-'Option vs Time'!$A$15*SQRT(O86) -> 0.4508310509 | S86: 0.9668560389 | T86: 0.6739443399 | U86: 0.5801057448
D87: 49.000001 | E87: =IF($C$4, 'Other Graphs'!$A$6*H87-EXP(-1*'Other Graphs'!$A$3*D87)*'Other Graphs'!$A$9*I87,-1*'Other Graphs'!$A$6*H87+EXP(-1*'Other Graphs'!$A$3*D87)*'Other Graphs'!$A$9*I87) -> 93.15605381 | F87: =(LN('Other Graphs'!$A$6/'Other Graphs'!$A$9)+('Other Graphs'!$A$3+0.5*'Other Graphs'!$A$15^2)*D87)/('Other Graphs'!$A$15*SQRT(D87)) -> 1.92500002 | G87: =F87-'Other Graphs'!$A$15*SQRT(D87) -> 0.5250000054 | H87: 0.9728853221 | I87: 0.7002084064 | J87: =(F87*SQRT(D87)+SQRT(F87^2*D87-2*D87*LN('Other Graphs'!$A$6/'Other Graphs'!$A$9)-2*Data!D87^2*'Other Graphs'!$A$3))/D87 -> 0.35 | K87: =(F87*SQRT(D87)-SQRT(F87^2*D87-2*D87*LN('Other Graphs'!$A$6/'Other Graphs'!$A$9)-2*Data!D87^2*'Other Graphs'!$A$3))/D87 -> 0.2 | O87: 49.000001 | P87: =IF($C$4, 'Option vs Time'!$A$6*S87-EXP(-1*'Option vs Time'!$A$3*O87)*'Option vs Time'!$A$9*T87,-1*'Option vs Time'!$A$6*S87+EXP(-1*'Option vs Time'!$A$3*O87)*'Option vs Time'!$A$9*T87) -> 83.44908463 | Q87: =(LN('Option vs Time'!$A$6/'Option vs Time'!$A$9)+('Option vs Time'!$A$3+0.5*'Option vs Time'!$A$15^2)*O87)/('Option vs Time'!$A$15*SQRT(O87)) -> 1.85692132 | R87: =Q87-'Option vs Time'!$A$15*SQRT(O87) -> 0.4569213062 | S87: 0.9683388256 | T87: 0.6761361954 | U87: 0.560338661
D88: 50.000001 | E88: =IF($C$4, 'Other Graphs'!$A$6*H88-EXP(-1*'Other Graphs'!$A$3*D88)*'Other Graphs'!$A$9*I88,-1*'Other Graphs'!$A$6*H88+EXP(-1*'Other Graphs'!$A$3*D88)*'Other Graphs'!$A$9*I88) -> 93.72941328 | F88: =(LN('Other Graphs'!$A$6/'Other Graphs'!$A$9)+('Other Graphs'!$A$3+0.5*'Other Graphs'!$A$15^2)*D88)/('Other Graphs'!$A$15*SQRT(D88)) -> 1.944543668 | G88: =F88-'Other Graphs'!$A$15*SQRT(D88) -> 0.5303300912 | H88: 0.9740850376 | I88: 0.7020584566 | J88: =(F88*SQRT(D88)+SQRT(F88^2*D88-2*D88*LN('Other Graphs'!$A$6/'Other Graphs'!$A$9)-2*Data!D88^2*'Other Graphs'!$A$3))/D88 -> 0.35 | K88: =(F88*SQRT(D88)-SQRT(F88^2*D88-2*D88*LN('Other Graphs'!$A$6/'Other Graphs'!$A$9)-2*Data!D88^2*'Other Graphs'!$A$3))/D88 -> 0.2 | O88: 50.000001 | P88: =IF($C$4, 'Option vs Time'!$A$6*S88-EXP(-1*'Option vs Time'!$A$3*O88)*'Option vs Time'!$A$9*T88,-1*'Option vs Time'!$A$6*S88+EXP(-1*'Option vs Time'!$A$3*O88)*'Option vs Time'!$A$9*T88) -> 84.00942329 | Q88: =(LN('Option vs Time'!$A$6/'Option vs Time'!$A$9)+('Option vs Time'!$A$3+0.5*'Option vs Time'!$A$15^2)*O88)/('Option vs Time'!$A$15*SQRT(O88)) -> 1.877149194 | R88: =Q88-'Option vs Time'!$A$15*SQRT(O88) -> 0.4629356174 | S88: 0.9697511757 | T88: 0.6782947418 | U88: 0.5412588111
D89: 51.000001 | E89: =IF($C$4, 'Other Graphs'!$A$6*H89-EXP(-1*'Other Graphs'!$A$3*D89)*'Other Graphs'!$A$9*I89,-1*'Other Graphs'!$A$6*H89+EXP(-1*'Other Graphs'!$A$3*D89)*'Other Graphs'!$A$9*I89) -> 94.28308092 | F89: =(LN('Other Graphs'!$A$6/'Other Graphs'!$A$9)+('Other Graphs'!$A$3+0.5*'Other Graphs'!$A$15^2)*D89)/('Other Graphs'!$A$15*SQRT(D89)) -> 1.963892837 | G89: =F89-'Other Graphs'!$A$15*SQRT(D89) -> 0.5356071374 | H89: 0.9752287396 | I89: 0.7038849525 | J89: =(F89*SQRT(D89)+SQRT(F89^2*D89-2*D89*LN('Other Graphs'!$A$6/'Other Graphs'!$A$9)-2*Data!D89^2*'Other Graphs'!$A$3))/D89 -> 0.35 | K89: =(F89*SQRT(D89)-SQRT(F89^2*D89-2*D89*LN('Other Graphs'!$A$6/'Other Graphs'!$A$9)-2*Data!D89^2*'Other Graphs'!$A$3))/D89 -> 0.2 | O89: 51.000001 | P89: =IF($C$4, 'Option vs Time'!$A$6*S89-EXP(-1*'Option vs Time'!$A$3*O89)*'Option vs Time'!$A$9*T89,-1*'Option vs Time'!$A$6*S89+EXP(-1*'Option vs Time'!$A$3*O89)*'Option vs Time'!$A$9*T89) -> 84.5506821 | Q89: =(LN('Option vs Time'!$A$6/'Option vs Time'!$A$9)+('Option vs Time'!$A$3+0.5*'Option vs Time'!$A$15^2)*O89)/('Option vs Time'!$A$15*SQRT(O89)) -> 1.897162364 | R89: =Q89-'Option vs Time'!$A$15*SQRT(O89) -> 0.4688766648 | S89: 0.9710967438 | T89: 0.6804211016 | U89: 0.522840909
D90: 52.000001 | E90: =IF($C$4, 'Other Graphs'!$A$6*H90-EXP(-1*'Other Graphs'!$A$3*D90)*'Other Graphs'!$A$9*I90,-1*'Other Graphs'!$A$6*H90+EXP(-1*'Other Graphs'!$A$3*D90)*'Other Graphs'!$A$9*I90) -> 94.8177499 | F90: =(LN('Other Graphs'!$A$6/'Other Graphs'!$A$9)+('Other Graphs'!$A$3+0.5*'Other Graphs'!$A$15^2)*D90)/('Other Graphs'!$A$15*SQRT(D90)) -> 1.983053221 | G90: =F90-'Other Graphs'!$A$15*SQRT(D90) -> 0.5408326965 | H90: 0.9763192575 | I90: 0.705688548 | J90: =(F90*SQRT(D90)+SQRT(F90^2*D90-2*D90*LN('Other Graphs'!$A$6/'Other Graphs'!$A$9)-2*Data!D90^2*'Other Graphs'!$A$3))/D90 -> 0.35 | K90: =(F90*SQRT(D90)-SQRT(F90^2*D90-2*D90*LN('Other Graphs'!$A$6/'Other Graphs'!$A$9)-2*Data!D90^2*'Other Graphs'!$A$3))/D90 -> 0.2 | O90: 52.000001 | P90: =IF($C$4, 'Option vs Time'!$A$6*S90-EXP(-1*'Option vs Time'!$A$3*O90)*'Option vs Time'!$A$9*T90,-1*'Option vs Time'!$A$6*S90+EXP(-1*'Option vs Time'!$A$3*O90)*'Option vs Time'!$A$9*T90) -> 85.07352301 | Q90: =(LN('Option vs Time'!$A$6/'Option vs Time'!$A$9)+('Option vs Time'!$A$3+0.5*'Option vs Time'!$A$15^2)*O90)/('Option vs Time'!$A$15*SQRT(O90)) -> 1.916967502 | R90: =Q90-'Option vs Time'!$A$15*SQRT(O90) -> 0.4747469779 | S90: 0.9723789698 | T90: 0.6825163353 | U90: 0.5050607415
D91: 53.000001 | E91: =IF($C$4, 'Other Graphs'!$A$6*H91-EXP(-1*'Other Graphs'!$A$3*D91)*'Other Graphs'!$A$9*I91,-1*'Other Graphs'!$A$6*H91+EXP(-1*'Other Graphs'!$A$3*D91)*'Other Graphs'!$A$9*I91) -> 95.3340874 | F91: =(LN('Other Graphs'!$A$6/'Other Graphs'!$A$9)+('Other Graphs'!$A$3+0.5*'Other Graphs'!$A$15^2)*D91)/('Other Graphs'!$A$15*SQRT(D91)) -> 2.002030238 | G91: =F91-'Other Graphs'!$A$15*SQRT(D91) -> 0.5460082468 | H91: 0.9773592603 | I91: 0.7074698658 | J91: =(F91*SQRT(D91)+SQRT(F91^2*D91-2*D91*LN('Other Graphs'!$A$6/'Other Graphs'!$A$9)-2*Data!D91^2*'Other Graphs'!$A$3))/D91 -> 0.35 | K91: =(F91*SQRT(D91)-SQRT(F91^2*D91-2*D91*LN('Other Graphs'!$A$6/'Other Graphs'!$A$9)-2*Data!D91^2*'Other Graphs'!$A$3))/D91 -> 0.2 | O91: 53.000001 | P91: =IF($C$4, 'Option vs Time'!$A$6*S91-EXP(-1*'Option vs Time'!$A$3*O91)*'Option vs Time'!$A$9*T91,-1*'Option vs Time'!$A$6*S91+EXP(-1*'Option vs Time'!$A$3*O91)*'Option vs Time'!$A$9*T91) -> 85.57858375 | Q91: =(LN('Option vs Time'!$A$6/'Option vs Time'!$A$9)+('Option vs Time'!$A$3+0.5*'Option vs Time'!$A$15^2)*O91)/('Option vs Time'!$A$15*SQRT(O91)) -> 1.936570939 | R91: =Q91-'Option vs Time'!$A$15*SQRT(O91) -> 0.4805489472 | S91: 0.9736010934 | T91: 0.6845814464 | U91: 0.4878951079
D92: 54.000001 | E92: =IF($C$4, 'Other Graphs'!$A$6*H92-EXP(-1*'Other Graphs'!$A$3*D92)*'Other Graphs'!$A$9*I92,-1*'Other Graphs'!$A$6*H92+EXP(-1*'Other Graphs'!$A$3*D92)*'Other Graphs'!$A$9*I92) -> 95.83273571 | F92: =(LN('Other Graphs'!$A$6/'Other Graphs'!$A$9)+('Other Graphs'!$A$3+0.5*'Other Graphs'!$A$15^2)*D92)/('Other Graphs'!$A$15*SQRT(D92)) -> 2.020829057 | G92: =F92-'Other Graphs'!$A$15*SQRT(D92) -> 0.5511351972 | H92: 0.9783512681 | I92: 0.7092295005 | J92: =(F92*SQRT(D92)+SQRT(F92^2*D92-2*D92*LN('Other Graphs'!$A$6/'Other Graphs'!$A$9)-2*Data!D92^2*'Other Graphs'!$A$3))/D92 -> 0.35 | K92: =(F92*SQRT(D92)-SQRT(F92^2*D92-2*D92*LN('Other Graphs'!$A$6/'Other Graphs'!$A$9)-2*Data!D92^2*'Other Graphs'!$A$3))/D92 -> 0.2 | O92: 54.000001 | P92: =IF($C$4, 'Option vs Time'!$A$6*S92-EXP(-1*'Option vs Time'!$A$3*O92)*'Option vs Time'!$A$9*T92,-1*'Option vs Time'!$A$6*S92+EXP(-1*'Option vs Time'!$A$3*O92)*'Option vs Time'!$A$9*T92) -> 86.06647886 | Q92: =(LN('Option vs Time'!$A$6/'Option vs Time'!$A$9)+('Option vs Time'!$A$3+0.5*'Option vs Time'!$A$15^2)*O92)/('Option vs Time'!$A$15*SQRT(O92)) -> 1.955978694 | R92: =Q92-'Option vs Time'!$A$15*SQRT(O92) -> 0.4862848345 | S92: 0.974766168 | T92: 0.6866173849 | U92: 0.4713217647
D93: 55.000001 | E93: =IF($C$4, 'Other Graphs'!$A$6*H93-EXP(-1*'Other Graphs'!$A$3*D93)*'Other Graphs'!$A$9*I93,-1*'Other Graphs'!$A$6*H93+EXP(-1*'Other Graphs'!$A$3*D93)*'Other Graphs'!$A$9*I93) -> 96.31431335 | F93: =(LN('Other Graphs'!$A$6/'Other Graphs'!$A$9)+('Other Graphs'!$A$3+0.5*'Other Graphs'!$A$15^2)*D93)/('Other Graphs'!$A$15*SQRT(D93)) -> 2.039454602 | G93: =F93-'Other Graphs'!$A$15*SQRT(D93) -> 0.5562148916 | H93: 0.9792976612 | I93: 0.7109680199 | J93: =(F93*SQRT(D93)+SQRT(F93^2*D93-2*D93*LN('Other Graphs'!$A$6/'Other Graphs'!$A$9)-2*Data!D93^2*'Other Graphs'!$A$3))/D93 -> 0.35 | K93: =(F93*SQRT(D93)-SQRT(F93^2*D93-2*D93*LN('Other Graphs'!$A$6/'Other Graphs'!$A$9)-2*Data!D93^2*'Other Graphs'!$A$3))/D93 -> 0.2 | O93: 55.000001 | P93: =IF($C$4, 'Option vs Time'!$A$6*S93-EXP(-1*'Option vs Time'!$A$3*O93)*'Option vs Time'!$A$9*T93,-1*'Option vs Time'!$A$6*S93+EXP(-1*'Option vs Time'!$A$3*O93)*'Option vs Time'!$A$9*T93) -> 86.53780063 | Q93: =(LN('Option vs Time'!$A$6/'Option vs Time'!$A$9)+('Option vs Time'!$A$3+0.5*'Option vs Time'!$A$15^2)*O93)/('Option vs Time'!$A$15*SQRT(O93)) -> 1.975196493 | R93: =Q93-'Option vs Time'!$A$15*SQRT(O93) -> 0.4919567821 | S93: 0.9758770731 | T93: 0.688625052 | U93: 0.4553193743
D94: 56.000001 | E94: =IF($C$4, 'Other Graphs'!$A$6*H94-EXP(-1*'Other Graphs'!$A$3*D94)*'Other Graphs'!$A$9*I94,-1*'Other Graphs'!$A$6*H94+EXP(-1*'Other Graphs'!$A$3*D94)*'Other Graphs'!$A$9*I94) -> 96.779416 | F94: =(LN('Other Graphs'!$A$6/'Other Graphs'!$A$9)+('Other Graphs'!$A$3+0.5*'Other Graphs'!$A$15^2)*D94)/('Other Graphs'!$A$15*SQRT(D94)) -> 2.057911581 | G94: =F94-'Other Graphs'!$A$15*SQRT(D94) -> 0.561248613 | H94: 0.9802006891 | I94: 0.7126859664 | J94: =(F94*SQRT(D94)+SQRT(F94^2*D94-2*D94*LN('Other Graphs'!$A$6/'Other Graphs'!$A$9)-2*Data!D94^2*'Other Graphs'!$A$3))/D94 -> 0.35 | K94: =(F94*SQRT(D94)-SQRT(F94^2*D94-2*D94*LN('Other Graphs'!$A$6/'Other Graphs'!$A$9)-2*Data!D94^2*'Other Graphs'!$A$3))/D94 -> 0.2 | O94: 56.000001 | P94: =IF($C$4, 'Option vs Time'!$A$6*S94-EXP(-1*'Option vs Time'!$A$3*O94)*'Option vs Time'!$A$9*T94,-1*'Option vs Time'!$A$6*S94+EXP(-1*'Option vs Time'!$A$3*O94)*'Option vs Time'!$A$9*T94) -> 86.99312 | Q94: =(LN('Option vs Time'!$A$6/'Option vs Time'!$A$9)+('Option vs Time'!$A$3+0.5*'Option vs Time'!$A$15^2)*O94)/('Option vs Time'!$A$15*SQRT(O94)) -> 1.994229789 | R94: =Q94-'Option vs Time'!$A$15*SQRT(O94) -> 0.497566821 | S94: 0.976936526 | T94: 0.6906053029 | U94: 0.439867458
D95: 57.000001 | E95: =IF($C$4, 'Other Graphs'!$A$6*H95-EXP(-1*'Other Graphs'!$A$3*D95)*'Other Graphs'!$A$9*I95,-1*'Other Graphs'!$A$6*H95+EXP(-1*'Other Graphs'!$A$3*D95)*'Other Graphs'!$A$9*I95) -> 97.22861753 | F95: =(LN('Other Graphs'!$A$6/'Other Graphs'!$A$9)+('Other Graphs'!$A$3+0.5*'Other Graphs'!$A$15^2)*D95)/('Other Graphs'!$A$15*SQRT(D95)) -> 2.076204488 | G95: =F95-'Other Graphs'!$A$15*SQRT(D95) -> 0.5662375876 | H95: 0.9810624788 | I95: 0.7143838593 | J95: =(F95*SQRT(D95)+SQRT(F95^2*D95-2*D95*LN('Other Graphs'!$A$6/'Other Graphs'!$A$9)-2*Data!D95^2*'Other Graphs'!$A$3))/D95 -> 0.35 | K95: =(F95*SQRT(D95)-SQRT(F95^2*D95-2*D95*LN('Other Graphs'!$A$6/'Other Graphs'!$A$9)-2*Data!D95^2*'Other Graphs'!$A$3))/D95 -> 0.2 | O95: 57.000001 | P95: =IF($C$4, 'Option vs Time'!$A$6*S95-EXP(-1*'Option vs Time'!$A$3*O95)*'Option vs Time'!$A$9*T95,-1*'Option vs Time'!$A$6*S95+EXP(-1*'Option vs Time'!$A$3*O95)*'Option vs Time'!$A$9*T95) -> 87.43298746 | Q95: =(LN('Option vs Time'!$A$6/'Option vs Time'!$A$9)+('Option vs Time'!$A$3+0.5*'Option vs Time'!$A$15^2)*O95)/('Option vs Time'!$A$15*SQRT(O95)) -> 2.01308378 | R95: =Q95-'Option vs Time'!$A$15*SQRT(O95) -> 0.5031168796 | S95: 0.9779470918 | T95: 0.6925589501 | U95: 0.4249463523
D96: 58.000001 | E96: =IF($C$4, 'Other Graphs'!$A$6*H96-EXP(-1*'Other Graphs'!$A$3*D96)*'Other Graphs'!$A$9*I96,-1*'Other Graphs'!$A$6*H96+EXP(-1*'Other Graphs'!$A$3*D96)*'Other Graphs'!$A$9*I96) -> 97.66247085 | F96: =(LN('Other Graphs'!$A$6/'Other Graphs'!$A$9)+('Other Graphs'!$A$3+0.5*'Other Graphs'!$A$15^2)*D96)/('Other Graphs'!$A$15*SQRT(D96)) -> 2.094337622 | G96: =F96-'Other Graphs'!$A$15*SQRT(D96) -> 0.5711829879 | H96: 0.9818850424 | I96: 0.7160621956 | J96: =(F96*SQRT(D96)+SQRT(F96^2*D96-2*D96*LN('Other Graphs'!$A$6/'Other Graphs'!$A$9)-2*Data!D96^2*'Other Graphs'!$A$3))/D96 -> 0.35 | K96: =(F96*SQRT(D96)-SQRT(F96^2*D96-2*D96*LN('Other Graphs'!$A$6/'Other Graphs'!$A$9)-2*Data!D96^2*'Other Graphs'!$A$3))/D96 -> 0.2 | O96: 58.000001 | P96: =IF($C$4, 'Option vs Time'!$A$6*S96-EXP(-1*'Option vs Time'!$A$3*O96)*'Option vs Time'!$A$9*T96,-1*'Option vs Time'!$A$6*S96+EXP(-1*'Option vs Time'!$A$3*O96)*'Option vs Time'!$A$9*T96) -> 87.85793381 | Q96: =(LN('Option vs Time'!$A$6/'Option vs Time'!$A$9)+('Option vs Time'!$A$3+0.5*'Option vs Time'!$A$15^2)*O96)/('Option vs Time'!$A$15*SQRT(O96)) -> 2.031763424 | R96: =Q96-'Option vs Time'!$A$15*SQRT(O96) -> 0.5086087898 | S96: 0.9789111942 | T96: 0.6944867667 | U96: 0.4105371681
D97: 59.000001 | E97: =IF($C$4, 'Other Graphs'!$A$6*H97-EXP(-1*'Other Graphs'!$A$3*D97)*'Other Graphs'!$A$9*I97,-1*'Other Graphs'!$A$6*H97+EXP(-1*'Other Graphs'!$A$3*D97)*'Other Graphs'!$A$9*I97) -> 98.08150878 | F97: =(LN('Other Graphs'!$A$6/'Other Graphs'!$A$9)+('Other Graphs'!$A$3+0.5*'Other Graphs'!$A$15^2)*D97)/('Other Graphs'!$A$15*SQRT(D97)) -> 2.112315099 | G97: =F97-'Other Graphs'!$A$15*SQRT(D97) -> 0.576085936 | H97: 0.9826702842 | I97: 0.7177214514 | J97: =(F97*SQRT(D97)+SQRT(F97^2*D97-2*D97*LN('Other Graphs'!$A$6/'Other Graphs'!$A$9)-2*Data!D97^2*'Other Graphs'!$A$3))/D97 -> 0.35 | K97: =(F97*SQRT(D97)-SQRT(F97^2*D97-2*D97*LN('Other Graphs'!$A$6/'Other Graphs'!$A$9)-2*Data!D97^2*'Other Graphs'!$A$3))/D97 -> 0.2 | O97: 59.000001 | P97: =IF($C$4, 'Option vs Time'!$A$6*S97-EXP(-1*'Option vs Time'!$A$3*O97)*'Option vs Time'!$A$9*T97,-1*'Option vs Time'!$A$6*S97+EXP(-1*'Option vs Time'!$A$3*O97)*'Option vs Time'!$A$9*T97) -> 88.26847098 | Q97: =(LN('Option vs Time'!$A$6/'Option vs Time'!$A$9)+('Option vs Time'!$A$3+0.5*'Option vs Time'!$A$15^2)*O97)/('Option vs Time'!$A$15*SQRT(O97)) -> 2.050273457 | R97: =Q97-'Option vs Time'!$A$15*SQRT(O97) -> 0.5140442939 | S97: 0.9798311234 | T97: 0.6963894885 | U97: 0.3966217531
D98: 60.000001 | E98: =IF($C$4, 'Other Graphs'!$A$6*H98-EXP(-1*'Other Graphs'!$A$3*D98)*'Other Graphs'!$A$9*I98,-1*'Other Graphs'!$A$6*H98+EXP(-1*'Other Graphs'!$A$3*D98)*'Other Graphs'!$A$9*I98) -> 98.48624486 | F98: =(LN('Other Graphs'!$A$6/'Other Graphs'!$A$9)+('Other Graphs'!$A$3+0.5*'Other Graphs'!$A$15^2)*D98)/('Other Graphs'!$A$15*SQRT(D98)) -> 2.130140858 | G98: =F98-'Other Graphs'!$A$15*SQRT(D98) -> 0.5809475068 | H98: 0.983420007 | I98: 0.7193620836 | J98: =(F98*SQRT(D98)+SQRT(F98^2*D98-2*D98*LN('Other Graphs'!$A$6/'Other Graphs'!$A$9)-2*Data!D98^2*'Other Graphs'!$A$3))/D98 -> 0.35 | K98: =(F98*SQRT(D98)-SQRT(F98^2*D98-2*D98*LN('Other Graphs'!$A$6/'Other Graphs'!$A$9)-2*Data!D98^2*'Other Graphs'!$A$3))/D98 -> 0.2 | O98: 60.000001 | P98: =IF($C$4, 'Option vs Time'!$A$6*S98-EXP(-1*'Option vs Time'!$A$3*O98)*'Option vs Time'!$A$9*T98,-1*'Option vs Time'!$A$6*S98+EXP(-1*'Option vs Time'!$A$3*O98)*'Option vs Time'!$A$9*T98) -> 88.66509273 | Q98: =(LN('Option vs Time'!$A$6/'Option vs Time'!$A$9)+('Option vs Time'!$A$3+0.5*'Option vs Time'!$A$15^2)*O98)/('Option vs Time'!$A$15*SQRT(O98)) -> 2.068618402 | R98: =Q98-'Option vs Time'!$A$15*SQRT(O98) -> 0.5194250508 | S98: 0.9807090451 | T98: 0.698267817 | U98: 0.3831826567
D99: 61.000001 | E99: =IF($C$4, 'Other Graphs'!$A$6*H99-EXP(-1*'Other Graphs'!$A$3*D99)*'Other Graphs'!$A$9*I99,-1*'Other Graphs'!$A$6*H99+EXP(-1*'Other Graphs'!$A$3*D99)*'Other Graphs'!$A$9*I99) -> 98.87717414 | F99: =(LN('Other Graphs'!$A$6/'Other Graphs'!$A$9)+('Other Graphs'!$A$3+0.5*'Other Graphs'!$A$15^2)*D99)/('Other Graphs'!$A$15*SQRT(D99)) -> 2.147818678 | G99: =F99-'Other Graphs'!$A$15*SQRT(D99) -> 0.5857687305 | H99: 0.9841359187 | I99: 0.7209845302 | J99: =(F99*SQRT(D99)+SQRT(F99^2*D99-2*D99*LN('Other Graphs'!$A$6/'Other Graphs'!$A$9)-2*Data!D99^2*'Other Graphs'!$A$3))/D99 -> 0.35 | K99: =(F99*SQRT(D99)-SQRT(F99^2*D99-2*D99*LN('Other Graphs'!$A$6/'Other Graphs'!$A$9)-2*Data!D99^2*'Other Graphs'!$A$3))/D99 -> 0.2 | O99: 61.000001 | P99: =IF($C$4, 'Option vs Time'!$A$6*S99-EXP(-1*'Option vs Time'!$A$3*O99)*'Option vs Time'!$A$9*T99,-1*'Option vs Time'!$A$6*S99+EXP(-1*'Option vs Time'!$A$3*O99)*'Option vs Time'!$A$9*T99) -> 89.04827539 | Q99: =(LN('Option vs Time'!$A$6/'Option vs Time'!$A$9)+('Option vs Time'!$A$3+0.5*'Option vs Time'!$A$15^2)*O99)/('Option vs Time'!$A$15*SQRT(O99)) -> 2.086802589 | R99: =Q99-'Option vs Time'!$A$15*SQRT(O99) -> 0.5247526408 | S99: 0.9815470085 | T99: 0.700122421 | U99: 0.3702030971
D100: 62.000001 | E100: =IF($C$4, 'Other Graphs'!$A$6*H100-EXP(-1*'Other Graphs'!$A$3*D100)*'Other Graphs'!$A$9*I100,-1*'Other Graphs'!$A$6*H100+EXP(-1*'Other Graphs'!$A$3*D100)*'Other Graphs'!$A$9*I100) -> 99.25477388 | F100: =(LN('Other Graphs'!$A$6/'Other Graphs'!$A$9)+('Other Graphs'!$A$3+0.5*'Other Graphs'!$A$15^2)*D100)/('Other Graphs'!$A$15*SQRT(D100)) -> 2.165352183 | G100: =F100-'Other Graphs'!$A$15*SQRT(D100) -> 0.5905505953 | H100: 0.9848196375 | I100: 0.7225892121 | J100: =(F100*SQRT(D100)+SQRT(F100^2*D100-2*D100*LN('Other Graphs'!$A$6/'Other Graphs'!$A$9)-2*Data!D100^2*'Other Graphs'!$A$3))/D100 -> 0.35 | K100: =(F100*SQRT(D100)-SQRT(F100^2*D100-2*D100*LN('Other Graphs'!$A$6/'Other Graphs'!$A$9)-2*Data!D100^2*'Other Graphs'!$A$3))/D100 -> 0.2 | O100: 62.000001 | P100: =IF($C$4, 'Option vs Time'!$A$6*S100-EXP(-1*'Option vs Time'!$A$3*O100)*'Option vs Time'!$A$9*T100,-1*'Option vs Time'!$A$6*S100+EXP(-1*'Option vs Time'!$A$3*O100)*'Option vs Time'!$A$9*T100) -> 89.41847849 | Q100: =(LN('Option vs Time'!$A$6/'Option vs Time'!$A$9)+('Option vs Time'!$A$3+0.5*'Option vs Time'!$A$15^2)*O100)/('Option vs Time'!$A$15*SQRT(O100)) -> 2.104830159 | R100: =Q100-'Option vs Time'!$A$15*SQRT(O100) -> 0.5300285711 | S100: 0.9823469525 | T100: 0.7019539392 | U100: 0.3576669304
D101: 63.000001 | E101: =IF($C$4, 'Other Graphs'!$A$6*H101-EXP(-1*'Other Graphs'!$A$3*D101)*'Other Graphs'!$A$9*I101,-1*'Other Graphs'!$A$6*H101+EXP(-1*'Other Graphs'!$A$3*D101)*'Other Graphs'!$A$9*I101) -> 99.61950427 | F101: =(LN('Other Graphs'!$A$6/'Other Graphs'!$A$9)+('Other Graphs'!$A$3+0.5*'Other Graphs'!$A$15^2)*D101)/('Other Graphs'!$A$15*SQRT(D101)) -> 2.182744849 | G101: =F101-'Other Graphs'!$A$15*SQRT(D101) -> 0.5952940497 | H101: 0.9854726974 | I101: 0.7241765337 | J101: =(F101*SQRT(D101)+SQRT(F101^2*D101-2*D101*LN('Other Graphs'!$A$6/'Other Graphs'!$A$9)-2*Data!D101^2*'Other Graphs'!$A$3))/D101 -> 0.35 | K101: =(F101*SQRT(D101)-SQRT(F101^2*D101-2*D101*LN('Other Graphs'!$A$6/'Other Graphs'!$A$9)-2*Data!D101^2*'Other Graphs'!$A$3))/D101 -> 0.2 | O101: 63.000001 | P101: =IF($C$4, 'Option vs Time'!$A$6*S101-EXP(-1*'Option vs Time'!$A$3*O101)*'Option vs Time'!$A$9*T101,-1*'Option vs Time'!$A$6*S101+EXP(-1*'Option vs Time'!$A$3*O101)*'Option vs Time'!$A$9*T101) -> 89.77614542 | Q101: =(LN('Option vs Time'!$A$6/'Option vs Time'!$A$9)+('Option vs Time'!$A$3+0.5*'Option vs Time'!$A$15^2)*O101)/('Option vs Time'!$A$15*SQRT(O101)) -> 2.12270508 | R101: =Q101-'Option vs Time'!$A$15*SQRT(O101) -> 0.5352542804 | S101: 0.9831107135 | T101: 0.7037629818 | U101: 0.3455586219
D102: 64.000001 | E102: =IF($C$4, 'Other Graphs'!$A$6*H102-EXP(-1*'Other Graphs'!$A$3*D102)*'Other Graphs'!$A$9*I102,-1*'Other Graphs'!$A$6*H102+EXP(-1*'Other Graphs'!$A$3*D102)*'Other Graphs'!$A$9*I102) -> 99.97180908 | F102: =(LN('Other Graphs'!$A$6/'Other Graphs'!$A$9)+('Other Graphs'!$A$3+0.5*'Other Graphs'!$A$15^2)*D102)/('Other Graphs'!$A$15*SQRT(D102)) -> 2.200000017 | G102: =F102-'Other Graphs'!$A$15*SQRT(D102) -> 0.6000000047 | H102: 0.9860965531 | I102: 0.7257468838 | J102: =(F102*SQRT(D102)+SQRT(F102^2*D102-2*D102*LN('Other Graphs'!$A$6/'Other Graphs'!$A$9)-2*Data!D102^2*'Other Graphs'!$A$3))/D102 -> 0.35 | K102: =(F102*SQRT(D102)-SQRT(F102^2*D102-2*D102*LN('Other Graphs'!$A$6/'Other Graphs'!$A$9)-2*Data!D102^2*'Other Graphs'!$A$3))/D102 -> 0.2 | O102: 64.000001 | P102: =IF($C$4, 'Option vs Time'!$A$6*S102-EXP(-1*'Option vs Time'!$A$3*O102)*'Option vs Time'!$A$9*T102,-1*'Option vs Time'!$A$6*S102+EXP(-1*'Option vs Time'!$A$3*O102)*'Option vs Time'!$A$9*T102) -> 90.12170404 | Q102: =(LN('Option vs Time'!$A$6/'Option vs Time'!$A$9)+('Option vs Time'!$A$3+0.5*'Option vs Time'!$A$15^2)*O102)/('Option vs Time'!$A$15*SQRT(O102)) -> 2.140431155 | R102: =Q102-'Option vs Time'!$A$15*SQRT(O102) -> 0.5404311428 | S102: 0.9838400305 | T102: 0.7055501323 | U102: 0.3338632189
D103: 65.000001 | E103: =IF($C$4, 'Other Graphs'!$A$6*H103-EXP(-1*'Other Graphs'!$A$3*D103)*'Other Graphs'!$A$9*I103,-1*'Other Graphs'!$A$6*H103+EXP(-1*'Other Graphs'!$A$3*D103)*'Other Graphs'!$A$9*I103) -> 100.3121163 | F103: =(LN('Other Graphs'!$A$6/'Other Graphs'!$A$9)+('Other Graphs'!$A$3+0.5*'Other Graphs'!$A$15^2)*D103)/('Other Graphs'!$A$15*SQRT(D103)) -> 2.217120898 | G103: =F103-'Other Graphs'!$A$15*SQRT(D103) -> 0.6046693358 | H103: =IF($C$4,NORMSDIST(F103),NORMSDIST(-1*F103)) -> 0.9866925844 | I103: =IF($C$4,NORMSDIST(G103),NORMSDIST(-1*G103)) -> 0.7273006366 | J103: =(F103*SQRT(D103)+SQRT(F103^2*D103-2*D103*LN('Other Graphs'!$A$6/'Other Graphs'!$A$9)-2*Data!D103^2*'Other Graphs'!$A$3))/D103 -> 0.35 | K103: =(F103*SQRT(D103)-SQRT(F103^2*D103-2*D103*LN('Other Graphs'!$A$6/'Other Graphs'!$A$9)-2*Data!D103^2*'Other Graphs'!$A$3))/D103 -> 0.2 | O103: 65.000001 | P103: =IF($C$4, 'Option vs Time'!$A$6*S103-EXP(-1*'Option vs Time'!$A$3*O103)*'Option vs Time'!$A$9*T103,-1*'Option vs Time'!$A$6*S103+EXP(-1*'Option vs Time'!$A$3*O103)*'Option vs Time'!$A$9*T103) -> 90.45556726 | Q103: =(LN('Option vs Time'!$A$6/'Option vs Time'!$A$9)+('Option vs Time'!$A$3+0.5*'Option vs Time'!$A$15^2)*O103)/('Option vs Time'!$A$15*SQRT(O103)) -> 2.158012034 | R103: =Q103-'Option vs Time'!$A$15*SQRT(O103) -> 0.5455604719 | S103: =IF($C$4,NORMSDIST(Q103),NORMSDIST(-1*Q103)) -> 0.9845365519 | T103: =IF($C$4,NORMSDIST(R103),NORMSDIST(-1*R103)) -> 0.7073159491 | U103: =(P104-P103)/(O104-O103) -> 0.3225663254
D104: 66.000001 | E104: =IF($C$4, 'Other Graphs'!$A$6*H104-EXP(-1*'Other Graphs'!$A$3*D104)*'Other Graphs'!$A$9*I104,-1*'Other Graphs'!$A$6*H104+EXP(-1*'Other Graphs'!$A$3*D104)*'Other Graphs'!$A$9*I104) -> 100.6408388 | F104: =(LN('Other Graphs'!$A$6/'Other Graphs'!$A$9)+('Other Graphs'!$A$3+0.5*'Other Graphs'!$A$15^2)*D104)/('Other Graphs'!$A$15*SQRT(D104)) -> 2.234110578 | G104: =F104-'Other Graphs'!$A$15*SQRT(D104) -> 0.609302885 | H104: 0.9872621009 | I104: 0.7288381524 | J104: =(F104*SQRT(D104)+SQRT(F104^2*D104-2*D104*LN('Other Graphs'!$A$6/'Other Graphs'!$A$9)-2*Data!D104^2*'Other Graphs'!$A$3))/D104 -> 0.35 | K104: =(F104*SQRT(D104)-SQRT(F104^2*D104-2*D104*LN('Other Graphs'!$A$6/'Other Graphs'!$A$9)-2*Data!D104^2*'Other Graphs'!$A$3))/D104 -> 0.2 | O104: 66.000001 | P104: =IF($C$4, 'Option vs Time'!$A$6*S104-EXP(-1*'Option vs Time'!$A$3*O104)*'Option vs Time'!$A$9*T104,-1*'Option vs Time'!$A$6*S104+EXP(-1*'Option vs Time'!$A$3*O104)*'Option vs Time'!$A$9*T104) -> 90.77813358 | Q104: =(LN('Option vs Time'!$A$6/'Option vs Time'!$A$9)+('Option vs Time'!$A$3+0.5*'Option vs Time'!$A$15^2)*O104)/('Option vs Time'!$A$15*SQRT(O104)) -> 2.175451218 | R104: =Q104-'Option vs Time'!$A$15*SQRT(O104) -> 0.5506435247 | S104: 0.98520184 | T104: 0.709060967 | U104: 0.3116540779
D105: 67.000001 | E105: =IF($C$4, 'Other Graphs'!$A$6*H105-EXP(-1*'Other Graphs'!$A$3*D105)*'Other Graphs'!$A$9*I105,-1*'Other Graphs'!$A$6*H105+EXP(-1*'Other Graphs'!$A$3*D105)*'Other Graphs'!$A$9*I105) -> 100.9583747 | F105: =(LN('Other Graphs'!$A$6/'Other Graphs'!$A$9)+('Other Graphs'!$A$3+0.5*'Other Graphs'!$A$15^2)*D105)/('Other Graphs'!$A$15*SQRT(D105)) -> 2.250972029 | G105: =F105-'Other Graphs'!$A$15*SQRT(D105) -> 0.6139014625 | H105: 0.9878063455 | I105: 0.7303597781 | J105: =(F105*SQRT(D105)+SQRT(F105^2*D105-2*D105*LN('Other Graphs'!$A$6/'Other Graphs'!$A$9)-2*Data!D105^2*'Other Graphs'!$A$3))/D105 -> 0.35 | K105: =(F105*SQRT(D105)-SQRT(F105^2*D105-2*D105*LN('Other Graphs'!$A$6/'Other Graphs'!$A$9)-2*Data!D105^2*'Other Graphs'!$A$3))/D105 -> 0.2 | O105: 67.000001 | P105: =IF($C$4, 'Option vs Time'!$A$6*S105-EXP(-1*'Option vs Time'!$A$3*O105)*'Option vs Time'!$A$9*T105,-1*'Option vs Time'!$A$6*S105+EXP(-1*'Option vs Time'!$A$3*O105)*'Option vs Time'!$A$9*T105) -> 91.08978766 | Q105: =(LN('Option vs Time'!$A$6/'Option vs Time'!$A$9)+('Option vs Time'!$A$3+0.5*'Option vs Time'!$A$15^2)*O105)/('Option vs Time'!$A$15*SQRT(O105)) -> 2.192752071 | R105: =Q105-'Option vs Time'!$A$15*SQRT(O105) -> 0.5556815044 | S105: 0.9858373766 | T105: 0.7107856987 | U105: 0.3011131228
D106: 68.000001 | E106: =IF($C$4, 'Other Graphs'!$A$6*H106-EXP(-1*'Other Graphs'!$A$3*D106)*'Other Graphs'!$A$9*I106,-1*'Other Graphs'!$A$6*H106+EXP(-1*'Other Graphs'!$A$3*D106)*'Other Graphs'!$A$9*I106) -> 101.2651083 | F106: =(LN('Other Graphs'!$A$6/'Other Graphs'!$A$9)+('Other Graphs'!$A$3+0.5*'Other Graphs'!$A$15^2)*D106)/('Other Graphs'!$A$15*SQRT(D106)) -> 2.267708111 | G106: =F106-'Other Graphs'!$A$15*SQRT(D106) -> 0.6184658484 | H106: 0.9883264984 | I106: 0.7318658484 | J106: =(F106*SQRT(D106)+SQRT(F106^2*D106-2*D106*LN('Other Graphs'!$A$6/'Other Graphs'!$A$9)-2*Data!D106^2*'Other Graphs'!$A$3))/D106 -> 0.35 | K106: =(F106*SQRT(D106)-SQRT(F106^2*D106-2*D106*LN('Other Graphs'!$A$6/'Other Graphs'!$A$9)-2*Data!D106^2*'Other Graphs'!$A$3))/D106 -> 0.2 | O106: 68.000001 | P106: =IF($C$4, 'Option vs Time'!$A$6*S106-EXP(-1*'Option vs Time'!$A$3*O106)*'Option vs Time'!$A$9*T106,-1*'Option vs Time'!$A$6*S106+EXP(-1*'Option vs Time'!$A$3*O106)*'Option vs Time'!$A$9*T106) -> 91.39090078 | Q106: =(LN('Option vs Time'!$A$6/'Option vs Time'!$A$9)+('Option vs Time'!$A$3+0.5*'Option vs Time'!$A$15^2)*O106)/('Option vs Time'!$A$15*SQRT(O106)) -> 2.209917826 | R106: =Q106-'Option vs Time'!$A$15*SQRT(O106) -> 0.5606755637 | S106: 0.9864445671 | T106: 0.7124906357 | U106: 0.2909305949
D107: 69.000001 | E107: =IF($C$4, 'Other Graphs'!$A$6*H107-EXP(-1*'Other Graphs'!$A$3*D107)*'Other Graphs'!$A$9*I107,-1*'Other Graphs'!$A$6*H107+EXP(-1*'Other Graphs'!$A$3*D107)*'Other Graphs'!$A$9*I107) -> 101.5614102 | F107: =(LN('Other Graphs'!$A$6/'Other Graphs'!$A$9)+('Other Graphs'!$A$3+0.5*'Other Graphs'!$A$15^2)*D107)/('Other Graphs'!$A$15*SQRT(D107)) -> 2.284321579 | G107: =F107-'Other Graphs'!$A$15*SQRT(D107) -> 0.6229967942 | H107: 0.9888236807 | I107: 0.7333566858 | J107: =(F107*SQRT(D107)+SQRT(F107^2*D107-2*D107*LN('Other Graphs'!$A$6/'Other Graphs'!$A$9)-2*Data!D107^2*'Other Graphs'!$A$3))/D107 -> 0.35 | K107: =(F107*SQRT(D107)-SQRT(F107^2*D107-2*D107*LN('Other Graphs'!$A$6/'Other Graphs'!$A$9)-2*Data!D107^2*'Other Graphs'!$A$3))/D107 -> 0.2 | O107: 69.000001 | P107: =IF($C$4, 'Option vs Time'!$A$6*S107-EXP(-1*'Option vs Time'!$A$3*O107)*'Option vs Time'!$A$9*T107,-1*'Option vs Time'!$A$6*S107+EXP(-1*'Option vs Time'!$A$3*O107)*'Option vs Time'!$A$9*T107) -> 91.68183138 | Q107: =(LN('Option vs Time'!$A$6/'Option vs Time'!$A$9)+('Option vs Time'!$A$3+0.5*'Option vs Time'!$A$15^2)*O107)/('Option vs Time'!$A$15*SQRT(O107)) -> 2.226951593 | R107: =Q107-'Option vs Time'!$A$15*SQRT(O107) -> 0.5656268081 | S107: 0.9870247454 | T107: 0.71417625 | U107: 0.2810940975
D108: 70.000001 | E108: =IF($C$4, 'Other Graphs'!$A$6*H108-EXP(-1*'Other Graphs'!$A$3*D108)*'Other Graphs'!$A$9*I108,-1*'Other Graphs'!$A$6*H108+EXP(-1*'Other Graphs'!$A$3*D108)*'Other Graphs'!$A$9*I108) -> 101.8476381 | F108: =(LN('Other Graphs'!$A$6/'Other Graphs'!$A$9)+('Other Graphs'!$A$3+0.5*'Other Graphs'!$A$15^2)*D108)/('Other Graphs'!$A$15*SQRT(D108)) -> 2.300815089 | G108: =F108-'Other Graphs'!$A$15*SQRT(D108) -> 0.6274950244 | H108: 0.9892989574 | I108: 0.7348326017 | J108: =(F108*SQRT(D108)+SQRT(F108^2*D108-2*D108*LN('Other Graphs'!$A$6/'Other Graphs'!$A$9)-2*Data!D108^2*'Other Graphs'!$A$3))/D108 -> 0.35 | K108: =(F108*SQRT(D108)-SQRT(F108^2*D108-2*D108*LN('Other Graphs'!$A$6/'Other Graphs'!$A$9)-2*Data!D108^2*'Other Graphs'!$A$3))/D108 -> 0.2 | O108: 70.000001 | P108: =IF($C$4, 'Option vs Time'!$A$6*S108-EXP(-1*'Option vs Time'!$A$3*O108)*'Option vs Time'!$A$9*T108,-1*'Option vs Time'!$A$6*S108+EXP(-1*'Option vs Time'!$A$3*O108)*'Option vs Time'!$A$9*T108) -> 91.96292548 | Q108: =(LN('Option vs Time'!$A$6/'Option vs Time'!$A$9)+('Option vs Time'!$A$3+0.5*'Option vs Time'!$A$15^2)*O108)/('Option vs Time'!$A$15*SQRT(O108)) -> 2.243856363 | R108: =Q108-'Option vs Time'!$A$15*SQRT(O108) -> 0.570536298 | S108: 0.9875791777 | T108: 0.7158429948 | U108: 0.2715916828
D109: 71.000001 | E109: =IF($C$4, 'Other Graphs'!$A$6*H109-EXP(-1*'Other Graphs'!$A$3*D109)*'Other Graphs'!$A$9*I109,-1*'Other Graphs'!$A$6*H109+EXP(-1*'Other Graphs'!$A$3*D109)*'Other Graphs'!$A$9*I109) -> 102.124137 | F109: =(LN('Other Graphs'!$A$6/'Other Graphs'!$A$9)+('Other Graphs'!$A$3+0.5*'Other Graphs'!$A$15^2)*D109)/('Other Graphs'!$A$15*SQRT(D109)) -> 2.317191204 | G109: =F109-'Other Graphs'!$A$15*SQRT(D109) -> 0.6319612374 | H109: 0.9897533408 | I109: 0.7362938967 | J109: =(F109*SQRT(D109)+SQRT(F109^2*D109-2*D109*LN('Other Graphs'!$A$6/'Other Graphs'!$A$9)-2*Data!D109^2*'Other Graphs'!$A$3))/D109 -> 0.35 | K109: =(F109*SQRT(D109)-SQRT(F109^2*D109-2*D109*LN('Other Graphs'!$A$6/'Other Graphs'!$A$9)-2*Data!D109^2*'Other Graphs'!$A$3))/D109 -> 0.2 | O109: 71.000001 | P109: =IF($C$4, 'Option vs Time'!$A$6*S109-EXP(-1*'Option vs Time'!$A$3*O109)*'Option vs Time'!$A$9*T109,-1*'Option vs Time'!$A$6*S109+EXP(-1*'Option vs Time'!$A$3*O109)*'Option vs Time'!$A$9*T109) -> 92.23451716 | Q109: =(LN('Option vs Time'!$A$6/'Option vs Time'!$A$9)+('Option vs Time'!$A$3+0.5*'Option vs Time'!$A$15^2)*O109)/('Option vs Time'!$A$15*SQRT(O109)) -> 2.260635018 | R109: =Q109-'Option vs Time'!$A$15*SQRT(O109) -> 0.5754050512 | S109: 0.9881090663 | T109: 0.7174913056 | U109: 0.2624118338
D110: 72.000001 | E110: =IF($C$4, 'Other Graphs'!$A$6*H110-EXP(-1*'Other Graphs'!$A$3*D110)*'Other Graphs'!$A$9*I110,-1*'Other Graphs'!$A$6*H110+EXP(-1*'Other Graphs'!$A$3*D110)*'Other Graphs'!$A$9*I110) -> 102.3912401 | F110: =(LN('Other Graphs'!$A$6/'Other Graphs'!$A$9)+('Other Graphs'!$A$3+0.5*'Other Graphs'!$A$15^2)*D110)/('Other Graphs'!$A$15*SQRT(D110)) -> 2.333452394 | G110: =F110-'Other Graphs'!$A$15*SQRT(D110) -> 0.6363961075 | H110: 0.9901877929 | I110: 0.7377408613 | J110: =(F110*SQRT(D110)+SQRT(F110^2*D110-2*D110*LN('Other Graphs'!$A$6/'Other Graphs'!$A$9)-2*Data!D110^2*'Other Graphs'!$A$3))/D110 -> 0.35 | K110: =(F110*SQRT(D110)-SQRT(F110^2*D110-2*D110*LN('Other Graphs'!$A$6/'Other Graphs'!$A$9)-2*Data!D110^2*'Other Graphs'!$A$3))/D110 -> 0.2 | O110: 72.000001 | P110: =IF($C$4, 'Option vs Time'!$A$6*S110-EXP(-1*'Option vs Time'!$A$3*O110)*'Option vs Time'!$A$9*T110,-1*'Option vs Time'!$A$6*S110+EXP(-1*'Option vs Time'!$A$3*O110)*'Option vs Time'!$A$9*T110) -> 92.49692899 | Q110: =(LN('Option vs Time'!$A$6/'Option vs Time'!$A$9)+('Option vs Time'!$A$3+0.5*'Option vs Time'!$A$15^2)*O110)/('Option vs Time'!$A$15*SQRT(O110)) -> 2.277290332 | R110: =Q110-'Option vs Time'!$A$15*SQRT(O110) -> 0.5802340458 | S110: 0.9886155531 | T110: 0.7191216013 | U110: 0.2535434472
D111: 73.000001 | E111: =IF($C$4, 'Other Graphs'!$A$6*H111-EXP(-1*'Other Graphs'!$A$3*D111)*'Other Graphs'!$A$9*I111,-1*'Other Graphs'!$A$6*H111+EXP(-1*'Other Graphs'!$A$3*D111)*'Other Graphs'!$A$9*I111) -> 102.6492687 | F111: =(LN('Other Graphs'!$A$6/'Other Graphs'!$A$9)+('Other Graphs'!$A$3+0.5*'Other Graphs'!$A$15^2)*D111)/('Other Graphs'!$A$15*SQRT(D111)) -> 2.349601046 | G111: =F111-'Other Graphs'!$A$15*SQRT(D111) -> 0.6408002853 | H111: 0.9906032288 | I111: 0.7391737762 | J111: =(F111*SQRT(D111)+SQRT(F111^2*D111-2*D111*LN('Other Graphs'!$A$6/'Other Graphs'!$A$9)-2*Data!D111^2*'Other Graphs'!$A$3))/D111 -> 0.35 | K111: =(F111*SQRT(D111)-SQRT(F111^2*D111-2*D111*LN('Other Graphs'!$A$6/'Other Graphs'!$A$9)-2*Data!D111^2*'Other Graphs'!$A$3))/D111 -> 0.2 | O111: 73.000001 | P111: =IF($C$4, 'Option vs Time'!$A$6*S111-EXP(-1*'Option vs Time'!$A$3*O111)*'Option vs Time'!$A$9*T111,-1*'Option vs Time'!$A$6*S111+EXP(-1*'Option vs Time'!$A$3*O111)*'Option vs Time'!$A$9*T111) -> 92.75047244 | Q111: =(LN('Option vs Time'!$A$6/'Option vs Time'!$A$9)+('Option vs Time'!$A$3+0.5*'Option vs Time'!$A$15^2)*O111)/('Option vs Time'!$A$15*SQRT(O111)) -> 2.293824983 | R111: =Q111-'Option vs Time'!$A$15*SQRT(O111) -> 0.5850242218 | S111: 0.9890997231 | T111: 0.7207342849 | U111: 0.2449758169
D112: 74.000001 | E112: =IF($C$4, 'Other Graphs'!$A$6*H112-EXP(-1*'Other Graphs'!$A$3*D112)*'Other Graphs'!$A$9*I112,-1*'Other Graphs'!$A$6*H112+EXP(-1*'Other Graphs'!$A$3*D112)*'Other Graphs'!$A$9*I112) -> 102.8985332 | F112: =(LN('Other Graphs'!$A$6/'Other Graphs'!$A$9)+('Other Graphs'!$A$3+0.5*'Other Graphs'!$A$15^2)*D112)/('Other Graphs'!$A$15*SQRT(D112)) -> 2.365639464 | G112: =F112-'Other Graphs'!$A$15*SQRT(D112) -> 0.6451743994 | H112: 0.9910005186 | I112: 0.7405929128 | J112: =(F112*SQRT(D112)+SQRT(F112^2*D112-2*D112*LN('Other Graphs'!$A$6/'Other Graphs'!$A$9)-2*Data!D112^2*'Other Graphs'!$A$3))/D112 -> 0.35 | K112: =(F112*SQRT(D112)-SQRT(F112^2*D112-2*D112*LN('Other Graphs'!$A$6/'Other Graphs'!$A$9)-2*Data!D112^2*'Other Graphs'!$A$3))/D112 -> 0.2 | O112: 74.000001 | P112: =IF($C$4, 'Option vs Time'!$A$6*S112-EXP(-1*'Option vs Time'!$A$3*O112)*'Option vs Time'!$A$9*T112,-1*'Option vs Time'!$A$6*S112+EXP(-1*'Option vs Time'!$A$3*O112)*'Option vs Time'!$A$9*T112) -> 92.99544826 | Q112: =(LN('Option vs Time'!$A$6/'Option vs Time'!$A$9)+('Option vs Time'!$A$3+0.5*'Option vs Time'!$A$15^2)*O112)/('Option vs Time'!$A$15*SQRT(O112)) -> 2.310241548 | R112: =Q112-'Option vs Time'!$A$15*SQRT(O112) -> 0.589776483 | S112: 0.9895626075 | T112: 0.7223297445 | U112: 0.2366986183
D113: 75.000001 | E113: =IF($C$4, 'Other Graphs'!$A$6*H113-EXP(-1*'Other Graphs'!$A$3*D113)*'Other Graphs'!$A$9*I113,-1*'Other Graphs'!$A$6*H113+EXP(-1*'Other Graphs'!$A$3*D113)*'Other Graphs'!$A$9*I113) -> 103.1393328 | F113: =(LN('Other Graphs'!$A$6/'Other Graphs'!$A$9)+('Other Graphs'!$A$3+0.5*'Other Graphs'!$A$15^2)*D113)/('Other Graphs'!$A$15*SQRT(D113)) -> 2.381569876 | G113: =F113-'Other Graphs'!$A$15*SQRT(D113) -> 0.6495190572 | H113: 0.9913804901 | I113: 0.7419985337 | J113: =(F113*SQRT(D113)+SQRT(F113^2*D113-2*D113*LN('Other Graphs'!$A$6/'Other Graphs'!$A$9)-2*Data!D113^2*'Other Graphs'!$A$3))/D113 -> 0.35 | K113: =(F113*SQRT(D113)-SQRT(F113^2*D113-2*D113*LN('Other Graphs'!$A$6/'Other Graphs'!$A$9)-2*Data!D113^2*'Other Graphs'!$A$3))/D113 -> 0.2 | O113: 75.000001 | P113: =IF($C$4, 'Option vs Time'!$A$6*S113-EXP(-1*'Option vs Time'!$A$3*O113)*'Option vs Time'!$A$9*T113,-1*'Option vs Time'!$A$6*S113+EXP(-1*'Option vs Time'!$A$3*O113)*'Option vs Time'!$A$9*T113) -> 93.23214687 | Q113: =(LN('Option vs Time'!$A$6/'Option vs Time'!$A$9)+('Option vs Time'!$A$3+0.5*'Option vs Time'!$A$15^2)*O113)/('Option vs Time'!$A$15*SQRT(O113)) -> 2.326542519 | R113: =Q113-'Option vs Time'!$A$15*SQRT(O113) -> 0.5944916996 | S113: 0.9900051865 | T113: 0.7239083538 | U113: 0.2287018934
D114: 76.000001 | E114: =IF($C$4, 'Other Graphs'!$A$6*H114-EXP(-1*'Other Graphs'!$A$3*D114)*'Other Graphs'!$A$9*I114,-1*'Other Graphs'!$A$6*H114+EXP(-1*'Other Graphs'!$A$3*D114)*'Other Graphs'!$A$9*I114) -> 103.3719568 | F114: =(LN('Other Graphs'!$A$6/'Other Graphs'!$A$9)+('Other Graphs'!$A$3+0.5*'Other Graphs'!$A$15^2)*D114)/('Other Graphs'!$A$15*SQRT(D114)) -> 2.397394435 | G114: =F114-'Other Graphs'!$A$15*SQRT(D114) -> 0.6538348458 | H114: 0.9917439309 | I114: 0.743390893 | J114: =(F114*SQRT(D114)+SQRT(F114^2*D114-2*D114*LN('Other Graphs'!$A$6/'Other Graphs'!$A$9)-2*Data!D114^2*'Other Graphs'!$A$3))/D114 -> 0.35 | K114: =(F114*SQRT(D114)-SQRT(F114^2*D114-2*D114*LN('Other Graphs'!$A$6/'Other Graphs'!$A$9)-2*Data!D114^2*'Other Graphs'!$A$3))/D114 -> 0.2 | O114: 76.000001 | P114: =IF($C$4, 'Option vs Time'!$A$6*S114-EXP(-1*'Option vs Time'!$A$3*O114)*'Option vs Time'!$A$9*T114,-1*'Option vs Time'!$A$6*S114+EXP(-1*'Option vs Time'!$A$3*O114)*'Option vs Time'!$A$9*T114) -> 93.46084877 | Q114: =(LN('Option vs Time'!$A$6/'Option vs Time'!$A$9)+('Option vs Time'!$A$3+0.5*'Option vs Time'!$A$15^2)*O114)/('Option vs Time'!$A$15*SQRT(O114)) -> 2.342730298 | R114: =Q114-'Option vs Time'!$A$15*SQRT(O114) -> 0.5991707091 | S114: 0.9904283922 | T114: 0.7254704734 | U114: 0.2209760368
D115: 77.000001 | E115: =IF($C$4, 'Other Graphs'!$A$6*H115-EXP(-1*'Other Graphs'!$A$3*D115)*'Other Graphs'!$A$9*I115,-1*'Other Graphs'!$A$6*H115+EXP(-1*'Other Graphs'!$A$3*D115)*'Other Graphs'!$A$9*I115) -> 103.5966841 | F115: =(LN('Other Graphs'!$A$6/'Other Graphs'!$A$9)+('Other Graphs'!$A$3+0.5*'Other Graphs'!$A$15^2)*D115)/('Other Graphs'!$A$15*SQRT(D115)) -> 2.413115222 | G115: =F115-'Other Graphs'!$A$15*SQRT(D115) -> 0.6581223333 | H115: 0.9920915907 | I115: 0.7447702369 | J115: =(F115*SQRT(D115)+SQRT(F115^2*D115-2*D115*LN('Other Graphs'!$A$6/'Other Graphs'!$A$9)-2*Data!D115^2*'Other Graphs'!$A$3))/D115 -> 0.35 | K115: =(F115*SQRT(D115)-SQRT(F115^2*D115-2*D115*LN('Other Graphs'!$A$6/'Other Graphs'!$A$9)-2*Data!D115^2*'Other Graphs'!$A$3))/D115 -> 0.2 | O115: 77.000001 | P115: =IF($C$4, 'Option vs Time'!$A$6*S115-EXP(-1*'Option vs Time'!$A$3*O115)*'Option vs Time'!$A$9*T115,-1*'Option vs Time'!$A$6*S115+EXP(-1*'Option vs Time'!$A$3*O115)*'Option vs Time'!$A$9*T115) -> 93.6818248 | Q115: =(LN('Option vs Time'!$A$6/'Option vs Time'!$A$9)+('Option vs Time'!$A$3+0.5*'Option vs Time'!$A$15^2)*O115)/('Option vs Time'!$A$15*SQRT(O115)) -> 2.358807207 | R115: =Q115-'Option vs Time'!$A$15*SQRT(O115) -> 0.6038143185 | S115: 0.9908331111 | T115: 0.7270164506 | U115: 0.2135117822
D116: 78.000001 | E116: =IF($C$4, 'Other Graphs'!$A$6*H116-EXP(-1*'Other Graphs'!$A$3*D116)*'Other Graphs'!$A$9*I116,-1*'Other Graphs'!$A$6*H116+EXP(-1*'Other Graphs'!$A$3*D116)*'Other Graphs'!$A$9*I116) -> 103.813784 | F116: =(LN('Other Graphs'!$A$6/'Other Graphs'!$A$9)+('Other Graphs'!$A$3+0.5*'Other Graphs'!$A$15^2)*D116)/('Other Graphs'!$A$15*SQRT(D116)) -> 2.428734254 | G116: =F116-'Other Graphs'!$A$15*SQRT(D116) -> 0.6623820692 | H116: 0.9924241832 | I116: 0.7461368039 | J116: =(F116*SQRT(D116)+SQRT(F116^2*D116-2*D116*LN('Other Graphs'!$A$6/'Other Graphs'!$A$9)-2*Data!D116^2*'Other Graphs'!$A$3))/D116 -> 0.35 | K116: =(F116*SQRT(D116)-SQRT(F116^2*D116-2*D116*LN('Other Graphs'!$A$6/'Other Graphs'!$A$9)-2*Data!D116^2*'Other Graphs'!$A$3))/D116 -> 0.2 | O116: 78.000001 | P116: =IF($C$4, 'Option vs Time'!$A$6*S116-EXP(-1*'Option vs Time'!$A$3*O116)*'Option vs Time'!$A$9*T116,-1*'Option vs Time'!$A$6*S116+EXP(-1*'Option vs Time'!$A$3*O116)*'Option vs Time'!$A$9*T116) -> 93.89533659 | Q116: =(LN('Option vs Time'!$A$6/'Option vs Time'!$A$9)+('Option vs Time'!$A$3+0.5*'Option vs Time'!$A$15^2)*O116)/('Option vs Time'!$A$15*SQRT(O116)) -> 2.37477549 | R116: =Q116-'Option vs Time'!$A$15*SQRT(O116) -> 0.6084233057 | S116: 0.9912201865 | T116: 0.7285466209 | U116: 0.2063001891
D117: 79.000001 | E117: =IF($C$4, 'Other Graphs'!$A$6*H117-EXP(-1*'Other Graphs'!$A$3*D117)*'Other Graphs'!$A$9*I117,-1*'Other Graphs'!$A$6*H117+EXP(-1*'Other Graphs'!$A$3*D117)*'Other Graphs'!$A$9*I117) -> 104.0235166 | F117: =(LN('Other Graphs'!$A$6/'Other Graphs'!$A$9)+('Other Graphs'!$A$3+0.5*'Other Graphs'!$A$15^2)*D117)/('Other Graphs'!$A$15*SQRT(D117)) -> 2.44425348 | G117: =F117-'Other Graphs'!$A$15*SQRT(D117) -> 0.6666145855 | H117: 0.9927423879 | I117: 0.7474908249 | J117: =(F117*SQRT(D117)+SQRT(F117^2*D117-2*D117*LN('Other Graphs'!$A$6/'Other Graphs'!$A$9)-2*Data!D117^2*'Other Graphs'!$A$3))/D117 -> 0.35 | K117: =(F117*SQRT(D117)-SQRT(F117^2*D117-2*D117*LN('Other Graphs'!$A$6/'Other Graphs'!$A$9)-2*Data!D117^2*'Other Graphs'!$A$3))/D117 -> 0.2 | O117: 79.000001 | P117: =IF($C$4, 'Option vs Time'!$A$6*S117-EXP(-1*'Option vs Time'!$A$3*O117)*'Option vs Time'!$A$9*T117,-1*'Option vs Time'!$A$6*S117+EXP(-1*'Option vs Time'!$A$3*O117)*'Option vs Time'!$A$9*T117) -> 94.10163678 | Q117: =(LN('Option vs Time'!$A$6/'Option vs Time'!$A$9)+('Option vs Time'!$A$3+0.5*'Option vs Time'!$A$15^2)*O117)/('Option vs Time'!$A$15*SQRT(O117)) -> 2.390637316 | R117: =Q117-'Option vs Time'!$A$15*SQRT(O117) -> 0.6129984208 | S117: 0.9915904208 | T117: 0.730061308 | U117: 0.199332631
D118: 80.000001 | E118: =IF($C$4, 'Other Graphs'!$A$6*H118-EXP(-1*'Other Graphs'!$A$3*D118)*'Other Graphs'!$A$9*I118,-1*'Other Graphs'!$A$6*H118+EXP(-1*'Other Graphs'!$A$3*D118)*'Other Graphs'!$A$9*I118) -> 104.2261331 | F118: =(LN('Other Graphs'!$A$6/'Other Graphs'!$A$9)+('Other Graphs'!$A$3+0.5*'Other Graphs'!$A$15^2)*D118)/('Other Graphs'!$A$15*SQRT(D118)) -> 2.459674791 | G118: =F118-'Other Graphs'!$A$15*SQRT(D118) -> 0.6708203974 | H118: 0.9930468519 | I118: 0.7488325242 | J118: =(F118*SQRT(D118)+SQRT(F118^2*D118-2*D118*LN('Other Graphs'!$A$6/'Other Graphs'!$A$9)-2*Data!D118^2*'Other Graphs'!$A$3))/D118 -> 0.35 | K118: =(F118*SQRT(D118)-SQRT(F118^2*D118-2*D118*LN('Other Graphs'!$A$6/'Other Graphs'!$A$9)-2*Data!D118^2*'Other Graphs'!$A$3))/D118 -> 0.2 | O118: 80.000001 | P118: =IF($C$4, 'Option vs Time'!$A$6*S118-EXP(-1*'Option vs Time'!$A$3*O118)*'Option vs Time'!$A$9*T118,-1*'Option vs Time'!$A$6*S118+EXP(-1*'Option vs Time'!$A$3*O118)*'Option vs Time'!$A$9*T118) -> 94.30096941 | Q118: =(LN('Option vs Time'!$A$6/'Option vs Time'!$A$9)+('Option vs Time'!$A$3+0.5*'Option vs Time'!$A$15^2)*O118)/('Option vs Time'!$A$15*SQRT(O118)) -> 2.406394781 | R118: =Q118-'Option vs Time'!$A$15*SQRT(O118) -> 0.6175403875 | S118: 0.9919445779 | T118: 0.7315608247 | U118: 0.1926007834
D119: 81.000001 | E119: =IF($C$4, 'Other Graphs'!$A$6*H119-EXP(-1*'Other Graphs'!$A$3*D119)*'Other Graphs'!$A$9*I119,-1*'Other Graphs'!$A$6*H119+EXP(-1*'Other Graphs'!$A$3*D119)*'Other Graphs'!$A$9*I119) -> 104.4218757 | F119: =(LN('Other Graphs'!$A$6/'Other Graphs'!$A$9)+('Other Graphs'!$A$3+0.5*'Other Graphs'!$A$15^2)*D119)/('Other Graphs'!$A$15*SQRT(D119)) -> 2.475000015 | G119: =F119-'Other Graphs'!$A$15*SQRT(D119) -> 0.6750000042 | H119: 0.9933381915 | I119: 0.7501621189 | J119: =(F119*SQRT(D119)+SQRT(F119^2*D119-2*D119*LN('Other Graphs'!$A$6/'Other Graphs'!$A$9)-2*Data!D119^2*'Other Graphs'!$A$3))/D119 -> 0.35 | K119: =(F119*SQRT(D119)-SQRT(F119^2*D119-2*D119*LN('Other Graphs'!$A$6/'Other Graphs'!$A$9)-2*Data!D119^2*'Other Graphs'!$A$3))/D119 -> 0.2 | O119: 81.000001 | P119: =IF($C$4, 'Option vs Time'!$A$6*S119-EXP(-1*'Option vs Time'!$A$3*O119)*'Option vs Time'!$A$9*T119,-1*'Option vs Time'!$A$6*S119+EXP(-1*'Option vs Time'!$A$3*O119)*'Option vs Time'!$A$9*T119) -> 94.49357019 | Q119: =(LN('Option vs Time'!$A$6/'Option vs Time'!$A$9)+('Option vs Time'!$A$3+0.5*'Option vs Time'!$A$15^2)*O119)/('Option vs Time'!$A$15*SQRT(O119)) -> 2.422049916 | R119: =Q119-'Option vs Time'!$A$15*SQRT(O119) -> 0.6220499046 | S119: 0.9922833848 | T119: 0.7330454731 | U119: 0.1860966123
D120: 82.000001 | E120: =IF($C$4, 'Other Graphs'!$A$6*H120-EXP(-1*'Other Graphs'!$A$3*D120)*'Other Graphs'!$A$9*I120,-1*'Other Graphs'!$A$6*H120+EXP(-1*'Other Graphs'!$A$3*D120)*'Other Graphs'!$A$9*I120) -> 104.6109786 | F120: =(LN('Other Graphs'!$A$6/'Other Graphs'!$A$9)+('Other Graphs'!$A$3+0.5*'Other Graphs'!$A$15^2)*D120)/('Other Graphs'!$A$15*SQRT(D120)) -> 2.490230928 | G120: =F120-'Other Graphs'!$A$15*SQRT(D120) -> 0.6791538895 | H120: 0.9936169941 | I120: 0.7514798199 | J120: =(F120*SQRT(D120)+SQRT(F120^2*D120-2*D120*LN('Other Graphs'!$A$6/'Other Graphs'!$A$9)-2*Data!D120^2*'Other Graphs'!$A$3))/D120 -> 0.35 | K120: =(F120*SQRT(D120)-SQRT(F120^2*D120-2*D120*LN('Other Graphs'!$A$6/'Other Graphs'!$A$9)-2*Data!D120^2*'Other Graphs'!$A$3))/D120 -> 0.2 | O120: 82.000001 | P120: =IF($C$4, 'Option vs Time'!$A$6*S120-EXP(-1*'Option vs Time'!$A$3*O120)*'Option vs Time'!$A$9*T120,-1*'Option vs Time'!$A$6*S120+EXP(-1*'Option vs Time'!$A$3*O120)*'Option vs Time'!$A$9*T120) -> 94.6796668 | Q120: =(LN('Option vs Time'!$A$6/'Option vs Time'!$A$9)+('Option vs Time'!$A$3+0.5*'Option vs Time'!$A$15^2)*O120)/('Option vs Time'!$A$15*SQRT(O120)) -> 2.437604685 | R120: =Q120-'Option vs Time'!$A$15*SQRT(O120) -> 0.6265276468 | S120: 0.9926075337 | T120: 0.7345155456 | U120: 0.1798123638
D121: 83.000001 | E121: =IF($C$4, 'Other Graphs'!$A$6*H121-EXP(-1*'Other Graphs'!$A$3*D121)*'Other Graphs'!$A$9*I121,-1*'Other Graphs'!$A$6*H121+EXP(-1*'Other Graphs'!$A$3*D121)*'Other Graphs'!$A$9*I121) -> 104.7936677 | F121: =(LN('Other Graphs'!$A$6/'Other Graphs'!$A$9)+('Other Graphs'!$A$3+0.5*'Other Graphs'!$A$15^2)*D121)/('Other Graphs'!$A$15*SQRT(D121)) -> 2.505369249 | G121: =F121-'Other Graphs'!$A$15*SQRT(D121) -> 0.6832825226 | H121: 0.9938838192 | I121: 0.7527858321 | J121: =(F121*SQRT(D121)+SQRT(F121^2*D121-2*D121*LN('Other Graphs'!$A$6/'Other Graphs'!$A$9)-2*Data!D121^2*'Other Graphs'!$A$3))/D121 -> 0.35 | K121: =(F121*SQRT(D121)-SQRT(F121^2*D121-2*D121*LN('Other Graphs'!$A$6/'Other Graphs'!$A$9)-2*Data!D121^2*'Other Graphs'!$A$3))/D121 -> 0.2 | O121: 83.000001 | P121: =IF($C$4, 'Option vs Time'!$A$6*S121-EXP(-1*'Option vs Time'!$A$3*O121)*'Option vs Time'!$A$9*T121,-1*'Option vs Time'!$A$6*S121+EXP(-1*'Option vs Time'!$A$3*O121)*'Option vs Time'!$A$9*T121) -> 94.85947917 | Q121: =(LN('Option vs Time'!$A$6/'Option vs Time'!$A$9)+('Option vs Time'!$A$3+0.5*'Option vs Time'!$A$15^2)*O121)/('Option vs Time'!$A$15*SQRT(O121)) -> 2.453060993 | R121: =Q121-'Option vs Time'!$A$15*SQRT(O121) -> 0.6309742661 | S121: 0.992917684 | T121: 0.7359713246 | U121: 0.1737405537
D122: 84.000001 | E122: =IF($C$4, 'Other Graphs'!$A$6*H122-EXP(-1*'Other Graphs'!$A$3*D122)*'Other Graphs'!$A$9*I122,-1*'Other Graphs'!$A$6*H122+EXP(-1*'Other Graphs'!$A$3*D122)*'Other Graphs'!$A$9*I122) -> 104.9701614 | F122: =(LN('Other Graphs'!$A$6/'Other Graphs'!$A$9)+('Other Graphs'!$A$3+0.5*'Other Graphs'!$A$15^2)*D122)/('Other Graphs'!$A$15*SQRT(D122)) -> 2.520416647 | G122: =F122-'Other Graphs'!$A$15*SQRT(D122) -> 0.6873863583 | H122: 0.9941392002 | I122: 0.7540803541 | J122: =(F122*SQRT(D122)+SQRT(F122^2*D122-2*D122*LN('Other Graphs'!$A$6/'Other Graphs'!$A$9)-2*Data!D122^2*'Other Graphs'!$A$3))/D122 -> 0.35 | K122: =(F122*SQRT(D122)-SQRT(F122^2*D122-2*D122*LN('Other Graphs'!$A$6/'Other Graphs'!$A$9)-2*Data!D122^2*'Other Graphs'!$A$3))/D122 -> 0.2 | O122: 84.000001 | P122: =IF($C$4, 'Option vs Time'!$A$6*S122-EXP(-1*'Option vs Time'!$A$3*O122)*'Option vs Time'!$A$9*T122,-1*'Option vs Time'!$A$6*S122+EXP(-1*'Option vs Time'!$A$3*O122)*'Option vs Time'!$A$9*T122) -> 95.03321972 | Q122: =(LN('Option vs Time'!$A$6/'Option vs Time'!$A$9)+('Option vs Time'!$A$3+0.5*'Option vs Time'!$A$15^2)*O122)/('Option vs Time'!$A$15*SQRT(O122)) -> 2.468420682 | R122: =Q122-'Option vs Time'!$A$15*SQRT(O122) -> 0.6353903928 | S122: 0.9932144638 | T122: 0.7374130838 | U122: 0.1678739572
D123: 85.000001 | E123: =IF($C$4, 'Other Graphs'!$A$6*H123-EXP(-1*'Other Graphs'!$A$3*D123)*'Other Graphs'!$A$9*I123,-1*'Other Graphs'!$A$6*H123+EXP(-1*'Other Graphs'!$A$3*D123)*'Other Graphs'!$A$9*I123) -> 105.1406702 | F123: =(LN('Other Graphs'!$A$6/'Other Graphs'!$A$9)+('Other Graphs'!$A$3+0.5*'Other Graphs'!$A$15^2)*D123)/('Other Graphs'!$A$15*SQRT(D123)) -> 2.535374741 | G123: =F123-'Other Graphs'!$A$15*SQRT(D123) -> 0.6914658384 | H123: 0.9943836454 | I123: 0.7553635791 | J123: =(F123*SQRT(D123)+SQRT(F123^2*D123-2*D123*LN('Other Graphs'!$A$6/'Other Graphs'!$A$9)-2*Data!D123^2*'Other Graphs'!$A$3))/D123 -> 0.35 | K123: =(F123*SQRT(D123)-SQRT(F123^2*D123-2*D123*LN('Other Graphs'!$A$6/'Other Graphs'!$A$9)-2*Data!D123^2*'Other Graphs'!$A$3))/D123 -> 0.2 | O123: 85.000001 | P123: =IF($C$4, 'Option vs Time'!$A$6*S123-EXP(-1*'Option vs Time'!$A$3*O123)*'Option vs Time'!$A$9*T123,-1*'Option vs Time'!$A$6*S123+EXP(-1*'Option vs Time'!$A$3*O123)*'Option vs Time'!$A$9*T123) -> 95.20109368 | Q123: =(LN('Option vs Time'!$A$6/'Option vs Time'!$A$9)+('Option vs Time'!$A$3+0.5*'Option vs Time'!$A$15^2)*O123)/('Option vs Time'!$A$15*SQRT(O123)) -> 2.483685539 | R123: =Q123-'Option vs Time'!$A$15*SQRT(O123) -> 0.6397766363 | S123: 0.9934984712 | T123: 0.738841088 | U123: 0.1622056001
D124: 86.000001 | E124: =IF($C$4, 'Other Graphs'!$A$6*H124-EXP(-1*'Other Graphs'!$A$3*D124)*'Other Graphs'!$A$9*I124,-1*'Other Graphs'!$A$6*H124+EXP(-1*'Other Graphs'!$A$3*D124)*'Other Graphs'!$A$9*I124) -> 105.3053977 | F124: =(LN('Other Graphs'!$A$6/'Other Graphs'!$A$9)+('Other Graphs'!$A$3+0.5*'Other Graphs'!$A$15^2)*D124)/('Other Graphs'!$A$15*SQRT(D124)) -> 2.550245101 | G124: =F124-'Other Graphs'!$A$15*SQRT(D124) -> 0.6955213912 | H124: 0.9946176395 | I124: 0.7566356948 | J124: =(F124*SQRT(D124)+SQRT(F124^2*D124-2*D124*LN('Other Graphs'!$A$6/'Other Graphs'!$A$9)-2*Data!D124^2*'Other Graphs'!$A$3))/D124 -> 0.35 | K124: =(F124*SQRT(D124)-SQRT(F124^2*D124-2*D124*LN('Other Graphs'!$A$6/'Other Graphs'!$A$9)-2*Data!D124^2*'Other Graphs'!$A$3))/D124 -> 0.2 | O124: 86.000001 | P124: =IF($C$4, 'Option vs Time'!$A$6*S124-EXP(-1*'Option vs Time'!$A$3*O124)*'Option vs Time'!$A$9*T124,-1*'Option vs Time'!$A$6*S124+EXP(-1*'Option vs Time'!$A$3*O124)*'Option vs Time'!$A$9*T124) -> 95.36329928 | Q124: =(LN('Option vs Time'!$A$6/'Option vs Time'!$A$9)+('Option vs Time'!$A$3+0.5*'Option vs Time'!$A$15^2)*O124)/('Option vs Time'!$A$15*SQRT(O124)) -> 2.498857296 | R124: =Q124-'Option vs Time'!$A$15*SQRT(O124) -> 0.6441335865 | S124: 0.9937702764 | T124: 0.7402555937 | U124: 0.156728749
D125: 87.000001 | E125: =IF($C$4, 'Other Graphs'!$A$6*H125-EXP(-1*'Other Graphs'!$A$3*D125)*'Other Graphs'!$A$9*I125,-1*'Other Graphs'!$A$6*H125+EXP(-1*'Other Graphs'!$A$3*D125)*'Other Graphs'!$A$9*I125) -> 105.4645404 | F125: =(LN('Other Graphs'!$A$6/'Other Graphs'!$A$9)+('Other Graphs'!$A$3+0.5*'Other Graphs'!$A$15^2)*D125)/('Other Graphs'!$A$15*SQRT(D125)) -> 2.565029254 | G125: =F125-'Other Graphs'!$A$15*SQRT(D125) -> 0.699553433 | H125: 0.9948416447 | I125: 0.7578968837 | J125: =(F125*SQRT(D125)+SQRT(F125^2*D125-2*D125*LN('Other Graphs'!$A$6/'Other Graphs'!$A$9)-2*Data!D125^2*'Other Graphs'!$A$3))/D125 -> 0.35 | K125: =(F125*SQRT(D125)-SQRT(F125^2*D125-2*D125*LN('Other Graphs'!$A$6/'Other Graphs'!$A$9)-2*Data!D125^2*'Other Graphs'!$A$3))/D125 -> 0.2 | O125: 87.000001 | P125: =IF($C$4, 'Option vs Time'!$A$6*S125-EXP(-1*'Option vs Time'!$A$3*O125)*'Option vs Time'!$A$9*T125,-1*'Option vs Time'!$A$6*S125+EXP(-1*'Option vs Time'!$A$3*O125)*'Option vs Time'!$A$9*T125) -> 95.52002803 | Q125: =(LN('Option vs Time'!$A$6/'Option vs Time'!$A$9)+('Option vs Time'!$A$3+0.5*'Option vs Time'!$A$15^2)*O125)/('Option vs Time'!$A$15*SQRT(O125)) -> 2.513937635 | R125: =Q125-'Option vs Time'!$A$15*SQRT(O125) -> 0.6484618141 | S125: 0.9940304228 | T125: 0.7416568494 | U125: 0.1514369033
D126: 88.000001 | E126: =IF($C$4, 'Other Graphs'!$A$6*H126-EXP(-1*'Other Graphs'!$A$3*D126)*'Other Graphs'!$A$9*I126,-1*'Other Graphs'!$A$6*H126+EXP(-1*'Other Graphs'!$A$3*D126)*'Other Graphs'!$A$9*I126) -> 105.6182882 | F126: =(LN('Other Graphs'!$A$6/'Other Graphs'!$A$9)+('Other Graphs'!$A$3+0.5*'Other Graphs'!$A$15^2)*D126)/('Other Graphs'!$A$15*SQRT(D126)) -> 2.579728683 | G126: =F126-'Other Graphs'!$A$15*SQRT(D126) -> 0.703562368 | H126: 0.9950561017 | I126: 0.7591473231 | J126: =(F126*SQRT(D126)+SQRT(F126^2*D126-2*D126*LN('Other Graphs'!$A$6/'Other Graphs'!$A$9)-2*Data!D126^2*'Other Graphs'!$A$3))/D126 -> 0.35 | K126: =(F126*SQRT(D126)-SQRT(F126^2*D126-2*D126*LN('Other Graphs'!$A$6/'Other Graphs'!$A$9)-2*Data!D126^2*'Other Graphs'!$A$3))/D126 -> 0.2 | O126: 88.000001 | P126: =IF($C$4, 'Option vs Time'!$A$6*S126-EXP(-1*'Option vs Time'!$A$3*O126)*'Option vs Time'!$A$9*T126,-1*'Option vs Time'!$A$6*S126+EXP(-1*'Option vs Time'!$A$3*O126)*'Option vs Time'!$A$9*T126) -> 95.67146493 | Q126: =(LN('Option vs Time'!$A$6/'Option vs Time'!$A$9)+('Option vs Time'!$A$3+0.5*'Option vs Time'!$A$15^2)*O126)/('Option vs Time'!$A$15*SQRT(O126)) -> 2.528928186 | R126: =Q126-'Option vs Time'!$A$15*SQRT(O126) -> 0.6527618717 | S126: 0.9942794283 | T126: 0.7430450961 | U126: 0.1463237862
D127: 89.000001 | E127: =IF($C$4, 'Other Graphs'!$A$6*H127-EXP(-1*'Other Graphs'!$A$3*D127)*'Other Graphs'!$A$9*I127,-1*'Other Graphs'!$A$6*H127+EXP(-1*'Other Graphs'!$A$3*D127)*'Other Graphs'!$A$9*I127) -> 105.7668242 | F127: =(LN('Other Graphs'!$A$6/'Other Graphs'!$A$9)+('Other Graphs'!$A$3+0.5*'Other Graphs'!$A$15^2)*D127)/('Other Graphs'!$A$15*SQRT(D127)) -> 2.594344826 | G127: =F127-'Other Graphs'!$A$15*SQRT(D127) -> 0.7075485889 | H127: 0.9952614308 | I127: 0.7603871856 | J127: =(F127*SQRT(D127)+SQRT(F127^2*D127-2*D127*LN('Other Graphs'!$A$6/'Other Graphs'!$A$9)-2*Data!D127^2*'Other Graphs'!$A$3))/D127 -> 0.35 | K127: =(F127*SQRT(D127)-SQRT(F127^2*D127-2*D127*LN('Other Graphs'!$A$6/'Other Graphs'!$A$9)-2*Data!D127^2*'Other Graphs'!$A$3))/D127 -> 0.2 | O127: 89.000001 | P127: =IF($C$4, 'Option vs Time'!$A$6*S127-EXP(-1*'Option vs Time'!$A$3*O127)*'Option vs Time'!$A$9*T127,-1*'Option vs Time'!$A$6*S127+EXP(-1*'Option vs Time'!$A$3*O127)*'Option vs Time'!$A$9*T127) -> 95.81778872 | Q127: =(LN('Option vs Time'!$A$6/'Option vs Time'!$A$9)+('Option vs Time'!$A$3+0.5*'Option vs Time'!$A$15^2)*O127)/('Option vs Time'!$A$15*SQRT(O127)) -> 2.543830532 | R127: =Q127-'Option vs Time'!$A$15*SQRT(O127) -> 0.6570342949 | S127: 0.9945177867 | T127: 0.7444205674 | U127: 0.1413833369
D128: 90.000001 | E128: =IF($C$4, 'Other Graphs'!$A$6*H128-EXP(-1*'Other Graphs'!$A$3*D128)*'Other Graphs'!$A$9*I128,-1*'Other Graphs'!$A$6*H128+EXP(-1*'Other Graphs'!$A$3*D128)*'Other Graphs'!$A$9*I128) -> 105.9103256 | F128: =(LN('Other Graphs'!$A$6/'Other Graphs'!$A$9)+('Other Graphs'!$A$3+0.5*'Other Graphs'!$A$15^2)*D128)/('Other Graphs'!$A$15*SQRT(D128)) -> 2.608879084 | G128: =F128-'Other Graphs'!$A$15*SQRT(D128) -> 0.7115124775 | H128: 0.9954580333 | I128: 0.7616166392 | J128: =(F128*SQRT(D128)+SQRT(F128^2*D128-2*D128*LN('Other Graphs'!$A$6/'Other Graphs'!$A$9)-2*Data!D128^2*'Other Graphs'!$A$3))/D128 -> 0.35 | K128: =(F128*SQRT(D128)-SQRT(F128^2*D128-2*D128*LN('Other Graphs'!$A$6/'Other Graphs'!$A$9)-2*Data!D128^2*'Other Graphs'!$A$3))/D128 -> 0.2 | O128: 90.000001 | P128: =IF($C$4, 'Option vs Time'!$A$6*S128-EXP(-1*'Option vs Time'!$A$3*O128)*'Option vs Time'!$A$9*T128,-1*'Option vs Time'!$A$6*S128+EXP(-1*'Option vs Time'!$A$3*O128)*'Option vs Time'!$A$9*T128) -> 95.95917205 | Q128: =(LN('Option vs Time'!$A$6/'Option vs Time'!$A$9)+('Option vs Time'!$A$3+0.5*'Option vs Time'!$A$15^2)*O128)/('Option vs Time'!$A$15*SQRT(O128)) -> 2.558646209 | R128: =Q128-'Option vs Time'!$A$15*SQRT(O128) -> 0.6612796024 | S128: 0.9947459689 | T128: 0.74578349 | U128: 0.1366097029
D129: 91.000001 | E129: =IF($C$4, 'Other Graphs'!$A$6*H129-EXP(-1*'Other Graphs'!$A$3*D129)*'Other Graphs'!$A$9*I129,-1*'Other Graphs'!$A$6*H129+EXP(-1*'Other Graphs'!$A$3*D129)*'Other Graphs'!$A$9*I129) -> 106.0489632 | F129: =(LN('Other Graphs'!$A$6/'Other Graphs'!$A$9)+('Other Graphs'!$A$3+0.5*'Other Graphs'!$A$15^2)*D129)/('Other Graphs'!$A$15*SQRT(D129)) -> 2.623332818 | G129: =F129-'Other Graphs'!$A$15*SQRT(D129) -> 0.715454405 | H129: 0.9956462916 | I129: 0.7628358475 | J129: =(F129*SQRT(D129)+SQRT(F129^2*D129-2*D129*LN('Other Graphs'!$A$6/'Other Graphs'!$A$9)-2*Data!D129^2*'Other Graphs'!$A$3))/D129 -> 0.35 | K129: =(F129*SQRT(D129)-SQRT(F129^2*D129-2*D129*LN('Other Graphs'!$A$6/'Other Graphs'!$A$9)-2*Data!D129^2*'Other Graphs'!$A$3))/D129 -> 0.2 | O129: 91.000001 | P129: =IF($C$4, 'Option vs Time'!$A$6*S129-EXP(-1*'Option vs Time'!$A$3*O129)*'Option vs Time'!$A$9*T129,-1*'Option vs Time'!$A$6*S129+EXP(-1*'Option vs Time'!$A$3*O129)*'Option vs Time'!$A$9*T129) -> 96.09578176 | Q129: =(LN('Option vs Time'!$A$6/'Option vs Time'!$A$9)+('Option vs Time'!$A$3+0.5*'Option vs Time'!$A$15^2)*O129)/('Option vs Time'!$A$15*SQRT(O129)) -> 2.57337671 | R129: =Q129-'Option vs Time'!$A$15*SQRT(O129) -> 0.6654982971 | S129: 0.9949644239 | T129: 0.7471340838 | U129: 0.1319972328
D130: 92.000001 | E130: =IF($C$4, 'Other Graphs'!$A$6*H130-EXP(-1*'Other Graphs'!$A$3*D130)*'Other Graphs'!$A$9*I130,-1*'Other Graphs'!$A$6*H130+EXP(-1*'Other Graphs'!$A$3*D130)*'Other Graphs'!$A$9*I130) -> 106.1829022 | F130: =(LN('Other Graphs'!$A$6/'Other Graphs'!$A$9)+('Other Graphs'!$A$3+0.5*'Other Graphs'!$A$15^2)*D130)/('Other Graphs'!$A$15*SQRT(D130)) -> 2.637707352 | G130: =F130-'Other Graphs'!$A$15*SQRT(D130) -> 0.7193747324 | H130: 0.995826571 | I130: 0.7640449695 | J130: =(F130*SQRT(D130)+SQRT(F130^2*D130-2*D130*LN('Other Graphs'!$A$6/'Other Graphs'!$A$9)-2*Data!D130^2*'Other Graphs'!$A$3))/D130 -> 0.35 | K130: =(F130*SQRT(D130)-SQRT(F130^2*D130-2*D130*LN('Other Graphs'!$A$6/'Other Graphs'!$A$9)-2*Data!D130^2*'Other Graphs'!$A$3))/D130 -> 0.2 | O130: 92.000001 | P130: =IF($C$4, 'Option vs Time'!$A$6*S130-EXP(-1*'Option vs Time'!$A$3*O130)*'Option vs Time'!$A$9*T130,-1*'Option vs Time'!$A$6*S130+EXP(-1*'Option vs Time'!$A$3*O130)*'Option vs Time'!$A$9*T130) -> 96.22777899 | Q130: =(LN('Option vs Time'!$A$6/'Option vs Time'!$A$9)+('Option vs Time'!$A$3+0.5*'Option vs Time'!$A$15^2)*O130)/('Option vs Time'!$A$15*SQRT(O130)) -> 2.588023487 | R130: =Q130-'Option vs Time'!$A$15*SQRT(O130) -> 0.6696908669 | S130: 0.9951735801 | T130: 0.7484725625 | U130: 0.1275404686
D131: 93.000001 | E131: =IF($C$4, 'Other Graphs'!$A$6*H131-EXP(-1*'Other Graphs'!$A$3*D131)*'Other Graphs'!$A$9*I131,-1*'Other Graphs'!$A$6*H131+EXP(-1*'Other Graphs'!$A$3*D131)*'Other Graphs'!$A$9*I131) -> 106.3123021 | F131: =(LN('Other Graphs'!$A$6/'Other Graphs'!$A$9)+('Other Graphs'!$A$3+0.5*'Other Graphs'!$A$15^2)*D131)/('Other Graphs'!$A$15*SQRT(D131)) -> 2.652003974 | G131: =F131-'Other Graphs'!$A$15*SQRT(D131) -> 0.723273811 | H131: 0.99599922 | I131: 0.7652441604 | J131: =(F131*SQRT(D131)+SQRT(F131^2*D131-2*D131*LN('Other Graphs'!$A$6/'Other Graphs'!$A$9)-2*Data!D131^2*'Other Graphs'!$A$3))/D131 -> 0.35 | K131: =(F131*SQRT(D131)-SQRT(F131^2*D131-2*D131*LN('Other Graphs'!$A$6/'Other Graphs'!$A$9)-2*Data!D131^2*'Other Graphs'!$A$3))/D131 -> 0.2 | O131: 93.000001 | P131: =IF($C$4, 'Option vs Time'!$A$6*S131-EXP(-1*'Option vs Time'!$A$3*O131)*'Option vs Time'!$A$9*T131,-1*'Option vs Time'!$A$6*S131+EXP(-1*'Option vs Time'!$A$3*O131)*'Option vs Time'!$A$9*T131) -> 96.35531946 | Q131: =(LN('Option vs Time'!$A$6/'Option vs Time'!$A$9)+('Option vs Time'!$A$3+0.5*'Option vs Time'!$A$15^2)*O131)/('Option vs Time'!$A$15*SQRT(O131)) -> 2.602587948 | R131: =Q131-'Option vs Time'!$A$15*SQRT(O131) -> 0.673857785 | S131: 0.995373846 | T131: 0.7497991335 | U131: 0.1232341393
D132: 94.000001 | E132: =IF($C$4, 'Other Graphs'!$A$6*H132-EXP(-1*'Other Graphs'!$A$3*D132)*'Other Graphs'!$A$9*I132,-1*'Other Graphs'!$A$6*H132+EXP(-1*'Other Graphs'!$A$3*D132)*'Other Graphs'!$A$9*I132) -> 106.4373168 | F132: =(LN('Other Graphs'!$A$6/'Other Graphs'!$A$9)+('Other Graphs'!$A$3+0.5*'Other Graphs'!$A$15^2)*D132)/('Other Graphs'!$A$15*SQRT(D132)) -> 2.666223936 | G132: =F132-'Other Graphs'!$A$15*SQRT(D132) -> 0.7271519825 | H132: 0.9961645711 | I132: 0.7664335712 | J132: =(F132*SQRT(D132)+SQRT(F132^2*D132-2*D132*LN('Other Graphs'!$A$6/'Other Graphs'!$A$9)-2*Data!D132^2*'Other Graphs'!$A$3))/D132 -> 0.35 | K132: =(F132*SQRT(D132)-SQRT(F132^2*D132-2*D132*LN('Other Graphs'!$A$6/'Other Graphs'!$A$9)-2*Data!D132^2*'Other Graphs'!$A$3))/D132 -> 0.2 | O132: 94.000001 | P132: =IF($C$4, 'Option vs Time'!$A$6*S132-EXP(-1*'Option vs Time'!$A$3*O132)*'Option vs Time'!$A$9*T132,-1*'Option vs Time'!$A$6*S132+EXP(-1*'Option vs Time'!$A$3*O132)*'Option vs Time'!$A$9*T132) -> 96.4785536 | Q132: =(LN('Option vs Time'!$A$6/'Option vs Time'!$A$9)+('Option vs Time'!$A$3+0.5*'Option vs Time'!$A$15^2)*O132)/('Option vs Time'!$A$15*SQRT(O132)) -> 2.617071464 | R132: =Q132-'Option vs Time'!$A$15*SQRT(O132) -> 0.6779995105 | S132: 0.9955656114 | T132: 0.7511139982 | U132: 0.1190731543
D133: 95.000001 | E133: =IF($C$4, 'Other Graphs'!$A$6*H133-EXP(-1*'Other Graphs'!$A$3*D133)*'Other Graphs'!$A$9*I133,-1*'Other Graphs'!$A$6*H133+EXP(-1*'Other Graphs'!$A$3*D133)*'Other Graphs'!$A$9*I133) -> 106.5580953 | F133: =(LN('Other Graphs'!$A$6/'Other Graphs'!$A$9)+('Other Graphs'!$A$3+0.5*'Other Graphs'!$A$15^2)*D133)/('Other Graphs'!$A$15*SQRT(D133)) -> 2.680368459 | G133: =F133-'Other Graphs'!$A$15*SQRT(D133) -> 0.7310095797 | H133: 0.9963229419 | I133: 0.7676133492 | J133: =(F133*SQRT(D133)+SQRT(F133^2*D133-2*D133*LN('Other Graphs'!$A$6/'Other Graphs'!$A$9)-2*Data!D133^2*'Other Graphs'!$A$3))/D133 -> 0.35 | K133: =(F133*SQRT(D133)-SQRT(F133^2*D133-2*D133*LN('Other Graphs'!$A$6/'Other Graphs'!$A$9)-2*Data!D133^2*'Other Graphs'!$A$3))/D133 -> 0.2 | O133: 95.000001 | P133: =IF($C$4, 'Option vs Time'!$A$6*S133-EXP(-1*'Option vs Time'!$A$3*O133)*'Option vs Time'!$A$9*T133,-1*'Option vs Time'!$A$6*S133+EXP(-1*'Option vs Time'!$A$3*O133)*'Option vs Time'!$A$9*T133) -> 96.59762675 | Q133: =(LN('Option vs Time'!$A$6/'Option vs Time'!$A$9)+('Option vs Time'!$A$3+0.5*'Option vs Time'!$A$15^2)*O133)/('Option vs Time'!$A$15*SQRT(O133)) -> 2.631475369 | R133: =Q133-'Option vs Time'!$A$15*SQRT(O133) -> 0.6821164894 | S133: 0.9957492485 | T133: 0.7524173526 | U133: 0.1150525969
D134: 96.000001 | E134: =IF($C$4, 'Other Graphs'!$A$6*H134-EXP(-1*'Other Graphs'!$A$3*D134)*'Other Graphs'!$A$9*I134,-1*'Other Graphs'!$A$6*H134+EXP(-1*'Other Graphs'!$A$3*D134)*'Other Graphs'!$A$9*I134) -> 106.6747812 | F134: =(LN('Other Graphs'!$A$6/'Other Graphs'!$A$9)+('Other Graphs'!$A$3+0.5*'Other Graphs'!$A$15^2)*D134)/('Other Graphs'!$A$15*SQRT(D134)) -> 2.694438731 | G134: =F134-'Other Graphs'!$A$15*SQRT(D134) -> 0.7348469267 | H134: 0.9964746356 | I134: 0.7687836379 | J134: =(F134*SQRT(D134)+SQRT(F134^2*D134-2*D134*LN('Other Graphs'!$A$6/'Other Graphs'!$A$9)-2*Data!D134^2*'Other Graphs'!$A$3))/D134 -> 0.35 | K134: =(F134*SQRT(D134)-SQRT(F134^2*D134-2*D134*LN('Other Graphs'!$A$6/'Other Graphs'!$A$9)-2*Data!D134^2*'Other Graphs'!$A$3))/D134 -> 0.2 | O134: 96.000001 | P134: =IF($C$4, 'Option vs Time'!$A$6*S134-EXP(-1*'Option vs Time'!$A$3*O134)*'Option vs Time'!$A$9*T134,-1*'Option vs Time'!$A$6*S134+EXP(-1*'Option vs Time'!$A$3*O134)*'Option vs Time'!$A$9*T134) -> 96.71267935 | Q134: =(LN('Option vs Time'!$A$6/'Option vs Time'!$A$9)+('Option vs Time'!$A$3+0.5*'Option vs Time'!$A$15^2)*O134)/('Option vs Time'!$A$15*SQRT(O134)) -> 2.645800959 | R134: =Q134-'Option vs Time'!$A$15*SQRT(O134) -> 0.6862091545 | S134: 0.9959251123 | T134: 0.7537093871 | U134: 0.111167718
D135: 97.000001 | E135: =IF($C$4, 'Other Graphs'!$A$6*H135-EXP(-1*'Other Graphs'!$A$3*D135)*'Other Graphs'!$A$9*I135,-1*'Other Graphs'!$A$6*H135+EXP(-1*'Other Graphs'!$A$3*D135)*'Other Graphs'!$A$9*I135) -> 106.7875132 | F135: =(LN('Other Graphs'!$A$6/'Other Graphs'!$A$9)+('Other Graphs'!$A$3+0.5*'Other Graphs'!$A$15^2)*D135)/('Other Graphs'!$A$15*SQRT(D135)) -> 2.708435909 | G135: =F135-'Other Graphs'!$A$15*SQRT(D135) -> 0.7386643389 | H135: 0.9966199416 | I135: 0.7699445774 | J135: =(F135*SQRT(D135)+SQRT(F135^2*D135-2*D135*LN('Other Graphs'!$A$6/'Other Graphs'!$A$9)-2*Data!D135^2*'Other Graphs'!$A$3))/D135 -> 0.35 | K135: =(F135*SQRT(D135)-SQRT(F135^2*D135-2*D135*LN('Other Graphs'!$A$6/'Other Graphs'!$A$9)-2*Data!D135^2*'Other Graphs'!$A$3))/D135 -> 0.2 | O135: 97.000001 | P135: =IF($C$4, 'Option vs Time'!$A$6*S135-EXP(-1*'Option vs Time'!$A$3*O135)*'Option vs Time'!$A$9*T135,-1*'Option vs Time'!$A$6*S135+EXP(-1*'Option vs Time'!$A$3*O135)*'Option vs Time'!$A$9*T135) -> 96.82384707 | Q135: =(LN('Option vs Time'!$A$6/'Option vs Time'!$A$9)+('Option vs Time'!$A$3+0.5*'Option vs Time'!$A$15^2)*O135)/('Option vs Time'!$A$15*SQRT(O135)) -> 2.660049497 | R135: =Q135-'Option vs Time'!$A$15*SQRT(O135) -> 0.6902779264 | S135: 0.9960935416 | T135: 0.7549902868 | U135: 0.1074139308
D136: 98.000001 | E136: =IF($C$4, 'Other Graphs'!$A$6*H136-EXP(-1*'Other Graphs'!$A$3*D136)*'Other Graphs'!$A$9*I136,-1*'Other Graphs'!$A$6*H136+EXP(-1*'Other Graphs'!$A$3*D136)*'Other Graphs'!$A$9*I136) -> 106.8964256 | F136: =(LN('Other Graphs'!$A$6/'Other Graphs'!$A$9)+('Other Graphs'!$A$3+0.5*'Other Graphs'!$A$15^2)*D136)/('Other Graphs'!$A$15*SQRT(D136)) -> 2.722361121 | G136: =F136-'Other Graphs'!$A$15*SQRT(D136) -> 0.742462124 | H136: 0.9967591365 | I136: 0.7710963041 | J136: =(F136*SQRT(D136)+SQRT(F136^2*D136-2*D136*LN('Other Graphs'!$A$6/'Other Graphs'!$A$9)-2*Data!D136^2*'Other Graphs'!$A$3))/D136 -> 0.35 | K136: =(F136*SQRT(D136)-SQRT(F136^2*D136-2*D136*LN('Other Graphs'!$A$6/'Other Graphs'!$A$9)-2*Data!D136^2*'Other Graphs'!$A$3))/D136 -> 0.2 | O136: 98.000001 | P136: =IF($C$4, 'Option vs Time'!$A$6*S136-EXP(-1*'Option vs Time'!$A$3*O136)*'Option vs Time'!$A$9*T136,-1*'Option vs Time'!$A$6*S136+EXP(-1*'Option vs Time'!$A$3*O136)*'Option vs Time'!$A$9*T136) -> 96.931261 | Q136: =(LN('Option vs Time'!$A$6/'Option vs Time'!$A$9)+('Option vs Time'!$A$3+0.5*'Option vs Time'!$A$15^2)*O136)/('Option vs Time'!$A$15*SQRT(O136)) -> 2.674222211 | R136: =Q136-'Option vs Time'!$A$15*SQRT(O136) -> 0.694323214 | S136: 0.9962548599 | T136: 0.756260232 | U136: 0.1037868046
D137: 99.000001 | E137: =IF($C$4, 'Other Graphs'!$A$6*H137-EXP(-1*'Other Graphs'!$A$3*D137)*'Other Graphs'!$A$9*I137,-1*'Other Graphs'!$A$6*H137+EXP(-1*'Other Graphs'!$A$3*D137)*'Other Graphs'!$A$9*I137) -> 107.0016477 | F137: =(LN('Other Graphs'!$A$6/'Other Graphs'!$A$9)+('Other Graphs'!$A$3+0.5*'Other Graphs'!$A$15^2)*D137)/('Other Graphs'!$A$15*SQRT(D137)) -> 2.736215466 | G137: =F137-'Other Graphs'!$A$15*SQRT(D137) -> 0.7462405816 | H137: 0.9968924842 | I137: 0.7722389512 | J137: =(F137*SQRT(D137)+SQRT(F137^2*D137-2*D137*LN('Other Graphs'!$A$6/'Other Graphs'!$A$9)-2*Data!D137^2*'Other Graphs'!$A$3))/D137 -> 0.35 | K137: =(F137*SQRT(D137)-SQRT(F137^2*D137-2*D137*LN('Other Graphs'!$A$6/'Other Graphs'!$A$9)-2*Data!D137^2*'Other Graphs'!$A$3))/D137 -> 0.2 | O137: 99.000001 | P137: =IF($C$4, 'Option vs Time'!$A$6*S137-EXP(-1*'Option vs Time'!$A$3*O137)*'Option vs Time'!$A$9*T137,-1*'Option vs Time'!$A$6*S137+EXP(-1*'Option vs Time'!$A$3*O137)*'Option vs Time'!$A$9*T137) -> 97.0350478 | Q137: =(LN('Option vs Time'!$A$6/'Option vs Time'!$A$9)+('Option vs Time'!$A$3+0.5*'Option vs Time'!$A$15^2)*O137)/('Option vs Time'!$A$15*SQRT(O137)) -> 2.688320299 | R137: =Q137-'Option vs Time'!$A$15*SQRT(O137) -> 0.6983454144 | S137: 0.9964093762 | T137: 0.7575193978 | U137: 0.1002820595
D138: 100.000001 | E138: =IF($C$4, 'Other Graphs'!$A$6*H138-EXP(-1*'Other Graphs'!$A$3*D138)*'Other Graphs'!$A$9*I138,-1*'Other Graphs'!$A$6*H138+EXP(-1*'Other Graphs'!$A$3*D138)*'Other Graphs'!$A$9*I138) -> 107.1033048 | F138: =(LN('Other Graphs'!$A$6/'Other Graphs'!$A$9)+('Other Graphs'!$A$3+0.5*'Other Graphs'!$A$15^2)*D138)/('Other Graphs'!$A$15*SQRT(D138)) -> 2.750000014 | G138: =F138-'Other Graphs'!$A$15*SQRT(D138) -> 0.7500000037 | H138: 0.9970202369 | I138: 0.7733726488 | J138: =(F138*SQRT(D138)+SQRT(F138^2*D138-2*D138*LN('Other Graphs'!$A$6/'Other Graphs'!$A$9)-2*Data!D138^2*'Other Graphs'!$A$3))/D138 -> 0.35 | K138: =(F138*SQRT(D138)-SQRT(F138^2*D138-2*D138*LN('Other Graphs'!$A$6/'Other Graphs'!$A$9)-2*Data!D138^2*'Other Graphs'!$A$3))/D138 -> 0.2 | O138: 100.000001 | P138: =IF($C$4, 'Option vs Time'!$A$6*S138-EXP(-1*'Option vs Time'!$A$3*O138)*'Option vs Time'!$A$9*T138,-1*'Option vs Time'!$A$6*S138+EXP(-1*'Option vs Time'!$A$3*O138)*'Option vs Time'!$A$9*T138) -> 97.13532986 | Q138: =(LN('Option vs Time'!$A$6/'Option vs Time'!$A$9)+('Option vs Time'!$A$3+0.5*'Option vs Time'!$A$15^2)*O138)/('Option vs Time'!$A$15*SQRT(O138)) -> 2.702344924 | R138: =Q138-'Option vs Time'!$A$15*SQRT(O138) -> 0.7023449141 | S138: 0.9965573853 | T138: 0.7587679551 | U138: 0.09689556144
D139: 101.000001 | E139: =IF($C$4, 'Other Graphs'!$A$6*H139-EXP(-1*'Other Graphs'!$A$3*D139)*'Other Graphs'!$A$9*I139,-1*'Other Graphs'!$A$6*H139+EXP(-1*'Other Graphs'!$A$3*D139)*'Other Graphs'!$A$9*I139) -> 107.2015176 | F139: =(LN('Other Graphs'!$A$6/'Other Graphs'!$A$9)+('Other Graphs'!$A$3+0.5*'Other Graphs'!$A$15^2)*D139)/('Other Graphs'!$A$15*SQRT(D139)) -> 2.763715809 | G139: =F139-'Other Graphs'!$A$15*SQRT(D139) -> 0.7537406753 | H139: 0.9971426356 | I139: 0.7744975237 | J139: =(F139*SQRT(D139)+SQRT(F139^2*D139-2*D139*LN('Other Graphs'!$A$6/'Other Graphs'!$A$9)-2*Data!D139^2*'Other Graphs'!$A$3))/D139 -> 0.35 | K139: =(F139*SQRT(D139)-SQRT(F139^2*D139-2*D139*LN('Other Graphs'!$A$6/'Other Graphs'!$A$9)-2*Data!D139^2*'Other Graphs'!$A$3))/D139 -> 0.2 | O139: 101.000001 | P139: =IF($C$4, 'Option vs Time'!$A$6*S139-EXP(-1*'Option vs Time'!$A$3*O139)*'Option vs Time'!$A$9*T139,-1*'Option vs Time'!$A$6*S139+EXP(-1*'Option vs Time'!$A$3*O139)*'Option vs Time'!$A$9*T139) -> 97.23222542 | Q139: =(LN('Option vs Time'!$A$6/'Option vs Time'!$A$9)+('Option vs Time'!$A$3+0.5*'Option vs Time'!$A$15^2)*O139)/('Option vs Time'!$A$15*SQRT(O139)) -> 2.716297223 | R139: =Q139-'Option vs Time'!$A$15*SQRT(O139) -> 0.7063220888 | S139: 0.9966991689 | T139: 0.7600060701 | U139: 0.09362331665
D140: 102.000001 | E140: =IF($C$4, 'Other Graphs'!$A$6*H140-EXP(-1*'Other Graphs'!$A$3*D140)*'Other Graphs'!$A$9*I140,-1*'Other Graphs'!$A$6*H140+EXP(-1*'Other Graphs'!$A$3*D140)*'Other Graphs'!$A$9*I140) -> 107.296403 | F140: =(LN('Other Graphs'!$A$6/'Other Graphs'!$A$9)+('Other Graphs'!$A$3+0.5*'Other Graphs'!$A$15^2)*D140)/('Other Graphs'!$A$15*SQRT(D140)) -> 2.777363872 | G140: =F140-'Other Graphs'!$A$15*SQRT(D140) -> 0.7574628741 | H140: 0.9972599105 | I140: 0.7756136999 | J140: =(F140*SQRT(D140)+SQRT(F140^2*D140-2*D140*LN('Other Graphs'!$A$6/'Other Graphs'!$A$9)-2*Data!D140^2*'Other Graphs'!$A$3))/D140 -> 0.35 | K140: =(F140*SQRT(D140)-SQRT(F140^2*D140-2*D140*LN('Other Graphs'!$A$6/'Other Graphs'!$A$9)-2*Data!D140^2*'Other Graphs'!$A$3))/D140 -> 0.2 | O140: 102.000001 | P140: =IF($C$4, 'Option vs Time'!$A$6*S140-EXP(-1*'Option vs Time'!$A$3*O140)*'Option vs Time'!$A$9*T140,-1*'Option vs Time'!$A$6*S140+EXP(-1*'Option vs Time'!$A$3*O140)*'Option vs Time'!$A$9*T140) -> 97.32584874 | Q140: =(LN('Option vs Time'!$A$6/'Option vs Time'!$A$9)+('Option vs Time'!$A$3+0.5*'Option vs Time'!$A$15^2)*O140)/('Option vs Time'!$A$15*SQRT(O140)) -> 2.730178302 | R140: =Q140-'Option vs Time'!$A$15*SQRT(O140) -> 0.7102773041 | S140: 0.996834996 | T140: 0.7612339044 | U140: 0.0904614672
D141: 103.000001 | E141: =IF($C$4, 'Other Graphs'!$A$6*H141-EXP(-1*'Other Graphs'!$A$3*D141)*'Other Graphs'!$A$9*I141,-1*'Other Graphs'!$A$6*H141+EXP(-1*'Other Graphs'!$A$3*D141)*'Other Graphs'!$A$9*I141) -> 107.3880736 | F141: =(LN('Other Graphs'!$A$6/'Other Graphs'!$A$9)+('Other Graphs'!$A$3+0.5*'Other Graphs'!$A$15^2)*D141)/('Other Graphs'!$A$15*SQRT(D141)) -> 2.790945194 | G141: =F141-'Other Graphs'!$A$15*SQRT(D141) -> 0.7611668711 | H141: 0.9973722815 | I141: 0.7767212985 | J141: =(F141*SQRT(D141)+SQRT(F141^2*D141-2*D141*LN('Other Graphs'!$A$6/'Other Graphs'!$A$9)-2*Data!D141^2*'Other Graphs'!$A$3))/D141 -> 0.35 | K141: =(F141*SQRT(D141)-SQRT(F141^2*D141-2*D141*LN('Other Graphs'!$A$6/'Other Graphs'!$A$9)-2*Data!D141^2*'Other Graphs'!$A$3))/D141 -> 0.2 | O141: 103.000001 | P141: =IF($C$4, 'Option vs Time'!$A$6*S141-EXP(-1*'Option vs Time'!$A$3*O141)*'Option vs Time'!$A$9*T141,-1*'Option vs Time'!$A$6*S141+EXP(-1*'Option vs Time'!$A$3*O141)*'Option vs Time'!$A$9*T141) -> 97.41631021 | Q141: =(LN('Option vs Time'!$A$6/'Option vs Time'!$A$9)+('Option vs Time'!$A$3+0.5*'Option vs Time'!$A$15^2)*O141)/('Option vs Time'!$A$15*SQRT(O141)) -> 2.743989239 | R141: =Q141-'Option vs Time'!$A$15*SQRT(O141) -> 0.714210916 | S141: 0.9969651236 | T141: 0.762451616 | U141: 0.08740628609
D142: 104.000001 | E142: =IF($C$4, 'Other Graphs'!$A$6*H142-EXP(-1*'Other Graphs'!$A$3*D142)*'Other Graphs'!$A$9*I142,-1*'Other Graphs'!$A$6*H142+EXP(-1*'Other Graphs'!$A$3*D142)*'Other Graphs'!$A$9*I142) -> 107.4766385 | F142: =(LN('Other Graphs'!$A$6/'Other Graphs'!$A$9)+('Other Graphs'!$A$3+0.5*'Other Graphs'!$A$15^2)*D142)/('Other Graphs'!$A$15*SQRT(D142)) -> 2.804460746 | G142: =F142-'Other Graphs'!$A$15*SQRT(D142) -> 0.7648529307 | H142: 0.9974799588 | I142: 0.7778204375 | J142: =(F142*SQRT(D142)+SQRT(F142^2*D142-2*D142*LN('Other Graphs'!$A$6/'Other Graphs'!$A$9)-2*Data!D142^2*'Other Graphs'!$A$3))/D142 -> 0.35 | K142: =(F142*SQRT(D142)-SQRT(F142^2*D142-2*D142*LN('Other Graphs'!$A$6/'Other Graphs'!$A$9)-2*Data!D142^2*'Other Graphs'!$A$3))/D142 -> 0.2 | O142: 104.000001 | P142: =IF($C$4, 'Option vs Time'!$A$6*S142-EXP(-1*'Option vs Time'!$A$3*O142)*'Option vs Time'!$A$9*T142,-1*'Option vs Time'!$A$6*S142+EXP(-1*'Option vs Time'!$A$3*O142)*'Option vs Time'!$A$9*T142) -> 97.50371649 | Q142: =(LN('Option vs Time'!$A$6/'Option vs Time'!$A$9)+('Option vs Time'!$A$3+0.5*'Option vs Time'!$A$15^2)*O142)/('Option vs Time'!$A$15*SQRT(O142)) -> 2.757731086 | R142: =Q142-'Option vs Time'!$A$15*SQRT(O142) -> 0.7181232707 | S142: 0.9970897971 | T142: 0.7636593586 | U142: 0.08445417281
D143: 105.000001 | E143: =IF($C$4, 'Other Graphs'!$A$6*H143-EXP(-1*'Other Graphs'!$A$3*D143)*'Other Graphs'!$A$9*I143,-1*'Other Graphs'!$A$6*H143+EXP(-1*'Other Graphs'!$A$3*D143)*'Other Graphs'!$A$9*I143) -> 107.5622028 | F143: =(LN('Other Graphs'!$A$6/'Other Graphs'!$A$9)+('Other Graphs'!$A$3+0.5*'Other Graphs'!$A$15^2)*D143)/('Other Graphs'!$A$15*SQRT(D143)) -> 2.817911474 | G143: =F143-'Other Graphs'!$A$15*SQRT(D143) -> 0.7685213111 | H143: 0.9975831433 | I143: 0.7789112327 | J143: =(F143*SQRT(D143)+SQRT(F143^2*D143-2*D143*LN('Other Graphs'!$A$6/'Other Graphs'!$A$9)-2*Data!D143^2*'Other Graphs'!$A$3))/D143 -> 0.35 | K143: =(F143*SQRT(D143)-SQRT(F143^2*D143-2*D143*LN('Other Graphs'!$A$6/'Other Graphs'!$A$9)-2*Data!D143^2*'Other Graphs'!$A$3))/D143 -> 0.2 | O143: 105.000001 | P143: =IF($C$4, 'Option vs Time'!$A$6*S143-EXP(-1*'Option vs Time'!$A$3*O143)*'Option vs Time'!$A$9*T143,-1*'Option vs Time'!$A$6*S143+EXP(-1*'Option vs Time'!$A$3*O143)*'Option vs Time'!$A$9*T143) -> 97.58817066 | Q143: =(LN('Option vs Time'!$A$6/'Option vs Time'!$A$9)+('Option vs Time'!$A$3+0.5*'Option vs Time'!$A$15^2)*O143)/('Option vs Time'!$A$15*SQRT(O143)) -> 2.771404869 | R143: =Q143-'Option vs Time'!$A$15*SQRT(O143) -> 0.7220147056 | S143: 0.997209251 | T143: 0.7648572818 | U143: 0.08160164895
D144: 106.000001 | E144: =IF($C$4, 'Other Graphs'!$A$6*H144-EXP(-1*'Other Graphs'!$A$3*D144)*'Other Graphs'!$A$9*I144,-1*'Other Graphs'!$A$6*H144+EXP(-1*'Other Graphs'!$A$3*D144)*'Other Graphs'!$A$9*I144) -> 107.6448682 | F144: =(LN('Other Graphs'!$A$6/'Other Graphs'!$A$9)+('Other Graphs'!$A$3+0.5*'Other Graphs'!$A$15^2)*D144)/('Other Graphs'!$A$15*SQRT(D144)) -> 2.831298302 | G144: =F144-'Other Graphs'!$A$15*SQRT(D144) -> 0.7721722642 | H144: 0.9976820269 | I144: 0.7799937968 | J144: =(F144*SQRT(D144)+SQRT(F144^2*D144-2*D144*LN('Other Graphs'!$A$6/'Other Graphs'!$A$9)-2*Data!D144^2*'Other Graphs'!$A$3))/D144 -> 0.35 | K144: =(F144*SQRT(D144)-SQRT(F144^2*D144-2*D144*LN('Other Graphs'!$A$6/'Other Graphs'!$A$9)-2*Data!D144^2*'Other Graphs'!$A$3))/D144 -> 0.2 | O144: 106.000001 | P144: =IF($C$4, 'Option vs Time'!$A$6*S144-EXP(-1*'Option vs Time'!$A$3*O144)*'Option vs Time'!$A$9*T144,-1*'Option vs Time'!$A$6*S144+EXP(-1*'Option vs Time'!$A$3*O144)*'Option vs Time'!$A$9*T144) -> 97.66977231 | Q144: =(LN('Option vs Time'!$A$6/'Option vs Time'!$A$9)+('Option vs Time'!$A$3+0.5*'Option vs Time'!$A$15^2)*O144)/('Option vs Time'!$A$15*SQRT(O144)) -> 2.785011587 | R144: =Q144-'Option vs Time'!$A$15*SQRT(O144) -> 0.7258855493 | S144: 0.9973237095 | T144: 0.766045532 | U144: 0.07884535399
D145: 107.000001 | E145: =IF($C$4, 'Other Graphs'!$A$6*H145-EXP(-1*'Other Graphs'!$A$3*D145)*'Other Graphs'!$A$9*I145,-1*'Other Graphs'!$A$6*H145+EXP(-1*'Other Graphs'!$A$3*D145)*'Other Graphs'!$A$9*I145) -> 107.724733 | F145: =(LN('Other Graphs'!$A$6/'Other Graphs'!$A$9)+('Other Graphs'!$A$3+0.5*'Other Graphs'!$A$15^2)*D145)/('Other Graphs'!$A$15*SQRT(D145)) -> 2.844622132 | G145: =F145-'Other Graphs'!$A$15*SQRT(D145) -> 0.7758060361 | H145: 0.9977767932 | I145: 0.7810682403 | J145: =(F145*SQRT(D145)+SQRT(F145^2*D145-2*D145*LN('Other Graphs'!$A$6/'Other Graphs'!$A$9)-2*Data!D145^2*'Other Graphs'!$A$3))/D145 -> 0.35 | K145: =(F145*SQRT(D145)-SQRT(F145^2*D145-2*D145*LN('Other Graphs'!$A$6/'Other Graphs'!$A$9)-2*Data!D145^2*'Other Graphs'!$A$3))/D145 -> 0.2 | O145: 107.000001 | P145: =IF($C$4, 'Option vs Time'!$A$6*S145-EXP(-1*'Option vs Time'!$A$3*O145)*'Option vs Time'!$A$9*T145,-1*'Option vs Time'!$A$6*S145+EXP(-1*'Option vs Time'!$A$3*O145)*'Option vs Time'!$A$9*T145) -> 97.74861767 | Q145: =(LN('Option vs Time'!$A$6/'Option vs Time'!$A$9)+('Option vs Time'!$A$3+0.5*'Option vs Time'!$A$15^2)*O145)/('Option vs Time'!$A$15*SQRT(O145)) -> 2.798552218 | R145: =Q145-'Option vs Time'!$A$15*SQRT(O145) -> 0.729736122 | S145: 0.9974333866 | T145: 0.7672242516 | U145: 0.07618204127
D146: 108.000001 | E146: =IF($C$4, 'Other Graphs'!$A$6*H146-EXP(-1*'Other Graphs'!$A$3*D146)*'Other Graphs'!$A$9*I146,-1*'Other Graphs'!$A$6*H146+EXP(-1*'Other Graphs'!$A$3*D146)*'Other Graphs'!$A$9*I146) -> 107.801892 | F146: =(LN('Other Graphs'!$A$6/'Other Graphs'!$A$9)+('Other Graphs'!$A$3+0.5*'Other Graphs'!$A$15^2)*D146)/('Other Graphs'!$A$15*SQRT(D146)) -> 2.857883846 | G146: =F146-'Other Graphs'!$A$15*SQRT(D146) -> 0.779422867 | H146: 0.9978676176 | I146: 0.782134671 | J146: =(F146*SQRT(D146)+SQRT(F146^2*D146-2*D146*LN('Other Graphs'!$A$6/'Other Graphs'!$A$9)-2*Data!D146^2*'Other Graphs'!$A$3))/D146 -> 0.35 | K146: =(F146*SQRT(D146)-SQRT(F146^2*D146-2*D146*LN('Other Graphs'!$A$6/'Other Graphs'!$A$9)-2*Data!D146^2*'Other Graphs'!$A$3))/D146 -> 0.2 | O146: 108.000001 | P146: =IF($C$4, 'Option vs Time'!$A$6*S146-EXP(-1*'Option vs Time'!$A$3*O146)*'Option vs Time'!$A$9*T146,-1*'Option vs Time'!$A$6*S146+EXP(-1*'Option vs Time'!$A$3*O146)*'Option vs Time'!$A$9*T146) -> 97.82479971 | Q146: =(LN('Option vs Time'!$A$6/'Option vs Time'!$A$9)+('Option vs Time'!$A$3+0.5*'Option vs Time'!$A$15^2)*O146)/('Option vs Time'!$A$15*SQRT(O146)) -> 2.812027714 | R146: =Q146-'Option vs Time'!$A$15*SQRT(O146) -> 0.7335667356 | S146: 0.9975384869 | T146: 0.7683935796 | U146: 0.07360857407
D147: 109.000001 | E147: =IF($C$4, 'Other Graphs'!$A$6*H147-EXP(-1*'Other Graphs'!$A$3*D147)*'Other Graphs'!$A$9*I147,-1*'Other Graphs'!$A$6*H147+EXP(-1*'Other Graphs'!$A$3*D147)*'Other Graphs'!$A$9*I147) -> 107.8764369 | F147: =(LN('Other Graphs'!$A$6/'Other Graphs'!$A$9)+('Other Graphs'!$A$3+0.5*'Other Graphs'!$A$15^2)*D147)/('Other Graphs'!$A$15*SQRT(D147)) -> 2.871084303 | G147: =F147-'Other Graphs'!$A$15*SQRT(D147) -> 0.7830229918 | H147: 0.9979546679 | I147: 0.7831931947 | J147: =(F147*SQRT(D147)+SQRT(F147^2*D147-2*D147*LN('Other Graphs'!$A$6/'Other Graphs'!$A$9)-2*Data!D147^2*'Other Graphs'!$A$3))/D147 -> 0.35 | K147: =(F147*SQRT(D147)-SQRT(F147^2*D147-2*D147*LN('Other Graphs'!$A$6/'Other Graphs'!$A$9)-2*Data!D147^2*'Other Graphs'!$A$3))/D147 -> 0.2 | O147: 109.000001 | P147: =IF($C$4, 'Option vs Time'!$A$6*S147-EXP(-1*'Option vs Time'!$A$3*O147)*'Option vs Time'!$A$9*T147,-1*'Option vs Time'!$A$6*S147+EXP(-1*'Option vs Time'!$A$3*O147)*'Option vs Time'!$A$9*T147) -> 97.89840828 | Q147: =(LN('Option vs Time'!$A$6/'Option vs Time'!$A$9)+('Option vs Time'!$A$3+0.5*'Option vs Time'!$A$15^2)*O147)/('Option vs Time'!$A$15*SQRT(O147)) -> 2.825439006 | R147: =Q147-'Option vs Time'!$A$15*SQRT(O147) -> 0.7373776942 | S147: 0.9976392062 | T147: 0.7695536519 | U147: 0.07112192185
D148: 110.000001 | E148: =IF($C$4, 'Other Graphs'!$A$6*H148-EXP(-1*'Other Graphs'!$A$3*D148)*'Other Graphs'!$A$9*I148,-1*'Other Graphs'!$A$6*H148+EXP(-1*'Other Graphs'!$A$3*D148)*'Other Graphs'!$A$9*I148) -> 107.9484561 | F148: =(LN('Other Graphs'!$A$6/'Other Graphs'!$A$9)+('Other Graphs'!$A$3+0.5*'Other Graphs'!$A$15^2)*D148)/('Other Graphs'!$A$15*SQRT(D148)) -> 2.884224346 | G148: =F148-'Other Graphs'!$A$15*SQRT(D148) -> 0.7866066397 | H148: 0.9980381045 | I148: 0.7842439144 | J148: =(F148*SQRT(D148)+SQRT(F148^2*D148-2*D148*LN('Other Graphs'!$A$6/'Other Graphs'!$A$9)-2*Data!D148^2*'Other Graphs'!$A$3))/D148 -> 0.35 | K148: =(F148*SQRT(D148)-SQRT(F148^2*D148-2*D148*LN('Other Graphs'!$A$6/'Other Graphs'!$A$9)-2*Data!D148^2*'Other Graphs'!$A$3))/D148 -> 0.2 | O148: 110.000001 | P148: =IF($C$4, 'Option vs Time'!$A$6*S148-EXP(-1*'Option vs Time'!$A$3*O148)*'Option vs Time'!$A$9*T148,-1*'Option vs Time'!$A$6*S148+EXP(-1*'Option vs Time'!$A$3*O148)*'Option vs Time'!$A$9*T148) -> 97.96953021 | Q148: =(LN('Option vs Time'!$A$6/'Option vs Time'!$A$9)+('Option vs Time'!$A$3+0.5*'Option vs Time'!$A$15^2)*O148)/('Option vs Time'!$A$15*SQRT(O148)) -> 2.838787 | R148: =Q148-'Option vs Time'!$A$15*SQRT(O148) -> 0.7411692945 | S148: 0.9977357313 | T148: 0.7707046007 | U148: 0.0687191566
D149: 111.000001 | E149: =IF($C$4, 'Other Graphs'!$A$6*H149-EXP(-1*'Other Graphs'!$A$3*D149)*'Other Graphs'!$A$9*I149,-1*'Other Graphs'!$A$6*H149+EXP(-1*'Other Graphs'!$A$3*D149)*'Other Graphs'!$A$9*I149) -> 108.0180354 | F149: =(LN('Other Graphs'!$A$6/'Other Graphs'!$A$9)+('Other Graphs'!$A$3+0.5*'Other Graphs'!$A$15^2)*D149)/('Other Graphs'!$A$15*SQRT(D149)) -> 2.897304795 | G149: =F149-'Other Graphs'!$A$15*SQRT(D149) -> 0.790174035 | H149: 0.9981180806 | I149: 0.7852869312 | J149: =(F149*SQRT(D149)+SQRT(F149^2*D149-2*D149*LN('Other Graphs'!$A$6/'Other Graphs'!$A$9)-2*Data!D149^2*'Other Graphs'!$A$3))/D149 -> 0.35 | K149: =(F149*SQRT(D149)-SQRT(F149^2*D149-2*D149*LN('Other Graphs'!$A$6/'Other Graphs'!$A$9)-2*Data!D149^2*'Other Graphs'!$A$3))/D149 -> 0.2 | O149: 111.000001 | P149: =IF($C$4, 'Option vs Time'!$A$6*S149-EXP(-1*'Option vs Time'!$A$3*O149)*'Option vs Time'!$A$9*T149,-1*'Option vs Time'!$A$6*S149+EXP(-1*'Option vs Time'!$A$3*O149)*'Option vs Time'!$A$9*T149) -> 98.03824936 | Q149: =(LN('Option vs Time'!$A$6/'Option vs Time'!$A$9)+('Option vs Time'!$A$3+0.5*'Option vs Time'!$A$15^2)*O149)/('Option vs Time'!$A$15*SQRT(O149)) -> 2.852072586 | R149: =Q149-'Option vs Time'!$A$15*SQRT(O149) -> 0.7449418256 | S149: 0.9978282409 | T149: 0.7718465556 | U149: 0.06639744933
D150: 112.000001 | E150: =IF($C$4, 'Other Graphs'!$A$6*H150-EXP(-1*'Other Graphs'!$A$3*D150)*'Other Graphs'!$A$9*I150,-1*'Other Graphs'!$A$6*H150+EXP(-1*'Other Graphs'!$A$3*D150)*'Other Graphs'!$A$9*I150) -> 108.0852572 | F150: =(LN('Other Graphs'!$A$6/'Other Graphs'!$A$9)+('Other Graphs'!$A$3+0.5*'Other Graphs'!$A$15^2)*D150)/('Other Graphs'!$A$15*SQRT(D150)) -> 2.910326455 | G150: =F150-'Other Graphs'!$A$15*SQRT(D150) -> 0.7937253969 | H150: 0.9981947429 | I150: 0.7863223441 | J150: =(F150*SQRT(D150)+SQRT(F150^2*D150-2*D150*LN('Other Graphs'!$A$6/'Other Graphs'!$A$9)-2*Data!D150^2*'Other Graphs'!$A$3))/D150 -> 0.35 | K150: =(F150*SQRT(D150)-SQRT(F150^2*D150-2*D150*LN('Other Graphs'!$A$6/'Other Graphs'!$A$9)-2*Data!D150^2*'Other Graphs'!$A$3))/D150 -> 0.2 | O150: 112.000001 | P150: =IF($C$4, 'Option vs Time'!$A$6*S150-EXP(-1*'Option vs Time'!$A$3*O150)*'Option vs Time'!$A$9*T150,-1*'Option vs Time'!$A$6*S150+EXP(-1*'Option vs Time'!$A$3*O150)*'Option vs Time'!$A$9*T150) -> 98.10464681 | Q150: =(LN('Option vs Time'!$A$6/'Option vs Time'!$A$9)+('Option vs Time'!$A$3+0.5*'Option vs Time'!$A$15^2)*O150)/('Option vs Time'!$A$15*SQRT(O150)) -> 2.865296628 | R150: =Q150-'Option vs Time'!$A$15*SQRT(O150) -> 0.7486955697 | S150: 0.9979169061 | T150: 0.7729796427 | U150: 0.06415406671
D151: 113.000001 | E151: =IF($C$4, 'Other Graphs'!$A$6*H151-EXP(-1*'Other Graphs'!$A$3*D151)*'Other Graphs'!$A$9*I151,-1*'Other Graphs'!$A$6*H151+EXP(-1*'Other Graphs'!$A$3*D151)*'Other Graphs'!$A$9*I151) -> 108.1502015 | F151: =(LN('Other Graphs'!$A$6/'Other Graphs'!$A$9)+('Other Graphs'!$A$3+0.5*'Other Graphs'!$A$15^2)*D151)/('Other Graphs'!$A$15*SQRT(D151)) -> 2.923290111 | G151: =F151-'Other Graphs'!$A$15*SQRT(D151) -> 0.7972609395 | H151: 0.9982682318 | I151: 0.7873502497 | J151: =(F151*SQRT(D151)+SQRT(F151^2*D151-2*D151*LN('Other Graphs'!$A$6/'Other Graphs'!$A$9)-2*Data!D151^2*'Other Graphs'!$A$3))/D151 -> 0.35 | K151: =(F151*SQRT(D151)-SQRT(F151^2*D151-2*D151*LN('Other Graphs'!$A$6/'Other Graphs'!$A$9)-2*Data!D151^2*'Other Graphs'!$A$3))/D151 -> 0.2 | O151: 113.000001 | P151: =IF($C$4, 'Option vs Time'!$A$6*S151-EXP(-1*'Option vs Time'!$A$3*O151)*'Option vs Time'!$A$9*T151,-1*'Option vs Time'!$A$6*S151+EXP(-1*'Option vs Time'!$A$3*O151)*'Option vs Time'!$A$9*T151) -> 98.16880088 | Q151: =(LN('Option vs Time'!$A$6/'Option vs Time'!$A$9)+('Option vs Time'!$A$3+0.5*'Option vs Time'!$A$15^2)*O151)/('Option vs Time'!$A$15*SQRT(O151)) -> 2.878459974 | R151: =Q151-'Option vs Time'!$A$15*SQRT(O151) -> 0.7524308021 | S151: 0.9980018901 | T151: 0.7741039856 | U151: 0.06198636778
D152: 114.000001 | E152: =IF($C$4, 'Other Graphs'!$A$6*H152-EXP(-1*'Other Graphs'!$A$3*D152)*'Other Graphs'!$A$9*I152,-1*'Other Graphs'!$A$6*H152+EXP(-1*'Other Graphs'!$A$3*D152)*'Other Graphs'!$A$9*I152) -> 108.2129453 | F152: =(LN('Other Graphs'!$A$6/'Other Graphs'!$A$9)+('Other Graphs'!$A$3+0.5*'Other Graphs'!$A$15^2)*D152)/('Other Graphs'!$A$15*SQRT(D152)) -> 2.936196532 | G152: =F152-'Other Graphs'!$A$15*SQRT(D152) -> 0.8007808724 | H152: 0.9983386813 | I152: 0.7883707429 | J152: =(F152*SQRT(D152)+SQRT(F152^2*D152-2*D152*LN('Other Graphs'!$A$6/'Other Graphs'!$A$9)-2*Data!D152^2*'Other Graphs'!$A$3))/D152 -> 0.35 | K152: =(F152*SQRT(D152)-SQRT(F152^2*D152-2*D152*LN('Other Graphs'!$A$6/'Other Graphs'!$A$9)-2*Data!D152^2*'Other Graphs'!$A$3))/D152 -> 0.2 | O152: 114.000001 | P152: =IF($C$4, 'Option vs Time'!$A$6*S152-EXP(-1*'Option vs Time'!$A$3*O152)*'Option vs Time'!$A$9*T152,-1*'Option vs Time'!$A$6*S152+EXP(-1*'Option vs Time'!$A$3*O152)*'Option vs Time'!$A$9*T152) -> 98.23078725 | Q152: =(LN('Option vs Time'!$A$6/'Option vs Time'!$A$9)+('Option vs Time'!$A$3+0.5*'Option vs Time'!$A$15^2)*O152)/('Option vs Time'!$A$15*SQRT(O152)) -> 2.891563451 | R152: =Q152-'Option vs Time'!$A$15*SQRT(O152) -> 0.7561477916 | S152: 0.9980833491 | T152: 0.7752197046 | U152: 0.05989180083
D153: 115.000001 | E153: =IF($C$4, 'Other Graphs'!$A$6*H153-EXP(-1*'Other Graphs'!$A$3*D153)*'Other Graphs'!$A$9*I153,-1*'Other Graphs'!$A$6*H153+EXP(-1*'Other Graphs'!$A$3*D153)*'Other Graphs'!$A$9*I153) -> 108.2735633 | F153: =(LN('Other Graphs'!$A$6/'Other Graphs'!$A$9)+('Other Graphs'!$A$3+0.5*'Other Graphs'!$A$15^2)*D153)/('Other Graphs'!$A$15*SQRT(D153)) -> 2.949046469 | G153: =F153-'Other Graphs'!$A$15*SQRT(D153) -> 0.8042854006 | H153: 0.9984062198 | I153: 0.7893839164 | J153: =(F153*SQRT(D153)+SQRT(F153^2*D153-2*D153*LN('Other Graphs'!$A$6/'Other Graphs'!$A$9)-2*Data!D153^2*'Other Graphs'!$A$3))/D153 -> 0.35 | K153: =(F153*SQRT(D153)-SQRT(F153^2*D153-2*D153*LN('Other Graphs'!$A$6/'Other Graphs'!$A$9)-2*Data!D153^2*'Other Graphs'!$A$3))/D153 -> 0.2 | O153: 115.000001 | P153: =IF($C$4, 'Option vs Time'!$A$6*S153-EXP(-1*'Option vs Time'!$A$3*O153)*'Option vs Time'!$A$9*T153,-1*'Option vs Time'!$A$6*S153+EXP(-1*'Option vs Time'!$A$3*O153)*'Option vs Time'!$A$9*T153) -> 98.29067905 | Q153: =(LN('Option vs Time'!$A$6/'Option vs Time'!$A$9)+('Option vs Time'!$A$3+0.5*'Option vs Time'!$A$15^2)*O153)/('Option vs Time'!$A$15*SQRT(O153)) -> 2.904607869 | R153: =Q153-'Option vs Time'!$A$15*SQRT(O153) -> 0.7598468003 | S153: 0.9981614326 | T153: 0.7763269177 | U153: 0.05786790031
D154: 116.000001 | E154: =IF($C$4, 'Other Graphs'!$A$6*H154-EXP(-1*'Other Graphs'!$A$3*D154)*'Other Graphs'!$A$9*I154,-1*'Other Graphs'!$A$6*H154+EXP(-1*'Other Graphs'!$A$3*D154)*'Other Graphs'!$A$9*I154) -> 108.3321273 | F154: =(LN('Other Graphs'!$A$6/'Other Graphs'!$A$9)+('Other Graphs'!$A$3+0.5*'Other Graphs'!$A$15^2)*D154)/('Other Graphs'!$A$15*SQRT(D154)) -> 2.961840657 | G154: =F154-'Other Graphs'!$A$15*SQRT(D154) -> 0.8077747246 | H154: 0.99847097 | I154: 0.790389861 | J154: =(F154*SQRT(D154)+SQRT(F154^2*D154-2*D154*LN('Other Graphs'!$A$6/'Other Graphs'!$A$9)-2*Data!D154^2*'Other Graphs'!$A$3))/D154 -> 0.35 | K154: =(F154*SQRT(D154)-SQRT(F154^2*D154-2*D154*LN('Other Graphs'!$A$6/'Other Graphs'!$A$9)-2*Data!D154^2*'Other Graphs'!$A$3))/D154 -> 0.2 | O154: 116.000001 | P154: =IF($C$4, 'Option vs Time'!$A$6*S154-EXP(-1*'Option vs Time'!$A$3*O154)*'Option vs Time'!$A$9*T154,-1*'Option vs Time'!$A$6*S154+EXP(-1*'Option vs Time'!$A$3*O154)*'Option vs Time'!$A$9*T154) -> 98.34854695 | Q154: =(LN('Option vs Time'!$A$6/'Option vs Time'!$A$9)+('Option vs Time'!$A$3+0.5*'Option vs Time'!$A$15^2)*O154)/('Option vs Time'!$A$15*SQRT(O154)) -> 2.917594017 | R154: =Q154-'Option vs Time'!$A$15*SQRT(O154) -> 0.7635280846 | S154: 0.9982362835 | T154: 0.7774257401 | U154: 0.05591228395
D155: 117.000001 | E155: =IF($C$4, 'Other Graphs'!$A$6*H155-EXP(-1*'Other Graphs'!$A$3*D155)*'Other Graphs'!$A$9*I155,-1*'Other Graphs'!$A$6*H155+EXP(-1*'Other Graphs'!$A$3*D155)*'Other Graphs'!$A$9*I155) -> 108.3887069 | F155: =(LN('Other Graphs'!$A$6/'Other Graphs'!$A$9)+('Other Graphs'!$A$3+0.5*'Other Graphs'!$A$15^2)*D155)/('Other Graphs'!$A$15*SQRT(D155)) -> 2.974579815 | G155: =F155-'Other Graphs'!$A$15*SQRT(D155) -> 0.8112490404 | H155: 0.9985330494 | I155: 0.7913886659 | J155: =(F155*SQRT(D155)+SQRT(F155^2*D155-2*D155*LN('Other Graphs'!$A$6/'Other Graphs'!$A$9)-2*Data!D155^2*'Other Graphs'!$A$3))/D155 -> 0.35 | K155: =(F155*SQRT(D155)-SQRT(F155^2*D155-2*D155*LN('Other Graphs'!$A$6/'Other Graphs'!$A$9)-2*Data!D155^2*'Other Graphs'!$A$3))/D155 -> 0.2 | O155: 117.000001 | P155: =IF($C$4, 'Option vs Time'!$A$6*S155-EXP(-1*'Option vs Time'!$A$3*O155)*'Option vs Time'!$A$9*T155,-1*'Option vs Time'!$A$6*S155+EXP(-1*'Option vs Time'!$A$3*O155)*'Option vs Time'!$A$9*T155) -> 98.40445923 | Q155: =(LN('Option vs Time'!$A$6/'Option vs Time'!$A$9)+('Option vs Time'!$A$3+0.5*'Option vs Time'!$A$15^2)*O155)/('Option vs Time'!$A$15*SQRT(O155)) -> 2.930522669 | R155: =Q155-'Option vs Time'!$A$15*SQRT(O155) -> 0.7671918944 | S155: 0.9983080385 | T155: 0.7785162843 | U155: 0.05402264989
D156: 118.000001 | E156: =IF($C$4, 'Other Graphs'!$A$6*H156-EXP(-1*'Other Graphs'!$A$3*D156)*'Other Graphs'!$A$9*I156,-1*'Other Graphs'!$A$6*H156+EXP(-1*'Other Graphs'!$A$3*D156)*'Other Graphs'!$A$9*I156) -> 108.4433694 | F156: =(LN('Other Graphs'!$A$6/'Other Graphs'!$A$9)+('Other Graphs'!$A$3+0.5*'Other Graphs'!$A$15^2)*D156)/('Other Graphs'!$A$15*SQRT(D156)) -> 2.987264648 | G156: =F156-'Other Graphs'!$A$15*SQRT(D156) -> 0.8147085403 | H156: 0.9985925703 | I156: 0.7923804182 | J156: =(F156*SQRT(D156)+SQRT(F156^2*D156-2*D156*LN('Other Graphs'!$A$6/'Other Graphs'!$A$9)-2*Data!D156^2*'Other Graphs'!$A$3))/D156 -> 0.35 | K156: =(F156*SQRT(D156)-SQRT(F156^2*D156-2*D156*LN('Other Graphs'!$A$6/'Other Graphs'!$A$9)-2*Data!D156^2*'Other Graphs'!$A$3))/D156 -> 0.2 | O156: 118.000001 | P156: =IF($C$4, 'Option vs Time'!$A$6*S156-EXP(-1*'Option vs Time'!$A$3*O156)*'Option vs Time'!$A$9*T156,-1*'Option vs Time'!$A$6*S156+EXP(-1*'Option vs Time'!$A$3*O156)*'Option vs Time'!$A$9*T156) -> 98.45848188 | Q156: =(LN('Option vs Time'!$A$6/'Option vs Time'!$A$9)+('Option vs Time'!$A$3+0.5*'Option vs Time'!$A$15^2)*O156)/('Option vs Time'!$A$15*SQRT(O156)) -> 2.943394582 | R156: =Q156-'Option vs Time'!$A$15*SQRT(O156) -> 0.7708384743 | S156: 0.9983768282 | T156: 0.7795986604 | U156: 0.05219677395
D157: 119.000001 | E157: =IF($C$4, 'Other Graphs'!$A$6*H157-EXP(-1*'Other Graphs'!$A$3*D157)*'Other Graphs'!$A$9*I157,-1*'Other Graphs'!$A$6*H157+EXP(-1*'Other Graphs'!$A$3*D157)*'Other Graphs'!$A$9*I157) -> 108.4961796 | F157: =(LN('Other Graphs'!$A$6/'Other Graphs'!$A$9)+('Other Graphs'!$A$3+0.5*'Other Graphs'!$A$15^2)*D157)/('Other Graphs'!$A$15*SQRT(D157)) -> 2.999895844 | G157: =F157-'Other Graphs'!$A$15*SQRT(D157) -> 0.818153412 | H157: 0.9986496403 | I157: 0.7933652033 | J157: =(F157*SQRT(D157)+SQRT(F157^2*D157-2*D157*LN('Other Graphs'!$A$6/'Other Graphs'!$A$9)-2*Data!D157^2*'Other Graphs'!$A$3))/D157 -> 0.35 | K157: =(F157*SQRT(D157)-SQRT(F157^2*D157-2*D157*LN('Other Graphs'!$A$6/'Other Graphs'!$A$9)-2*Data!D157^2*'Other Graphs'!$A$3))/D157 -> 0.2 | O157: 119.000001 | P157: =IF($C$4, 'Option vs Time'!$A$6*S157-EXP(-1*'Option vs Time'!$A$3*O157)*'Option vs Time'!$A$9*T157,-1*'Option vs Time'!$A$6*S157+EXP(-1*'Option vs Time'!$A$3*O157)*'Option vs Time'!$A$9*T157) -> 98.51067865 | Q157: =(LN('Option vs Time'!$A$6/'Option vs Time'!$A$9)+('Option vs Time'!$A$3+0.5*'Option vs Time'!$A$15^2)*O157)/('Option vs Time'!$A$15*SQRT(O157)) -> 2.956210495 | R157: =Q157-'Option vs Time'!$A$15*SQRT(O157) -> 0.7744680629 | S157: 0.9984427777 | T157: 0.7806729763 | U157: 0.05043250704
D158: 120.000001 | E158: =IF($C$4, 'Other Graphs'!$A$6*H158-EXP(-1*'Other Graphs'!$A$3*D158)*'Other Graphs'!$A$9*I158,-1*'Other Graphs'!$A$6*H158+EXP(-1*'Other Graphs'!$A$3*D158)*'Other Graphs'!$A$9*I158) -> 108.5472002 | F158: =(LN('Other Graphs'!$A$6/'Other Graphs'!$A$9)+('Other Graphs'!$A$3+0.5*'Other Graphs'!$A$15^2)*D158)/('Other Graphs'!$A$15*SQRT(D158)) -> 3.012474079 | G158: =F158-'Other Graphs'!$A$15*SQRT(D158) -> 0.8215838397 | H158: 0.9987043622 | I158: 0.7943431051 | J158: =(F158*SQRT(D158)+SQRT(F158^2*D158-2*D158*LN('Other Graphs'!$A$6/'Other Graphs'!$A$9)-2*Data!D158^2*'Other Graphs'!$A$3))/D158 -> 0.35 | K158: =(F158*SQRT(D158)-SQRT(F158^2*D158-2*D158*LN('Other Graphs'!$A$6/'Other Graphs'!$A$9)-2*Data!D158^2*'Other Graphs'!$A$3))/D158 -> 0.2 | O158: 120.000001 | P158: =IF($C$4, 'Option vs Time'!$A$6*S158-EXP(-1*'Option vs Time'!$A$3*O158)*'Option vs Time'!$A$9*T158,-1*'Option vs Time'!$A$6*S158+EXP(-1*'Option vs Time'!$A$3*O158)*'Option vs Time'!$A$9*T158) -> 98.56111116 | Q158: =(LN('Option vs Time'!$A$6/'Option vs Time'!$A$9)+('Option vs Time'!$A$3+0.5*'Option vs Time'!$A$15^2)*O158)/('Option vs Time'!$A$15*SQRT(O158)) -> 2.968971133 | R158: =Q158-'Option vs Time'!$A$15*SQRT(O158) -> 0.7780808937 | S158: 0.9985060067 | T158: 0.7817393372 | U158: 0.04872777252
D159: 121.000001 | E159: =IF($C$4, 'Other Graphs'!$A$6*H159-EXP(-1*'Other Graphs'!$A$3*D159)*'Other Graphs'!$A$9*I159,-1*'Other Graphs'!$A$6*H159+EXP(-1*'Other Graphs'!$A$3*D159)*'Other Graphs'!$A$9*I159) -> 108.596492 | F159: =(LN('Other Graphs'!$A$6/'Other Graphs'!$A$9)+('Other Graphs'!$A$3+0.5*'Other Graphs'!$A$15^2)*D159)/('Other Graphs'!$A$15*SQRT(D159)) -> 3.025000013 | G159: =F159-'Other Graphs'!$A$15*SQRT(D159) -> 0.8250000034 | H159: 0.9987568344 | I159: 0.7953142056 | J159: =(F159*SQRT(D159)+SQRT(F159^2*D159-2*D159*LN('Other Graphs'!$A$6/'Other Graphs'!$A$9)-2*Data!D159^2*'Other Graphs'!$A$3))/D159 -> 0.35 | K159: =(F159*SQRT(D159)-SQRT(F159^2*D159-2*D159*LN('Other Graphs'!$A$6/'Other Graphs'!$A$9)-2*Data!D159^2*'Other Graphs'!$A$3))/D159 -> 0.2 | O159: 121.000001 | P159: =IF($C$4, 'Option vs Time'!$A$6*S159-EXP(-1*'Option vs Time'!$A$3*O159)*'Option vs Time'!$A$9*T159,-1*'Option vs Time'!$A$6*S159+EXP(-1*'Option vs Time'!$A$3*O159)*'Option vs Time'!$A$9*T159) -> 98.60983893 | Q159: =(LN('Option vs Time'!$A$6/'Option vs Time'!$A$9)+('Option vs Time'!$A$3+0.5*'Option vs Time'!$A$15^2)*O159)/('Option vs Time'!$A$15*SQRT(O159)) -> 2.981677204 | R159: =Q159-'Option vs Time'!$A$15*SQRT(O159) -> 0.7816771946 | S159: 0.9985666296 | T159: 0.7827978463 | U159: 0.04708056383
D160: 122.000001 | E160: =IF($C$4, 'Other Graphs'!$A$6*H160-EXP(-1*'Other Graphs'!$A$3*D160)*'Other Graphs'!$A$9*I160,-1*'Other Graphs'!$A$6*H160+EXP(-1*'Other Graphs'!$A$3*D160)*'Other Graphs'!$A$9*I160) -> 108.6441133 | F160: =(LN('Other Graphs'!$A$6/'Other Graphs'!$A$9)+('Other Graphs'!$A$3+0.5*'Other Graphs'!$A$15^2)*D160)/('Other Graphs'!$A$15*SQRT(D160)) -> 3.037474292 | G160: =F160-'Other Graphs'!$A$15*SQRT(D160) -> 0.8284020797 | H160: 0.9988071512 | I160: 0.7962785854 | J160: =(F160*SQRT(D160)+SQRT(F160^2*D160-2*D160*LN('Other Graphs'!$A$6/'Other Graphs'!$A$9)-2*Data!D160^2*'Other Graphs'!$A$3))/D160 -> 0.35 | K160: =(F160*SQRT(D160)-SQRT(F160^2*D160-2*D160*LN('Other Graphs'!$A$6/'Other Graphs'!$A$9)-2*Data!D160^2*'Other Graphs'!$A$3))/D160 -> 0.2 | O160: 122.000001 | P160: =IF($C$4, 'Option vs Time'!$A$6*S160-EXP(-1*'Option vs Time'!$A$3*O160)*'Option vs Time'!$A$9*T160,-1*'Option vs Time'!$A$6*S160+EXP(-1*'Option vs Time'!$A$3*O160)*'Option vs Time'!$A$9*T160) -> 98.6569195 | Q160: =(LN('Option vs Time'!$A$6/'Option vs Time'!$A$9)+('Option vs Time'!$A$3+0.5*'Option vs Time'!$A$15^2)*O160)/('Option vs Time'!$A$15*SQRT(O160)) -> 2.994329401 | R160: =Q160-'Option vs Time'!$A$15*SQRT(O160) -> 0.7852571887 | S160: 0.9986247559 | T160: 0.7838486045 | U160: 0.04548894208
D161: 123.000001 | E161: =IF($C$4, 'Other Graphs'!$A$6*H161-EXP(-1*'Other Graphs'!$A$3*D161)*'Other Graphs'!$A$9*I161,-1*'Other Graphs'!$A$6*H161+EXP(-1*'Other Graphs'!$A$3*D161)*'Other Graphs'!$A$9*I161) -> 108.6901208 | F161: =(LN('Other Graphs'!$A$6/'Other Graphs'!$A$9)+('Other Graphs'!$A$3+0.5*'Other Graphs'!$A$15^2)*D161)/('Other Graphs'!$A$15*SQRT(D161)) -> 3.049897552 | G161: =F161-'Other Graphs'!$A$15*SQRT(D161) -> 0.8317902414 | H161: 0.9988554028 | I161: 0.7972363234 | J161: =(F161*SQRT(D161)+SQRT(F161^2*D161-2*D161*LN('Other Graphs'!$A$6/'Other Graphs'!$A$9)-2*Data!D161^2*'Other Graphs'!$A$3))/D161 -> 0.35 | K161: =(F161*SQRT(D161)-SQRT(F161^2*D161-2*D161*LN('Other Graphs'!$A$6/'Other Graphs'!$A$9)-2*Data!D161^2*'Other Graphs'!$A$3))/D161 -> 0.2 | O161: 123.000001 | P161: =IF($C$4, 'Option vs Time'!$A$6*S161-EXP(-1*'Option vs Time'!$A$3*O161)*'Option vs Time'!$A$9*T161,-1*'Option vs Time'!$A$6*S161+EXP(-1*'Option vs Time'!$A$3*O161)*'Option vs Time'!$A$9*T161) -> 98.70240844 | Q161: =(LN('Option vs Time'!$A$6/'Option vs Time'!$A$9)+('Option vs Time'!$A$3+0.5*'Option vs Time'!$A$15^2)*O161)/('Option vs Time'!$A$15*SQRT(O161)) -> 3.006928404 | R161: =Q161-'Option vs Time'!$A$15*SQRT(O161) -> 0.788821094 | S161: 0.9986804905 | T161: 0.7848917106 | U161: 0.04395103373
D162: 124.000001 | E162: =IF($C$4, 'Other Graphs'!$A$6*H162-EXP(-1*'Other Graphs'!$A$3*D162)*'Other Graphs'!$A$9*I162,-1*'Other Graphs'!$A$6*H162+EXP(-1*'Other Graphs'!$A$3*D162)*'Other Graphs'!$A$9*I162) -> 108.734569 | F162: =(LN('Other Graphs'!$A$6/'Other Graphs'!$A$9)+('Other Graphs'!$A$3+0.5*'Other Graphs'!$A$15^2)*D162)/('Other Graphs'!$A$15*SQRT(D162)) -> 3.062270412 | G162: =F162-'Other Graphs'!$A$15*SQRT(D162) -> 0.8351646578 | H162: 0.9989016754 | I162: 0.7981874971 | J162: =(F162*SQRT(D162)+SQRT(F162^2*D162-2*D162*LN('Other Graphs'!$A$6/'Other Graphs'!$A$9)-2*Data!D162^2*'Other Graphs'!$A$3))/D162 -> 0.35 | K162: =(F162*SQRT(D162)-SQRT(F162^2*D162-2*D162*LN('Other Graphs'!$A$6/'Other Graphs'!$A$9)-2*Data!D162^2*'Other Graphs'!$A$3))/D162 -> 0.2 | O162: 124.000001 | P162: =IF($C$4, 'Option vs Time'!$A$6*S162-EXP(-1*'Option vs Time'!$A$3*O162)*'Option vs Time'!$A$9*T162,-1*'Option vs Time'!$A$6*S162+EXP(-1*'Option vs Time'!$A$3*O162)*'Option vs Time'!$A$9*T162) -> 98.74635947 | Q162: =(LN('Option vs Time'!$A$6/'Option vs Time'!$A$9)+('Option vs Time'!$A$3+0.5*'Option vs Time'!$A$15^2)*O162)/('Option vs Time'!$A$15*SQRT(O162)) -> 3.019474878 | R162: =Q162-'Option vs Time'!$A$15*SQRT(O162) -> 0.7923691239 | S162: 0.9987339335 | T162: 0.7859272613 | U162: 0.04246502841
D163: 125.000001 | E163: =IF($C$4, 'Other Graphs'!$A$6*H163-EXP(-1*'Other Graphs'!$A$3*D163)*'Other Graphs'!$A$9*I163,-1*'Other Graphs'!$A$6*H163+EXP(-1*'Other Graphs'!$A$3*D163)*'Other Graphs'!$A$9*I163) -> 108.7775109 | F163: =(LN('Other Graphs'!$A$6/'Other Graphs'!$A$9)+('Other Graphs'!$A$3+0.5*'Other Graphs'!$A$15^2)*D163)/('Other Graphs'!$A$15*SQRT(D163)) -> 3.074593481 | G163: =F163-'Other Graphs'!$A$15*SQRT(D163) -> 0.8385254949 | H163: 0.9989460517 | I163: 0.7991321824 | J163: =(F163*SQRT(D163)+SQRT(F163^2*D163-2*D163*LN('Other Graphs'!$A$6/'Other Graphs'!$A$9)-2*Data!D163^2*'Other Graphs'!$A$3))/D163 -> 0.35 | K163: =(F163*SQRT(D163)-SQRT(F163^2*D163-2*D163*LN('Other Graphs'!$A$6/'Other Graphs'!$A$9)-2*Data!D163^2*'Other Graphs'!$A$3))/D163 -> 0.2 | O163: 125.000001 | P163: =IF($C$4, 'Option vs Time'!$A$6*S163-EXP(-1*'Option vs Time'!$A$3*O163)*'Option vs Time'!$A$9*T163,-1*'Option vs Time'!$A$6*S163+EXP(-1*'Option vs Time'!$A$3*O163)*'Option vs Time'!$A$9*T163) -> 98.7888245 | Q163: =(LN('Option vs Time'!$A$6/'Option vs Time'!$A$9)+('Option vs Time'!$A$3+0.5*'Option vs Time'!$A$15^2)*O163)/('Option vs Time'!$A$15*SQRT(O163)) -> 3.031969473 | R163: =Q163-'Option vs Time'!$A$15*SQRT(O163) -> 0.7959014869 | S163: 0.9987851811 | T163: 0.7869553515 | U163: 0.0410291768
D164: 126.000001 | E164: =IF($C$4, 'Other Graphs'!$A$6*H164-EXP(-1*'Other Graphs'!$A$3*D164)*'Other Graphs'!$A$9*I164,-1*'Other Graphs'!$A$6*H164+EXP(-1*'Other Graphs'!$A$3*D164)*'Other Graphs'!$A$9*I164) -> 108.8189973 | F164: =(LN('Other Graphs'!$A$6/'Other Graphs'!$A$9)+('Other Graphs'!$A$3+0.5*'Other Graphs'!$A$15^2)*D164)/('Other Graphs'!$A$15*SQRT(D164)) -> 3.086867356 | G164: =F164-'Other Graphs'!$A$15*SQRT(D164) -> 0.8418729154 | H164: 0.9989886108 | I164: 0.8000704539 | J164: =(F164*SQRT(D164)+SQRT(F164^2*D164-2*D164*LN('Other Graphs'!$A$6/'Other Graphs'!$A$9)-2*Data!D164^2*'Other Graphs'!$A$3))/D164 -> 0.35 | K164: =(F164*SQRT(D164)-SQRT(F164^2*D164-2*D164*LN('Other Graphs'!$A$6/'Other Graphs'!$A$9)-2*Data!D164^2*'Other Graphs'!$A$3))/D164 -> 0.2 | O164: 126.000001 | P164: =IF($C$4, 'Option vs Time'!$A$6*S164-EXP(-1*'Option vs Time'!$A$3*O164)*'Option vs Time'!$A$9*T164,-1*'Option vs Time'!$A$6*S164+EXP(-1*'Option vs Time'!$A$3*O164)*'Option vs Time'!$A$9*T164) -> 98.82985368 | Q164: =(LN('Option vs Time'!$A$6/'Option vs Time'!$A$9)+('Option vs Time'!$A$3+0.5*'Option vs Time'!$A$15^2)*O164)/('Option vs Time'!$A$15*SQRT(O164)) -> 3.044412828 | R164: =Q164-'Option vs Time'!$A$15*SQRT(O164) -> 0.7994183872 | S164: 0.9988343251 | T164: 0.7879760739 | U164: 0.0396417885
D165: 127.000001 | E165: =IF($C$4, 'Other Graphs'!$A$6*H165-EXP(-1*'Other Graphs'!$A$3*D165)*'Other Graphs'!$A$9*I165,-1*'Other Graphs'!$A$6*H165+EXP(-1*'Other Graphs'!$A$3*D165)*'Other Graphs'!$A$9*I165) -> 108.8590777 | F165: =(LN('Other Graphs'!$A$6/'Other Graphs'!$A$9)+('Other Graphs'!$A$3+0.5*'Other Graphs'!$A$15^2)*D165)/('Other Graphs'!$A$15*SQRT(D165)) -> 3.099092621 | G165: =F165-'Other Graphs'!$A$15*SQRT(D165) -> 0.8452070785 | H165: 0.9990294284 | I165: 0.8010023846 | J165: =(F165*SQRT(D165)+SQRT(F165^2*D165-2*D165*LN('Other Graphs'!$A$6/'Other Graphs'!$A$9)-2*Data!D165^2*'Other Graphs'!$A$3))/D165 -> 0.35 | K165: =(F165*SQRT(D165)-SQRT(F165^2*D165-2*D165*LN('Other Graphs'!$A$6/'Other Graphs'!$A$9)-2*Data!D165^2*'Other Graphs'!$A$3))/D165 -> 0.2 | O165: 127.000001 | P165: =IF($C$4, 'Option vs Time'!$A$6*S165-EXP(-1*'Option vs Time'!$A$3*O165)*'Option vs Time'!$A$9*T165,-1*'Option vs Time'!$A$6*S165+EXP(-1*'Option vs Time'!$A$3*O165)*'Option vs Time'!$A$9*T165) -> 98.86949547 | Q165: =(LN('Option vs Time'!$A$6/'Option vs Time'!$A$9)+('Option vs Time'!$A$3+0.5*'Option vs Time'!$A$15^2)*O165)/('Option vs Time'!$A$15*SQRT(O165)) -> 3.056805567 | R165: =Q165-'Option vs Time'!$A$15*SQRT(O165) -> 0.8029200245 | S165: 0.9988814533 | T165: 0.7889895194 | U165: 0.0383012301
D166: 128.000001 | E166: =IF($C$4, 'Other Graphs'!$A$6*H166-EXP(-1*'Other Graphs'!$A$3*D166)*'Other Graphs'!$A$9*I166,-1*'Other Graphs'!$A$6*H166+EXP(-1*'Other Graphs'!$A$3*D166)*'Other Graphs'!$A$9*I166) -> 108.8977995 | F166: =(LN('Other Graphs'!$A$6/'Other Graphs'!$A$9)+('Other Graphs'!$A$3+0.5*'Other Graphs'!$A$15^2)*D166)/('Other Graphs'!$A$15*SQRT(D166)) -> 3.111269849 | G166: =F166-'Other Graphs'!$A$15*SQRT(D166) -> 0.8485281407 | H166: 0.9990685769 | I166: 0.8019280463 | J166: =(F166*SQRT(D166)+SQRT(F166^2*D166-2*D166*LN('Other Graphs'!$A$6/'Other Graphs'!$A$9)-2*Data!D166^2*'Other Graphs'!$A$3))/D166 -> 0.35 | K166: =(F166*SQRT(D166)-SQRT(F166^2*D166-2*D166*LN('Other Graphs'!$A$6/'Other Graphs'!$A$9)-2*Data!D166^2*'Other Graphs'!$A$3))/D166 -> 0.2 | O166: 128.000001 | P166: =IF($C$4, 'Option vs Time'!$A$6*S166-EXP(-1*'Option vs Time'!$A$3*O166)*'Option vs Time'!$A$9*T166,-1*'Option vs Time'!$A$6*S166+EXP(-1*'Option vs Time'!$A$3*O166)*'Option vs Time'!$A$9*T166) -> 98.9077967 | Q166: =(LN('Option vs Time'!$A$6/'Option vs Time'!$A$9)+('Option vs Time'!$A$3+0.5*'Option vs Time'!$A$15^2)*O166)/('Option vs Time'!$A$15*SQRT(O166)) -> 3.069148303 | R166: =Q166-'Option vs Time'!$A$15*SQRT(O166) -> 0.8064065944 | S166: 0.99892665 | T166: 0.7899957771 | U166: 0.03700592323
D167: 129.000001 | E167: =IF($C$4, 'Other Graphs'!$A$6*H167-EXP(-1*'Other Graphs'!$A$3*D167)*'Other Graphs'!$A$9*I167,-1*'Other Graphs'!$A$6*H167+EXP(-1*'Other Graphs'!$A$3*D167)*'Other Graphs'!$A$9*I167) -> 108.9352088 | F167: =(LN('Other Graphs'!$A$6/'Other Graphs'!$A$9)+('Other Graphs'!$A$3+0.5*'Other Graphs'!$A$15^2)*D167)/('Other Graphs'!$A$15*SQRT(D167)) -> 3.123399602 | G167: =F167-'Other Graphs'!$A$15*SQRT(D167) -> 0.8518362552 | H167: =IF($C$4,NORMSDIST(F167),NORMSDIST(-1*F167)) -> 0.9991061258 | I167: =IF($C$4,NORMSDIST(G167),NORMSDIST(-1*G167)) -> 0.8028475096 | J167: =(F167*SQRT(D167)+SQRT(F167^2*D167-2*D167*LN('Other Graphs'!$A$6/'Other Graphs'!$A$9)-2*Data!D167^2*'Other Graphs'!$A$3))/D167 -> 0.35 | K167: =(F167*SQRT(D167)-SQRT(F167^2*D167-2*D167*LN('Other Graphs'!$A$6/'Other Graphs'!$A$9)-2*Data!D167^2*'Other Graphs'!$A$3))/D167 -> 0.2 | O167: 129.000001 | P167: =IF($C$4, 'Option vs Time'!$A$6*S167-EXP(-1*'Option vs Time'!$A$3*O167)*'Option vs Time'!$A$9*T167,-1*'Option vs Time'!$A$6*S167+EXP(-1*'Option vs Time'!$A$3*O167)*'Option vs Time'!$A$9*T167) -> 98.94480262 | Q167: =(LN('Option vs Time'!$A$6/'Option vs Time'!$A$9)+('Option vs Time'!$A$3+0.5*'Option vs Time'!$A$15^2)*O167)/('Option vs Time'!$A$15*SQRT(O167)) -> 3.081441635 | R167: =Q167-'Option vs Time'!$A$15*SQRT(O167) -> 0.8098782882 | S167: =IF($C$4,NORMSDIST(Q167),NORMSDIST(-1*Q167)) -> 0.9989699957 | T167: =IF($C$4,NORMSDIST(R167),NORMSDIST(-1*R167)) -> 0.7909949342 | U167: =(P168-P167)/(O168-O167) -> 0.03575434268
D168: 130.000001 | E168: =IF($C$4, 'Other Graphs'!$A$6*H168-EXP(-1*'Other Graphs'!$A$3*D168)*'Other Graphs'!$A$9*I168,-1*'Other Graphs'!$A$6*H168+EXP(-1*'Other Graphs'!$A$3*D168)*'Other Graphs'!$A$9*I168) -> 108.97135 | F168: =(LN('Other Graphs'!$A$6/'Other Graphs'!$A$9)+('Other Graphs'!$A$3+0.5*'Other Graphs'!$A$15^2)*D168)/('Other Graphs'!$A$15*SQRT(D168)) -> 3.135482431 | G168: =F168-'Other Graphs'!$A$15*SQRT(D168) -> 0.8551315721 | H168: 0.9991421415 | I168: 0.8037608436 | J168: =(F168*SQRT(D168)+SQRT(F168^2*D168-2*D168*LN('Other Graphs'!$A$6/'Other Graphs'!$A$9)-2*Data!D168^2*'Other Graphs'!$A$3))/D168 -> 0.35 | K168: =(F168*SQRT(D168)-SQRT(F168^2*D168-2*D168*LN('Other Graphs'!$A$6/'Other Graphs'!$A$9)-2*Data!D168^2*'Other Graphs'!$A$3))/D168 -> 0.2 | O168: 130.000001 | P168: =IF($C$4, 'Option vs Time'!$A$6*S168-EXP(-1*'Option vs Time'!$A$3*O168)*'Option vs Time'!$A$9*T168,-1*'Option vs Time'!$A$6*S168+EXP(-1*'Option vs Time'!$A$3*O168)*'Option vs Time'!$A$9*T168) -> 98.98055696 | Q168: =(LN('Option vs Time'!$A$6/'Option vs Time'!$A$9)+('Option vs Time'!$A$3+0.5*'Option vs Time'!$A$15^2)*O168)/('Option vs Time'!$A$15*SQRT(O168)) -> 3.093686152 | R168: =Q168-'Option vs Time'!$A$15*SQRT(O168) -> 0.8133352935 | S168: 0.9990115675 | T168: 0.7919870765 | U168: 0.03454501464
D169: 131.000001 | E169: =IF($C$4, 'Other Graphs'!$A$6*H169-EXP(-1*'Other Graphs'!$A$3*D169)*'Other Graphs'!$A$9*I169,-1*'Other Graphs'!$A$6*H169+EXP(-1*'Other Graphs'!$A$3*D169)*'Other Graphs'!$A$9*I169) -> 109.0062661 | F169: =(LN('Other Graphs'!$A$6/'Other Graphs'!$A$9)+('Other Graphs'!$A$3+0.5*'Other Graphs'!$A$15^2)*D169)/('Other Graphs'!$A$15*SQRT(D169)) -> 3.147518876 | G169: =F169-'Other Graphs'!$A$15*SQRT(D169) -> 0.8584142389 | H169: 0.9991766876 | I169: 0.8046681161 | J169: =(F169*SQRT(D169)+SQRT(F169^2*D169-2*D169*LN('Other Graphs'!$A$6/'Other Graphs'!$A$9)-2*Data!D169^2*'Other Graphs'!$A$3))/D169 -> 0.35 | K169: =(F169*SQRT(D169)-SQRT(F169^2*D169-2*D169*LN('Other Graphs'!$A$6/'Other Graphs'!$A$9)-2*Data!D169^2*'Other Graphs'!$A$3))/D169 -> 0.2 | O169: 131.000001 | P169: =IF($C$4, 'Option vs Time'!$A$6*S169-EXP(-1*'Option vs Time'!$A$3*O169)*'Option vs Time'!$A$9*T169,-1*'Option vs Time'!$A$6*S169+EXP(-1*'Option vs Time'!$A$3*O169)*'Option vs Time'!$A$9*T169) -> 99.01510198 | Q169: =(LN('Option vs Time'!$A$6/'Option vs Time'!$A$9)+('Option vs Time'!$A$3+0.5*'Option vs Time'!$A$15^2)*O169)/('Option vs Time'!$A$15*SQRT(O169)) -> 3.105882431 | R169: =Q169-'Option vs Time'!$A$15*SQRT(O169) -> 0.8167777937 | S169: 0.9990514394 | T169: 0.7929722876 | U169: 0.03337651494
D170: 132.000001 | E170: =IF($C$4, 'Other Graphs'!$A$6*H170-EXP(-1*'Other Graphs'!$A$3*D170)*'Other Graphs'!$A$9*I170,-1*'Other Graphs'!$A$6*H170+EXP(-1*'Other Graphs'!$A$3*D170)*'Other Graphs'!$A$9*I170) -> 109.0399986 | F170: =(LN('Other Graphs'!$A$6/'Other Graphs'!$A$9)+('Other Graphs'!$A$3+0.5*'Other Graphs'!$A$15^2)*D170)/('Other Graphs'!$A$15*SQRT(D170)) -> 3.159509468 | G170: =F170-'Other Graphs'!$A$15*SQRT(D170) -> 0.8616844002 | H170: 0.9992098252 | I170: 0.8055693939 | J170: =(F170*SQRT(D170)+SQRT(F170^2*D170-2*D170*LN('Other Graphs'!$A$6/'Other Graphs'!$A$9)-2*Data!D170^2*'Other Graphs'!$A$3))/D170 -> 0.35 | K170: =(F170*SQRT(D170)-SQRT(F170^2*D170-2*D170*LN('Other Graphs'!$A$6/'Other Graphs'!$A$9)-2*Data!D170^2*'Other Graphs'!$A$3))/D170 -> 0.2 | O170: 132.000001 | P170: =IF($C$4, 'Option vs Time'!$A$6*S170-EXP(-1*'Option vs Time'!$A$3*O170)*'Option vs Time'!$A$9*T170,-1*'Option vs Time'!$A$6*S170+EXP(-1*'Option vs Time'!$A$3*O170)*'Option vs Time'!$A$9*T170) -> 99.04847849 | Q170: =(LN('Option vs Time'!$A$6/'Option vs Time'!$A$9)+('Option vs Time'!$A$3+0.5*'Option vs Time'!$A$15^2)*O170)/('Option vs Time'!$A$15*SQRT(O170)) -> 3.118031036 | R170: =Q170-'Option vs Time'!$A$15*SQRT(O170) -> 0.8202059687 | S170: 0.9990896818 | T170: 0.79395065 | U170: 0.03224746739
D171: 133.000001 | E171: =IF($C$4, 'Other Graphs'!$A$6*H171-EXP(-1*'Other Graphs'!$A$3*D171)*'Other Graphs'!$A$9*I171,-1*'Other Graphs'!$A$6*H171+EXP(-1*'Other Graphs'!$A$3*D171)*'Other Graphs'!$A$9*I171) -> 109.0725875 | F171: =(LN('Other Graphs'!$A$6/'Other Graphs'!$A$9)+('Other Graphs'!$A$3+0.5*'Other Graphs'!$A$15^2)*D171)/('Other Graphs'!$A$15*SQRT(D171)) -> 3.171454725 | G171: =F171-'Other Graphs'!$A$15*SQRT(D171) -> 0.8649421979 | H171: 0.9992416125 | I171: 0.8064647424 | J171: =(F171*SQRT(D171)+SQRT(F171^2*D171-2*D171*LN('Other Graphs'!$A$6/'Other Graphs'!$A$9)-2*Data!D171^2*'Other Graphs'!$A$3))/D171 -> 0.35 | K171: =(F171*SQRT(D171)-SQRT(F171^2*D171-2*D171*LN('Other Graphs'!$A$6/'Other Graphs'!$A$9)-2*Data!D171^2*'Other Graphs'!$A$3))/D171 -> 0.2 | O171: 133.000001 | P171: =IF($C$4, 'Option vs Time'!$A$6*S171-EXP(-1*'Option vs Time'!$A$3*O171)*'Option vs Time'!$A$9*T171,-1*'Option vs Time'!$A$6*S171+EXP(-1*'Option vs Time'!$A$3*O171)*'Option vs Time'!$A$9*T171) -> 99.08072596 | Q171: =(LN('Option vs Time'!$A$6/'Option vs Time'!$A$9)+('Option vs Time'!$A$3+0.5*'Option vs Time'!$A$15^2)*O171)/('Option vs Time'!$A$15*SQRT(O171)) -> 3.130132522 | R171: =Q171-'Option vs Time'!$A$15*SQRT(O171) -> 0.8236199945 | S171: 0.9991263627 | T171: 0.7949222443 | U171: 0.03115654215
D172: 134.000001 | E172: =IF($C$4, 'Other Graphs'!$A$6*H172-EXP(-1*'Other Graphs'!$A$3*D172)*'Other Graphs'!$A$9*I172,-1*'Other Graphs'!$A$6*H172+EXP(-1*'Other Graphs'!$A$3*D172)*'Other Graphs'!$A$9*I172) -> 109.1040715 | F172: =(LN('Other Graphs'!$A$6/'Other Graphs'!$A$9)+('Other Graphs'!$A$3+0.5*'Other Graphs'!$A$15^2)*D172)/('Other Graphs'!$A$15*SQRT(D172)) -> 3.18335516 | G172: =F172-'Other Graphs'!$A$15*SQRT(D172) -> 0.8681877709 | H172: 0.9992721054 | I172: 0.8073542261 | J172: =(F172*SQRT(D172)+SQRT(F172^2*D172-2*D172*LN('Other Graphs'!$A$6/'Other Graphs'!$A$9)-2*Data!D172^2*'Other Graphs'!$A$3))/D172 -> 0.35 | K172: =(F172*SQRT(D172)-SQRT(F172^2*D172-2*D172*LN('Other Graphs'!$A$6/'Other Graphs'!$A$9)-2*Data!D172^2*'Other Graphs'!$A$3))/D172 -> 0.2 | O172: 134.000001 | P172: =IF($C$4, 'Option vs Time'!$A$6*S172-EXP(-1*'Option vs Time'!$A$3*O172)*'Option vs Time'!$A$9*T172,-1*'Option vs Time'!$A$6*S172+EXP(-1*'Option vs Time'!$A$3*O172)*'Option vs Time'!$A$9*T172) -> 99.1118825 | Q172: =(LN('Option vs Time'!$A$6/'Option vs Time'!$A$9)+('Option vs Time'!$A$3+0.5*'Option vs Time'!$A$15^2)*O172)/('Option vs Time'!$A$15*SQRT(O172)) -> 3.142187433 | R172: =Q172-'Option vs Time'!$A$15*SQRT(O172) -> 0.8270200436 | S172: 0.9991615467 | T172: 0.7958871495 | U172: 0.03010245416
D173: 135.000001 | E173: =IF($C$4, 'Other Graphs'!$A$6*H173-EXP(-1*'Other Graphs'!$A$3*D173)*'Other Graphs'!$A$9*I173,-1*'Other Graphs'!$A$6*H173+EXP(-1*'Other Graphs'!$A$3*D173)*'Other Graphs'!$A$9*I173) -> 109.1344881 | F173: =(LN('Other Graphs'!$A$6/'Other Graphs'!$A$9)+('Other Graphs'!$A$3+0.5*'Other Graphs'!$A$15^2)*D173)/('Other Graphs'!$A$15*SQRT(D173)) -> 3.195211272 | G173: =F173-'Other Graphs'!$A$15*SQRT(D173) -> 0.8714212561 | H173: 0.9993013574 | I173: 0.8082379081 | J173: =(F173*SQRT(D173)+SQRT(F173^2*D173-2*D173*LN('Other Graphs'!$A$6/'Other Graphs'!$A$9)-2*Data!D173^2*'Other Graphs'!$A$3))/D173 -> 0.35 | K173: =(F173*SQRT(D173)-SQRT(F173^2*D173-2*D173*LN('Other Graphs'!$A$6/'Other Graphs'!$A$9)-2*Data!D173^2*'Other Graphs'!$A$3))/D173 -> 0.2 | O173: 135.000001 | P173: =IF($C$4, 'Option vs Time'!$A$6*S173-EXP(-1*'Option vs Time'!$A$3*O173)*'Option vs Time'!$A$9*T173,-1*'Option vs Time'!$A$6*S173+EXP(-1*'Option vs Time'!$A$3*O173)*'Option vs Time'!$A$9*T173) -> 99.14198496 | Q173: =(LN('Option vs Time'!$A$6/'Option vs Time'!$A$9)+('Option vs Time'!$A$3+0.5*'Option vs Time'!$A$15^2)*O173)/('Option vs Time'!$A$15*SQRT(O173)) -> 3.154196302 | R173: =Q173-'Option vs Time'!$A$15*SQRT(O173) -> 0.8304062853 | S173: 0.999195296 | T173: 0.7968454434 | U173: 0.02908396165
D174: 136.000001 | E174: =IF($C$4, 'Other Graphs'!$A$6*H174-EXP(-1*'Other Graphs'!$A$3*D174)*'Other Graphs'!$A$9*I174,-1*'Other Graphs'!$A$6*H174+EXP(-1*'Other Graphs'!$A$3*D174)*'Other Graphs'!$A$9*I174) -> 109.1638735 | F174: =(LN('Other Graphs'!$A$6/'Other Graphs'!$A$9)+('Other Graphs'!$A$3+0.5*'Other Graphs'!$A$15^2)*D174)/('Other Graphs'!$A$15*SQRT(D174)) -> 3.207023554 | G174: =F174-'Other Graphs'!$A$15*SQRT(D174) -> 0.8746427874 | H174: 0.9993294199 | I174: 0.8091158505 | J174: =(F174*SQRT(D174)+SQRT(F174^2*D174-2*D174*LN('Other Graphs'!$A$6/'Other Graphs'!$A$9)-2*Data!D174^2*'Other Graphs'!$A$3))/D174 -> 0.35 | K174: =(F174*SQRT(D174)-SQRT(F174^2*D174-2*D174*LN('Other Graphs'!$A$6/'Other Graphs'!$A$9)-2*Data!D174^2*'Other Graphs'!$A$3))/D174 -> 0.2 | O174: 136.000001 | P174: =IF($C$4, 'Option vs Time'!$A$6*S174-EXP(-1*'Option vs Time'!$A$3*O174)*'Option vs Time'!$A$9*T174,-1*'Option vs Time'!$A$6*S174+EXP(-1*'Option vs Time'!$A$3*O174)*'Option vs Time'!$A$9*T174) -> 99.17106892 | Q174: =(LN('Option vs Time'!$A$6/'Option vs Time'!$A$9)+('Option vs Time'!$A$3+0.5*'Option vs Time'!$A$15^2)*O174)/('Option vs Time'!$A$15*SQRT(O174)) -> 3.166159652 | R174: =Q174-'Option vs Time'!$A$15*SQRT(O174) -> 0.8337788851 | S174: 0.9992276701 | T174: 0.7977972021 | U174: 0.02809986466
D175: 137.000001 | E175: =IF($C$4, 'Other Graphs'!$A$6*H175-EXP(-1*'Other Graphs'!$A$3*D175)*'Other Graphs'!$A$9*I175,-1*'Other Graphs'!$A$6*H175+EXP(-1*'Other Graphs'!$A$3*D175)*'Other Graphs'!$A$9*I175) -> 109.1922625 | F175: =(LN('Other Graphs'!$A$6/'Other Graphs'!$A$9)+('Other Graphs'!$A$3+0.5*'Other Graphs'!$A$15^2)*D175)/('Other Graphs'!$A$15*SQRT(D175)) -> 3.218792487 | G175: =F175-'Other Graphs'!$A$15*SQRT(D175) -> 0.8778524965 | H175: 0.999356342 | I175: 0.8099881144 | J175: =(F175*SQRT(D175)+SQRT(F175^2*D175-2*D175*LN('Other Graphs'!$A$6/'Other Graphs'!$A$9)-2*Data!D175^2*'Other Graphs'!$A$3))/D175 -> 0.35 | K175: =(F175*SQRT(D175)-SQRT(F175^2*D175-2*D175*LN('Other Graphs'!$A$6/'Other Graphs'!$A$9)-2*Data!D175^2*'Other Graphs'!$A$3))/D175 -> 0.2 | O175: 137.000001 | P175: =IF($C$4, 'Option vs Time'!$A$6*S175-EXP(-1*'Option vs Time'!$A$3*O175)*'Option vs Time'!$A$9*T175,-1*'Option vs Time'!$A$6*S175+EXP(-1*'Option vs Time'!$A$3*O175)*'Option vs Time'!$A$9*T175) -> 99.19916878 | Q175: =(LN('Option vs Time'!$A$6/'Option vs Time'!$A$9)+('Option vs Time'!$A$3+0.5*'Option vs Time'!$A$15^2)*O175)/('Option vs Time'!$A$15*SQRT(O175)) -> 3.178077996 | R175: =Q175-'Option vs Time'!$A$15*SQRT(O175) -> 0.8371380057 | S175: 0.9992587257 | T175: 0.7987425002 | U175: 0.02714900365
D176: 138.000001 | E176: =IF($C$4, 'Other Graphs'!$A$6*H176-EXP(-1*'Other Graphs'!$A$3*D176)*'Other Graphs'!$A$9*I176,-1*'Other Graphs'!$A$6*H176+EXP(-1*'Other Graphs'!$A$3*D176)*'Other Graphs'!$A$9*I176) -> 109.2196888 | F176: =(LN('Other Graphs'!$A$6/'Other Graphs'!$A$9)+('Other Graphs'!$A$3+0.5*'Other Graphs'!$A$15^2)*D176)/('Other Graphs'!$A$15*SQRT(D176)) -> 3.230518546 | G176: =F176-'Other Graphs'!$A$15*SQRT(D176) -> 0.8810505125 | H176: 0.9993821706 | I176: 0.8108547597 | J176: =(F176*SQRT(D176)+SQRT(F176^2*D176-2*D176*LN('Other Graphs'!$A$6/'Other Graphs'!$A$9)-2*Data!D176^2*'Other Graphs'!$A$3))/D176 -> 0.35 | K176: =(F176*SQRT(D176)-SQRT(F176^2*D176-2*D176*LN('Other Graphs'!$A$6/'Other Graphs'!$A$9)-2*Data!D176^2*'Other Graphs'!$A$3))/D176 -> 0.2 | O176: 138.000001 | P176: =IF($C$4, 'Option vs Time'!$A$6*S176-EXP(-1*'Option vs Time'!$A$3*O176)*'Option vs Time'!$A$9*T176,-1*'Option vs Time'!$A$6*S176+EXP(-1*'Option vs Time'!$A$3*O176)*'Option vs Time'!$A$9*T176) -> 99.22631779 | Q176: =(LN('Option vs Time'!$A$6/'Option vs Time'!$A$9)+('Option vs Time'!$A$3+0.5*'Option vs Time'!$A$15^2)*O176)/('Option vs Time'!$A$15*SQRT(O176)) -> 3.18995184 | R176: =Q176-'Option vs Time'!$A$15*SQRT(O176) -> 0.8404838062 | S176: 0.9992885175 | T176: 0.7996814112 | U176: 0.02623025812
D177: 139.000001 | E177: =IF($C$4, 'Other Graphs'!$A$6*H177-EXP(-1*'Other Graphs'!$A$3*D177)*'Other Graphs'!$A$9*I177,-1*'Other Graphs'!$A$6*H177+EXP(-1*'Other Graphs'!$A$3*D177)*'Other Graphs'!$A$9*I177) -> 109.2461852 | F177: =(LN('Other Graphs'!$A$6/'Other Graphs'!$A$9)+('Other Graphs'!$A$3+0.5*'Other Graphs'!$A$15^2)*D177)/('Other Graphs'!$A$15*SQRT(D177)) -> 3.242202195 | G177: =F177-'Other Graphs'!$A$15*SQRT(D177) -> 0.8842369624 | H177: 0.9994069508 | I177: 0.8117158454 | J177: =(F177*SQRT(D177)+SQRT(F177^2*D177-2*D177*LN('Other Graphs'!$A$6/'Other Graphs'!$A$9)-2*Data!D177^2*'Other Graphs'!$A$3))/D177 -> 0.35 | K177: =(F177*SQRT(D177)-SQRT(F177^2*D177-2*D177*LN('Other Graphs'!$A$6/'Other Graphs'!$A$9)-2*Data!D177^2*'Other Graphs'!$A$3))/D177 -> 0.2 | O177: 139.000001 | P177: =IF($C$4, 'Option vs Time'!$A$6*S177-EXP(-1*'Option vs Time'!$A$3*O177)*'Option vs Time'!$A$9*T177,-1*'Option vs Time'!$A$6*S177+EXP(-1*'Option vs Time'!$A$3*O177)*'Option vs Time'!$A$9*T177) -> 99.25254804 | Q177: =(LN('Option vs Time'!$A$6/'Option vs Time'!$A$9)+('Option vs Time'!$A$3+0.5*'Option vs Time'!$A$15^2)*O177)/('Option vs Time'!$A$15*SQRT(O177)) -> 3.201781676 | R177: =Q177-'Option vs Time'!$A$15*SQRT(O177) -> 0.8438164428 | S177: 0.9993170976 | T177: 0.8006140071 | U177: 0.02534254529
D178: 140.000001 | E178: =IF($C$4, 'Other Graphs'!$A$6*H178-EXP(-1*'Other Graphs'!$A$3*D178)*'Other Graphs'!$A$9*I178,-1*'Other Graphs'!$A$6*H178+EXP(-1*'Other Graphs'!$A$3*D178)*'Other Graphs'!$A$9*I178) -> 109.271783 | F178: =(LN('Other Graphs'!$A$6/'Other Graphs'!$A$9)+('Other Graphs'!$A$3+0.5*'Other Graphs'!$A$15^2)*D178)/('Other Graphs'!$A$15*SQRT(D178)) -> 3.253843892 | G178: =F178-'Other Graphs'!$A$15*SQRT(D178) -> 0.8874119706 | H178: 0.9994307259 | I178: 0.8125714295 | J178: =(F178*SQRT(D178)+SQRT(F178^2*D178-2*D178*LN('Other Graphs'!$A$6/'Other Graphs'!$A$9)-2*Data!D178^2*'Other Graphs'!$A$3))/D178 -> 0.35 | K178: =(F178*SQRT(D178)-SQRT(F178^2*D178-2*D178*LN('Other Graphs'!$A$6/'Other Graphs'!$A$9)-2*Data!D178^2*'Other Graphs'!$A$3))/D178 -> 0.2 | O178: 140.000001 | P178: =IF($C$4, 'Option vs Time'!$A$6*S178-EXP(-1*'Option vs Time'!$A$3*O178)*'Option vs Time'!$A$9*T178,-1*'Option vs Time'!$A$6*S178+EXP(-1*'Option vs Time'!$A$3*O178)*'Option vs Time'!$A$9*T178) -> 99.27789059 | Q178: =(LN('Option vs Time'!$A$6/'Option vs Time'!$A$9)+('Option vs Time'!$A$3+0.5*'Option vs Time'!$A$15^2)*O178)/('Option vs Time'!$A$15*SQRT(O178)) -> 3.21356799 | R178: =Q178-'Option vs Time'!$A$15*SQRT(O178) -> 0.8471360688 | S178: 0.9993445162 | T178: 0.8015403586 | U178: 0.02448481888
D179: 141.000001 | E179: =IF($C$4, 'Other Graphs'!$A$6*H179-EXP(-1*'Other Graphs'!$A$3*D179)*'Other Graphs'!$A$9*I179,-1*'Other Graphs'!$A$6*H179+EXP(-1*'Other Graphs'!$A$3*D179)*'Other Graphs'!$A$9*I179) -> 109.2965127 | F179: =(LN('Other Graphs'!$A$6/'Other Graphs'!$A$9)+('Other Graphs'!$A$3+0.5*'Other Graphs'!$A$15^2)*D179)/('Other Graphs'!$A$15*SQRT(D179)) -> 3.265444086 | G179: =F179-'Other Graphs'!$A$15*SQRT(D179) -> 0.8905756597 | H179: 0.9994535371 | I179: 0.813421569 | J179: =(F179*SQRT(D179)+SQRT(F179^2*D179-2*D179*LN('Other Graphs'!$A$6/'Other Graphs'!$A$9)-2*Data!D179^2*'Other Graphs'!$A$3))/D179 -> 0.35 | K179: =(F179*SQRT(D179)-SQRT(F179^2*D179-2*D179*LN('Other Graphs'!$A$6/'Other Graphs'!$A$9)-2*Data!D179^2*'Other Graphs'!$A$3))/D179 -> 0.2 | O179: 141.000001 | P179: =IF($C$4, 'Option vs Time'!$A$6*S179-EXP(-1*'Option vs Time'!$A$3*O179)*'Option vs Time'!$A$9*T179,-1*'Option vs Time'!$A$6*S179+EXP(-1*'Option vs Time'!$A$3*O179)*'Option vs Time'!$A$9*T179) -> 99.30237541 | Q179: =(LN('Option vs Time'!$A$6/'Option vs Time'!$A$9)+('Option vs Time'!$A$3+0.5*'Option vs Time'!$A$15^2)*O179)/('Option vs Time'!$A$15*SQRT(O179)) -> 3.22531126 | R179: =Q179-'Option vs Time'!$A$15*SQRT(O179) -> 0.8504428343 | S179: 0.9993708211 | T179: 0.802460535 | U179: 0.02365606779
D180: 142.000001 | E180: =IF($C$4, 'Other Graphs'!$A$6*H180-EXP(-1*'Other Graphs'!$A$3*D180)*'Other Graphs'!$A$9*I180,-1*'Other Graphs'!$A$6*H180+EXP(-1*'Other Graphs'!$A$3*D180)*'Other Graphs'!$A$9*I180) -> 109.3204038 | F180: =(LN('Other Graphs'!$A$6/'Other Graphs'!$A$9)+('Other Graphs'!$A$3+0.5*'Other Graphs'!$A$15^2)*D180)/('Other Graphs'!$A$15*SQRT(D180)) -> 3.277003216 | G180: =F180-'Other Graphs'!$A$15*SQRT(D180) -> 0.8937281497 | H180: 0.9994754241 | I180: 0.8142663199 | J180: =(F180*SQRT(D180)+SQRT(F180^2*D180-2*D180*LN('Other Graphs'!$A$6/'Other Graphs'!$A$9)-2*Data!D180^2*'Other Graphs'!$A$3))/D180 -> 0.35 | K180: =(F180*SQRT(D180)-SQRT(F180^2*D180-2*D180*LN('Other Graphs'!$A$6/'Other Graphs'!$A$9)-2*Data!D180^2*'Other Graphs'!$A$3))/D180 -> 0.2 | O180: 142.000001 | P180: =IF($C$4, 'Option vs Time'!$A$6*S180-EXP(-1*'Option vs Time'!$A$3*O180)*'Option vs Time'!$A$9*T180,-1*'Option vs Time'!$A$6*S180+EXP(-1*'Option vs Time'!$A$3*O180)*'Option vs Time'!$A$9*T180) -> 99.32603148 | Q180: =(LN('Option vs Time'!$A$6/'Option vs Time'!$A$9)+('Option vs Time'!$A$3+0.5*'Option vs Time'!$A$15^2)*O180)/('Option vs Time'!$A$15*SQRT(O180)) -> 3.237011953 | R180: =Q180-'Option vs Time'!$A$15*SQRT(O180) -> 0.8537368868 | S180: 0.9993960582 | T180: 0.8033746045 | U180: 0.022855315
D181: 143.000001 | E181: =IF($C$4, 'Other Graphs'!$A$6*H181-EXP(-1*'Other Graphs'!$A$3*D181)*'Other Graphs'!$A$9*I181,-1*'Other Graphs'!$A$6*H181+EXP(-1*'Other Graphs'!$A$3*D181)*'Other Graphs'!$A$9*I181) -> 109.3434846 | F181: =(LN('Other Graphs'!$A$6/'Other Graphs'!$A$9)+('Other Graphs'!$A$3+0.5*'Other Graphs'!$A$15^2)*D181)/('Other Graphs'!$A$15*SQRT(D181)) -> 3.288521716 | G181: =F181-'Other Graphs'!$A$15*SQRT(D181) -> 0.8968695589 | H181: 0.9994964249 | I181: 0.8151057373 | J181: =(F181*SQRT(D181)+SQRT(F181^2*D181-2*D181*LN('Other Graphs'!$A$6/'Other Graphs'!$A$9)-2*Data!D181^2*'Other Graphs'!$A$3))/D181 -> 0.35 | K181: =(F181*SQRT(D181)-SQRT(F181^2*D181-2*D181*LN('Other Graphs'!$A$6/'Other Graphs'!$A$9)-2*Data!D181^2*'Other Graphs'!$A$3))/D181 -> 0.2 | O181: 143.000001 | P181: =IF($C$4, 'Option vs Time'!$A$6*S181-EXP(-1*'Option vs Time'!$A$3*O181)*'Option vs Time'!$A$9*T181,-1*'Option vs Time'!$A$6*S181+EXP(-1*'Option vs Time'!$A$3*O181)*'Option vs Time'!$A$9*T181) -> 99.34888679 | Q181: =(LN('Option vs Time'!$A$6/'Option vs Time'!$A$9)+('Option vs Time'!$A$3+0.5*'Option vs Time'!$A$15^2)*O181)/('Option vs Time'!$A$15*SQRT(O181)) -> 3.248670528 | R181: =Q181-'Option vs Time'!$A$15*SQRT(O181) -> 0.8570183708 | S181: 0.9994202716 | T181: 0.804282634 | U181: 0.02208161637
D182: 144.000001 | E182: =IF($C$4, 'Other Graphs'!$A$6*H182-EXP(-1*'Other Graphs'!$A$3*D182)*'Other Graphs'!$A$9*I182,-1*'Other Graphs'!$A$6*H182+EXP(-1*'Other Graphs'!$A$3*D182)*'Other Graphs'!$A$9*I182) -> 109.3657825 | F182: =(LN('Other Graphs'!$A$6/'Other Graphs'!$A$9)+('Other Graphs'!$A$3+0.5*'Other Graphs'!$A$15^2)*D182)/('Other Graphs'!$A$15*SQRT(D182)) -> 3.300000011 | G182: =F182-'Other Graphs'!$A$15*SQRT(D182) -> 0.9000000031 | H182: 0.9995165759 | I182: 0.8159398755 | J182: =(F182*SQRT(D182)+SQRT(F182^2*D182-2*D182*LN('Other Graphs'!$A$6/'Other Graphs'!$A$9)-2*Data!D182^2*'Other Graphs'!$A$3))/D182 -> 0.35 | K182: =(F182*SQRT(D182)-SQRT(F182^2*D182-2*D182*LN('Other Graphs'!$A$6/'Other Graphs'!$A$9)-2*Data!D182^2*'Other Graphs'!$A$3))/D182 -> 0.2 | O182: 144.000001 | P182: =IF($C$4, 'Option vs Time'!$A$6*S182-EXP(-1*'Option vs Time'!$A$3*O182)*'Option vs Time'!$A$9*T182,-1*'Option vs Time'!$A$6*S182+EXP(-1*'Option vs Time'!$A$3*O182)*'Option vs Time'!$A$9*T182) -> 99.37096841 | Q182: =(LN('Option vs Time'!$A$6/'Option vs Time'!$A$9)+('Option vs Time'!$A$3+0.5*'Option vs Time'!$A$15^2)*O182)/('Option vs Time'!$A$15*SQRT(O182)) -> 3.260287437 | R182: =Q182-'Option vs Time'!$A$15*SQRT(O182) -> 0.8602874283 | S182: 0.9994435032 | T182: 0.8051846895 | U182: 0.02133405958
D183: 145.000001 | E183: =IF($C$4, 'Other Graphs'!$A$6*H183-EXP(-1*'Other Graphs'!$A$3*D183)*'Other Graphs'!$A$9*I183,-1*'Other Graphs'!$A$6*H183+EXP(-1*'Other Graphs'!$A$3*D183)*'Other Graphs'!$A$9*I183) -> 109.3873242 | F183: =(LN('Other Graphs'!$A$6/'Other Graphs'!$A$9)+('Other Graphs'!$A$3+0.5*'Other Graphs'!$A$15^2)*D183)/('Other Graphs'!$A$15*SQRT(D183)) -> 3.311438521 | G183: =F183-'Other Graphs'!$A$15*SQRT(D183) -> 0.9031195965 | H183: 0.9995359118 | I183: 0.8167687877 | J183: =(F183*SQRT(D183)+SQRT(F183^2*D183-2*D183*LN('Other Graphs'!$A$6/'Other Graphs'!$A$9)-2*Data!D183^2*'Other Graphs'!$A$3))/D183 -> 0.35 | K183: =(F183*SQRT(D183)-SQRT(F183^2*D183-2*D183*LN('Other Graphs'!$A$6/'Other Graphs'!$A$9)-2*Data!D183^2*'Other Graphs'!$A$3))/D183 -> 0.2 | O183: 145.000001 | P183: =IF($C$4, 'Option vs Time'!$A$6*S183-EXP(-1*'Option vs Time'!$A$3*O183)*'Option vs Time'!$A$9*T183,-1*'Option vs Time'!$A$6*S183+EXP(-1*'Option vs Time'!$A$3*O183)*'Option vs Time'!$A$9*T183) -> 99.39230247 | Q183: =(LN('Option vs Time'!$A$6/'Option vs Time'!$A$9)+('Option vs Time'!$A$3+0.5*'Option vs Time'!$A$15^2)*O183)/('Option vs Time'!$A$15*SQRT(O183)) -> 3.271863123 | R183: =Q183-'Option vs Time'!$A$15*SQRT(O183) -> 0.8635441986 | S183: 0.9994657936 | T183: 0.8060808353 | U183: 0.02061176299
D184: 146.000001 | E184: =IF($C$4, 'Other Graphs'!$A$6*H184-EXP(-1*'Other Graphs'!$A$3*D184)*'Other Graphs'!$A$9*I184,-1*'Other Graphs'!$A$6*H184+EXP(-1*'Other Graphs'!$A$3*D184)*'Other Graphs'!$A$9*I184) -> 109.4081351 | F184: =(LN('Other Graphs'!$A$6/'Other Graphs'!$A$9)+('Other Graphs'!$A$3+0.5*'Other Graphs'!$A$15^2)*D184)/('Other Graphs'!$A$15*SQRT(D184)) -> 3.322837654 | G184: =F184-'Other Graphs'!$A$15*SQRT(D184) -> 0.9062284511 | H184: 0.9995544662 | I184: 0.8175925265 | J184: =(F184*SQRT(D184)+SQRT(F184^2*D184-2*D184*LN('Other Graphs'!$A$6/'Other Graphs'!$A$9)-2*Data!D184^2*'Other Graphs'!$A$3))/D184 -> 0.35 | K184: =(F184*SQRT(D184)-SQRT(F184^2*D184-2*D184*LN('Other Graphs'!$A$6/'Other Graphs'!$A$9)-2*Data!D184^2*'Other Graphs'!$A$3))/D184 -> 0.2 | O184: 146.000001 | P184: =IF($C$4, 'Option vs Time'!$A$6*S184-EXP(-1*'Option vs Time'!$A$3*O184)*'Option vs Time'!$A$9*T184,-1*'Option vs Time'!$A$6*S184+EXP(-1*'Option vs Time'!$A$3*O184)*'Option vs Time'!$A$9*T184) -> 99.41291423 | Q184: =(LN('Option vs Time'!$A$6/'Option vs Time'!$A$9)+('Option vs Time'!$A$3+0.5*'Option vs Time'!$A$15^2)*O184)/('Option vs Time'!$A$15*SQRT(O184)) -> 3.283398021 | R184: =Q184-'Option vs Time'!$A$15*SQRT(O184) -> 0.8667888182 | S184: 0.9994871813 | T184: 0.8069711351 | U184: 0.01991387468
D185: 147.000001 | E185: =IF($C$4, 'Other Graphs'!$A$6*H185-EXP(-1*'Other Graphs'!$A$3*D185)*'Other Graphs'!$A$9*I185,-1*'Other Graphs'!$A$6*H185+EXP(-1*'Other Graphs'!$A$3*D185)*'Other Graphs'!$A$9*I185) -> 109.4282401 | F185: =(LN('Other Graphs'!$A$6/'Other Graphs'!$A$9)+('Other Graphs'!$A$3+0.5*'Other Graphs'!$A$15^2)*D185)/('Other Graphs'!$A$15*SQRT(D185)) -> 3.334197816 | G185: =F185-'Other Graphs'!$A$15*SQRT(D185) -> 0.9093266771 | H185: 0.999572271 | I185: 0.8184111435 | J185: =(F185*SQRT(D185)+SQRT(F185^2*D185-2*D185*LN('Other Graphs'!$A$6/'Other Graphs'!$A$9)-2*Data!D185^2*'Other Graphs'!$A$3))/D185 -> 0.35 | K185: =(F185*SQRT(D185)-SQRT(F185^2*D185-2*D185*LN('Other Graphs'!$A$6/'Other Graphs'!$A$9)-2*Data!D185^2*'Other Graphs'!$A$3))/D185 -> 0.2 | O185: 147.000001 | P185: =IF($C$4, 'Option vs Time'!$A$6*S185-EXP(-1*'Option vs Time'!$A$3*O185)*'Option vs Time'!$A$9*T185,-1*'Option vs Time'!$A$6*S185+EXP(-1*'Option vs Time'!$A$3*O185)*'Option vs Time'!$A$9*T185) -> 99.43282811 | Q185: =(LN('Option vs Time'!$A$6/'Option vs Time'!$A$9)+('Option vs Time'!$A$3+0.5*'Option vs Time'!$A$15^2)*O185)/('Option vs Time'!$A$15*SQRT(O185)) -> 3.29489256 | R185: =Q185-'Option vs Time'!$A$15*SQRT(O185) -> 0.8700214215 | S185: 0.9995077034 | T185: 0.8078556512 | U185: 0.0192395714
D186: 148.000001 | E186: =IF($C$4, 'Other Graphs'!$A$6*H186-EXP(-1*'Other Graphs'!$A$3*D186)*'Other Graphs'!$A$9*I186,-1*'Other Graphs'!$A$6*H186+EXP(-1*'Other Graphs'!$A$3*D186)*'Other Graphs'!$A$9*I186) -> 109.4476631 | F186: =(LN('Other Graphs'!$A$6/'Other Graphs'!$A$9)+('Other Graphs'!$A$3+0.5*'Other Graphs'!$A$15^2)*D186)/('Other Graphs'!$A$15*SQRT(D186)) -> 3.345519403 | G186: =F186-'Other Graphs'!$A$15*SQRT(D186) -> 0.9124143826 | H186: 0.9995893569 | I186: 0.8192246894 | J186: =(F186*SQRT(D186)+SQRT(F186^2*D186-2*D186*LN('Other Graphs'!$A$6/'Other Graphs'!$A$9)-2*Data!D186^2*'Other Graphs'!$A$3))/D186 -> 0.35 | K186: =(F186*SQRT(D186)-SQRT(F186^2*D186-2*D186*LN('Other Graphs'!$A$6/'Other Graphs'!$A$9)-2*Data!D186^2*'Other Graphs'!$A$3))/D186 -> 0.2 | O186: 148.000001 | P186: =IF($C$4, 'Option vs Time'!$A$6*S186-EXP(-1*'Option vs Time'!$A$3*O186)*'Option vs Time'!$A$9*T186,-1*'Option vs Time'!$A$6*S186+EXP(-1*'Option vs Time'!$A$3*O186)*'Option vs Time'!$A$9*T186) -> 99.45206768 | Q186: =(LN('Option vs Time'!$A$6/'Option vs Time'!$A$9)+('Option vs Time'!$A$3+0.5*'Option vs Time'!$A$15^2)*O186)/('Option vs Time'!$A$15*SQRT(O186)) -> 3.30634716 | R186: =Q186-'Option vs Time'!$A$15*SQRT(O186) -> 0.8732421402 | S186: 0.9995273955 | T186: 0.8087344449 | U186: 0.01858805762
D187: 149.000001 | E187: =IF($C$4, 'Other Graphs'!$A$6*H187-EXP(-1*'Other Graphs'!$A$3*D187)*'Other Graphs'!$A$9*I187,-1*'Other Graphs'!$A$6*H187+EXP(-1*'Other Graphs'!$A$3*D187)*'Other Graphs'!$A$9*I187) -> 109.4664271 | F187: =(LN('Other Graphs'!$A$6/'Other Graphs'!$A$9)+('Other Graphs'!$A$3+0.5*'Other Graphs'!$A$15^2)*D187)/('Other Graphs'!$A$15*SQRT(D187)) -> 3.356802806 | G187: =F187-'Other Graphs'!$A$15*SQRT(D187) -> 0.9154916743 | H187: 0.9996057534 | I187: 0.8200332144 | J187: =(F187*SQRT(D187)+SQRT(F187^2*D187-2*D187*LN('Other Graphs'!$A$6/'Other Graphs'!$A$9)-2*Data!D187^2*'Other Graphs'!$A$3))/D187 -> 0.35 | K187: =(F187*SQRT(D187)-SQRT(F187^2*D187-2*D187*LN('Other Graphs'!$A$6/'Other Graphs'!$A$9)-2*Data!D187^2*'Other Graphs'!$A$3))/D187 -> 0.2 | O187: 149.000001 | P187: =IF($C$4, 'Option vs Time'!$A$6*S187-EXP(-1*'Option vs Time'!$A$3*O187)*'Option vs Time'!$A$9*T187,-1*'Option vs Time'!$A$6*S187+EXP(-1*'Option vs Time'!$A$3*O187)*'Option vs Time'!$A$9*T187) -> 99.47065573 | Q187: =(LN('Option vs Time'!$A$6/'Option vs Time'!$A$9)+('Option vs Time'!$A$3+0.5*'Option vs Time'!$A$15^2)*O187)/('Option vs Time'!$A$15*SQRT(O187)) -> 3.317762235 | R187: =Q187-'Option vs Time'!$A$15*SQRT(O187) -> 0.8764511036 | S187: 0.9995462915 | T187: 0.8096075765 | U187: 0.01795856462
D188: 150.000001 | E188: =IF($C$4, 'Other Graphs'!$A$6*H188-EXP(-1*'Other Graphs'!$A$3*D188)*'Other Graphs'!$A$9*I188,-1*'Other Graphs'!$A$6*H188+EXP(-1*'Other Graphs'!$A$3*D188)*'Other Graphs'!$A$9*I188) -> 109.4845546 | F188: =(LN('Other Graphs'!$A$6/'Other Graphs'!$A$9)+('Other Graphs'!$A$3+0.5*'Other Graphs'!$A$15^2)*D188)/('Other Graphs'!$A$15*SQRT(D188)) -> 3.368048408 | G188: =F188-'Other Graphs'!$A$15*SQRT(D188) -> 0.9185586566 | H188: 0.9996214885 | I188: 0.8208367674 | J188: =(F188*SQRT(D188)+SQRT(F188^2*D188-2*D188*LN('Other Graphs'!$A$6/'Other Graphs'!$A$9)-2*Data!D188^2*'Other Graphs'!$A$3))/D188 -> 0.35 | K188: =(F188*SQRT(D188)-SQRT(F188^2*D188-2*D188*LN('Other Graphs'!$A$6/'Other Graphs'!$A$9)-2*Data!D188^2*'Other Graphs'!$A$3))/D188 -> 0.2 | O188: 150.000001 | P188: =IF($C$4, 'Option vs Time'!$A$6*S188-EXP(-1*'Option vs Time'!$A$3*O188)*'Option vs Time'!$A$9*T188,-1*'Option vs Time'!$A$6*S188+EXP(-1*'Option vs Time'!$A$3*O188)*'Option vs Time'!$A$9*T188) -> 99.4886143 | Q188: =(LN('Option vs Time'!$A$6/'Option vs Time'!$A$9)+('Option vs Time'!$A$3+0.5*'Option vs Time'!$A$15^2)*O188)/('Option vs Time'!$A$15*SQRT(O188)) -> 3.32913819 | R188: =Q188-'Option vs Time'!$A$15*SQRT(O188) -> 0.8796484388 | S188: 0.9995644242 | T188: 0.8104751052 | U188: 0.01735034954
D189: 151.000001 | E189: =IF($C$4, 'Other Graphs'!$A$6*H189-EXP(-1*'Other Graphs'!$A$3*D189)*'Other Graphs'!$A$9*I189,-1*'Other Graphs'!$A$6*H189+EXP(-1*'Other Graphs'!$A$3*D189)*'Other Graphs'!$A$9*I189) -> 109.502067 | F189: =(LN('Other Graphs'!$A$6/'Other Graphs'!$A$9)+('Other Graphs'!$A$3+0.5*'Other Graphs'!$A$15^2)*D189)/('Other Graphs'!$A$15*SQRT(D189)) -> 3.379256586 | G189: =F189-'Other Graphs'!$A$15*SQRT(D189) -> 0.9216154326 | H189: 0.9996365893 | I189: 0.8216353971 | J189: =(F189*SQRT(D189)+SQRT(F189^2*D189-2*D189*LN('Other Graphs'!$A$6/'Other Graphs'!$A$9)-2*Data!D189^2*'Other Graphs'!$A$3))/D189 -> 0.35 | K189: =(F189*SQRT(D189)-SQRT(F189^2*D189-2*D189*LN('Other Graphs'!$A$6/'Other Graphs'!$A$9)-2*Data!D189^2*'Other Graphs'!$A$3))/D189 -> 0.2 | O189: 151.000001 | P189: =IF($C$4, 'Option vs Time'!$A$6*S189-EXP(-1*'Option vs Time'!$A$3*O189)*'Option vs Time'!$A$9*T189,-1*'Option vs Time'!$A$6*S189+EXP(-1*'Option vs Time'!$A$3*O189)*'Option vs Time'!$A$9*T189) -> 99.50596465 | Q189: =(LN('Option vs Time'!$A$6/'Option vs Time'!$A$9)+('Option vs Time'!$A$3+0.5*'Option vs Time'!$A$15^2)*O189)/('Option vs Time'!$A$15*SQRT(O189)) -> 3.340475424 | R189: =Q189-'Option vs Time'!$A$15*SQRT(O189) -> 0.8828342706 | S189: 0.9995818246 | T189: 0.8113370894 | U189: 0.01676269455
D190: 152.000001 | E190: =IF($C$4, 'Other Graphs'!$A$6*H190-EXP(-1*'Other Graphs'!$A$3*D190)*'Other Graphs'!$A$9*I190,-1*'Other Graphs'!$A$6*H190+EXP(-1*'Other Graphs'!$A$3*D190)*'Other Graphs'!$A$9*I190) -> 109.5189852 | F190: =(LN('Other Graphs'!$A$6/'Other Graphs'!$A$9)+('Other Graphs'!$A$3+0.5*'Other Graphs'!$A$15^2)*D190)/('Other Graphs'!$A$15*SQRT(D190)) -> 3.390427713 | G190: =F190-'Other Graphs'!$A$15*SQRT(D190) -> 0.9246621035 | H190: 0.9996510817 | I190: 0.8224291511 | J190: =(F190*SQRT(D190)+SQRT(F190^2*D190-2*D190*LN('Other Graphs'!$A$6/'Other Graphs'!$A$9)-2*Data!D190^2*'Other Graphs'!$A$3))/D190 -> 0.35 | K190: =(F190*SQRT(D190)-SQRT(F190^2*D190-2*D190*LN('Other Graphs'!$A$6/'Other Graphs'!$A$9)-2*Data!D190^2*'Other Graphs'!$A$3))/D190 -> 0.2 | O190: 152.000001 | P190: =IF($C$4, 'Option vs Time'!$A$6*S190-EXP(-1*'Option vs Time'!$A$3*O190)*'Option vs Time'!$A$9*T190,-1*'Option vs Time'!$A$6*S190+EXP(-1*'Option vs Time'!$A$3*O190)*'Option vs Time'!$A$9*T190) -> 99.52272734 | Q190: =(LN('Option vs Time'!$A$6/'Option vs Time'!$A$9)+('Option vs Time'!$A$3+0.5*'Option vs Time'!$A$15^2)*O190)/('Option vs Time'!$A$15*SQRT(O190)) -> 3.351774331 | R190: =Q190-'Option vs Time'!$A$15*SQRT(O190) -> 0.8860087216 | S190: 0.9995985228 | T190: 0.8121935863 | U190: 0.01619490599
D191: 153.000001 | E191: =IF($C$4, 'Other Graphs'!$A$6*H191-EXP(-1*'Other Graphs'!$A$3*D191)*'Other Graphs'!$A$9*I191,-1*'Other Graphs'!$A$6*H191+EXP(-1*'Other Graphs'!$A$3*D191)*'Other Graphs'!$A$9*I191) -> 109.5353294 | F191: =(LN('Other Graphs'!$A$6/'Other Graphs'!$A$9)+('Other Graphs'!$A$3+0.5*'Other Graphs'!$A$15^2)*D191)/('Other Graphs'!$A$15*SQRT(D191)) -> 3.401562152 | G191: =F191-'Other Graphs'!$A$15*SQRT(D191) -> 0.9276987688 | H191: 0.9996649905 | I191: 0.8232180763 | J191: =(F191*SQRT(D191)+SQRT(F191^2*D191-2*D191*LN('Other Graphs'!$A$6/'Other Graphs'!$A$9)-2*Data!D191^2*'Other Graphs'!$A$3))/D191 -> 0.35 | K191: =(F191*SQRT(D191)-SQRT(F191^2*D191-2*D191*LN('Other Graphs'!$A$6/'Other Graphs'!$A$9)-2*Data!D191^2*'Other Graphs'!$A$3))/D191 -> 0.2 | O191: 153.000001 | P191: =IF($C$4, 'Option vs Time'!$A$6*S191-EXP(-1*'Option vs Time'!$A$3*O191)*'Option vs Time'!$A$9*T191,-1*'Option vs Time'!$A$6*S191+EXP(-1*'Option vs Time'!$A$3*O191)*'Option vs Time'!$A$9*T191) -> 99.53892225 | Q191: =(LN('Option vs Time'!$A$6/'Option vs Time'!$A$9)+('Option vs Time'!$A$3+0.5*'Option vs Time'!$A$15^2)*O191)/('Option vs Time'!$A$15*SQRT(O191)) -> 3.363035296 | R191: =Q191-'Option vs Time'!$A$15*SQRT(O191) -> 0.8891719122 | S191: 0.9996145475 | T191: 0.8130446522 | U191: 0.01564631357
D192: 154.000001 | E192: =IF($C$4, 'Other Graphs'!$A$6*H192-EXP(-1*'Other Graphs'!$A$3*D192)*'Other Graphs'!$A$9*I192,-1*'Other Graphs'!$A$6*H192+EXP(-1*'Other Graphs'!$A$3*D192)*'Other Graphs'!$A$9*I192) -> 109.551119 | F192: =(LN('Other Graphs'!$A$6/'Other Graphs'!$A$9)+('Other Graphs'!$A$3+0.5*'Other Graphs'!$A$15^2)*D192)/('Other Graphs'!$A$15*SQRT(D192)) -> 3.412660264 | G192: =F192-'Other Graphs'!$A$15*SQRT(D192) -> 0.9307255265 | H192: 0.9996783396 | I192: 0.8240022191 | J192: =(F192*SQRT(D192)+SQRT(F192^2*D192-2*D192*LN('Other Graphs'!$A$6/'Other Graphs'!$A$9)-2*Data!D192^2*'Other Graphs'!$A$3))/D192 -> 0.35 | K192: =(F192*SQRT(D192)-SQRT(F192^2*D192-2*D192*LN('Other Graphs'!$A$6/'Other Graphs'!$A$9)-2*Data!D192^2*'Other Graphs'!$A$3))/D192 -> 0.2 | O192: 154.000001 | P192: =IF($C$4, 'Option vs Time'!$A$6*S192-EXP(-1*'Option vs Time'!$A$3*O192)*'Option vs Time'!$A$9*T192,-1*'Option vs Time'!$A$6*S192+EXP(-1*'Option vs Time'!$A$3*O192)*'Option vs Time'!$A$9*T192) -> 99.55456856 | Q192: =(LN('Option vs Time'!$A$6/'Option vs Time'!$A$9)+('Option vs Time'!$A$3+0.5*'Option vs Time'!$A$15^2)*O192)/('Option vs Time'!$A$15*SQRT(O192)) -> 3.374258698 | R192: =Q192-'Option vs Time'!$A$15*SQRT(O192) -> 0.8923239608 | S192: 0.9996299261 | T192: 0.8138903426 | U192: 0.01511626956
D193: 155.000001 | E193: =IF($C$4, 'Other Graphs'!$A$6*H193-EXP(-1*'Other Graphs'!$A$3*D193)*'Other Graphs'!$A$9*I193,-1*'Other Graphs'!$A$6*H193+EXP(-1*'Other Graphs'!$A$3*D193)*'Other Graphs'!$A$9*I193) -> 109.5663727 | F193: =(LN('Other Graphs'!$A$6/'Other Graphs'!$A$9)+('Other Graphs'!$A$3+0.5*'Other Graphs'!$A$15^2)*D193)/('Other Graphs'!$A$15*SQRT(D193)) -> 3.4237224 | G193: =F193-'Other Graphs'!$A$15*SQRT(D193) -> 0.9337424729 | H193: 0.9996911516 | I193: 0.8247816248 | J193: =(F193*SQRT(D193)+SQRT(F193^2*D193-2*D193*LN('Other Graphs'!$A$6/'Other Graphs'!$A$9)-2*Data!D193^2*'Other Graphs'!$A$3))/D193 -> 0.35 | K193: =(F193*SQRT(D193)-SQRT(F193^2*D193-2*D193*LN('Other Graphs'!$A$6/'Other Graphs'!$A$9)-2*Data!D193^2*'Other Graphs'!$A$3))/D193 -> 0.2 | O193: 155.000001 | P193: =IF($C$4, 'Option vs Time'!$A$6*S193-EXP(-1*'Option vs Time'!$A$3*O193)*'Option vs Time'!$A$9*T193,-1*'Option vs Time'!$A$6*S193+EXP(-1*'Option vs Time'!$A$3*O193)*'Option vs Time'!$A$9*T193) -> 99.56968483 | Q193: =(LN('Option vs Time'!$A$6/'Option vs Time'!$A$9)+('Option vs Time'!$A$3+0.5*'Option vs Time'!$A$15^2)*O193)/('Option vs Time'!$A$15*SQRT(O193)) -> 3.385444911 | R193: =Q193-'Option vs Time'!$A$15*SQRT(O193) -> 0.8954649837 | S193: 0.9996446851 | T193: 0.8147307119 | U193: 0.01460414807
D194: 156.000001 | E194: =IF($C$4, 'Other Graphs'!$A$6*H194-EXP(-1*'Other Graphs'!$A$3*D194)*'Other Graphs'!$A$9*I194,-1*'Other Graphs'!$A$6*H194+EXP(-1*'Other Graphs'!$A$3*D194)*'Other Graphs'!$A$9*I194) -> 109.5811089 | F194: =(LN('Other Graphs'!$A$6/'Other Graphs'!$A$9)+('Other Graphs'!$A$3+0.5*'Other Graphs'!$A$15^2)*D194)/('Other Graphs'!$A$15*SQRT(D194)) -> 3.43474891 | G194: =F194-'Other Graphs'!$A$15*SQRT(D194) -> 0.9367497028 | H194: 0.9997034484 | I194: 0.8255563384 | J194: =(F194*SQRT(D194)+SQRT(F194^2*D194-2*D194*LN('Other Graphs'!$A$6/'Other Graphs'!$A$9)-2*Data!D194^2*'Other Graphs'!$A$3))/D194 -> 0.35 | K194: =(F194*SQRT(D194)-SQRT(F194^2*D194-2*D194*LN('Other Graphs'!$A$6/'Other Graphs'!$A$9)-2*Data!D194^2*'Other Graphs'!$A$3))/D194 -> 0.2 | O194: 156.000001 | P194: =IF($C$4, 'Option vs Time'!$A$6*S194-EXP(-1*'Option vs Time'!$A$3*O194)*'Option vs Time'!$A$9*T194,-1*'Option vs Time'!$A$6*S194+EXP(-1*'Option vs Time'!$A$3*O194)*'Option vs Time'!$A$9*T194) -> 99.58428898 | Q194: =(LN('Option vs Time'!$A$6/'Option vs Time'!$A$9)+('Option vs Time'!$A$3+0.5*'Option vs Time'!$A$15^2)*O194)/('Option vs Time'!$A$15*SQRT(O194)) -> 3.396594302 | R194: =Q194-'Option vs Time'!$A$15*SQRT(O194) -> 0.8985950951 | S194: 0.9996588498 | T194: 0.8155658139 | U194: 0.01410934426
D195: 157.000001 | E195: =IF($C$4, 'Other Graphs'!$A$6*H195-EXP(-1*'Other Graphs'!$A$3*D195)*'Other Graphs'!$A$9*I195,-1*'Other Graphs'!$A$6*H195+EXP(-1*'Other Graphs'!$A$3*D195)*'Other Graphs'!$A$9*I195) -> 109.5953448 | F195: =(LN('Other Graphs'!$A$6/'Other Graphs'!$A$9)+('Other Graphs'!$A$3+0.5*'Other Graphs'!$A$15^2)*D195)/('Other Graphs'!$A$15*SQRT(D195)) -> 3.445740135 | G195: =F195-'Other Graphs'!$A$15*SQRT(D195) -> 0.9397473095 | H195: 0.9997152511 | I195: 0.8263264041 | J195: =(F195*SQRT(D195)+SQRT(F195^2*D195-2*D195*LN('Other Graphs'!$A$6/'Other Graphs'!$A$9)-2*Data!D195^2*'Other Graphs'!$A$3))/D195 -> 0.35 | K195: =(F195*SQRT(D195)-SQRT(F195^2*D195-2*D195*LN('Other Graphs'!$A$6/'Other Graphs'!$A$9)-2*Data!D195^2*'Other Graphs'!$A$3))/D195 -> 0.2 | O195: 157.000001 | P195: =IF($C$4, 'Option vs Time'!$A$6*S195-EXP(-1*'Option vs Time'!$A$3*O195)*'Option vs Time'!$A$9*T195,-1*'Option vs Time'!$A$6*S195+EXP(-1*'Option vs Time'!$A$3*O195)*'Option vs Time'!$A$9*T195) -> 99.59839832 | Q195: =(LN('Option vs Time'!$A$6/'Option vs Time'!$A$9)+('Option vs Time'!$A$3+0.5*'Option vs Time'!$A$15^2)*O195)/('Option vs Time'!$A$15*SQRT(O195)) -> 3.407707233 | R195: =Q195-'Option vs Time'!$A$15*SQRT(O195) -> 0.9017144073 | S195: 0.9996724443 | T195: 0.8163957012 | U195: 0.01363127369
D196: 158.000001 | E196: =IF($C$4, 'Other Graphs'!$A$6*H196-EXP(-1*'Other Graphs'!$A$3*D196)*'Other Graphs'!$A$9*I196,-1*'Other Graphs'!$A$6*H196+EXP(-1*'Other Graphs'!$A$3*D196)*'Other Graphs'!$A$9*I196) -> 109.6090977 | F196: =(LN('Other Graphs'!$A$6/'Other Graphs'!$A$9)+('Other Graphs'!$A$3+0.5*'Other Graphs'!$A$15^2)*D196)/('Other Graphs'!$A$15*SQRT(D196)) -> 3.456696411 | G196: =F196-'Other Graphs'!$A$15*SQRT(D196) -> 0.9427353847 | H196: 0.9997265797 | I196: 0.8270918653 | J196: =(F196*SQRT(D196)+SQRT(F196^2*D196-2*D196*LN('Other Graphs'!$A$6/'Other Graphs'!$A$9)-2*Data!D196^2*'Other Graphs'!$A$3))/D196 -> 0.35 | K196: =(F196*SQRT(D196)-SQRT(F196^2*D196-2*D196*LN('Other Graphs'!$A$6/'Other Graphs'!$A$9)-2*Data!D196^2*'Other Graphs'!$A$3))/D196 -> 0.2 | O196: 158.000001 | P196: =IF($C$4, 'Option vs Time'!$A$6*S196-EXP(-1*'Option vs Time'!$A$3*O196)*'Option vs Time'!$A$9*T196,-1*'Option vs Time'!$A$6*S196+EXP(-1*'Option vs Time'!$A$3*O196)*'Option vs Time'!$A$9*T196) -> 99.6120296 | Q196: =(LN('Option vs Time'!$A$6/'Option vs Time'!$A$9)+('Option vs Time'!$A$3+0.5*'Option vs Time'!$A$15^2)*O196)/('Option vs Time'!$A$15*SQRT(O196)) -> 3.418784057 | R196: =Q196-'Option vs Time'!$A$15*SQRT(O196) -> 0.904823031 | S196: 0.9996854919 | T196: 0.8172204258 | U196: 0.01316937159
D197: 159.000001 | E197: =IF($C$4, 'Other Graphs'!$A$6*H197-EXP(-1*'Other Graphs'!$A$3*D197)*'Other Graphs'!$A$9*I197,-1*'Other Graphs'!$A$6*H197+EXP(-1*'Other Graphs'!$A$3*D197)*'Other Graphs'!$A$9*I197) -> 109.6223837 | F197: =(LN('Other Graphs'!$A$6/'Other Graphs'!$A$9)+('Other Graphs'!$A$3+0.5*'Other Graphs'!$A$15^2)*D197)/('Other Graphs'!$A$15*SQRT(D197)) -> 3.467618069 | G197: =F197-'Other Graphs'!$A$15*SQRT(D197) -> 0.9457140189 | H197: 0.9997374535 | I197: 0.8278527649 | J197: =(F197*SQRT(D197)+SQRT(F197^2*D197-2*D197*LN('Other Graphs'!$A$6/'Other Graphs'!$A$9)-2*Data!D197^2*'Other Graphs'!$A$3))/D197 -> 0.35 | K197: =(F197*SQRT(D197)-SQRT(F197^2*D197-2*D197*LN('Other Graphs'!$A$6/'Other Graphs'!$A$9)-2*Data!D197^2*'Other Graphs'!$A$3))/D197 -> 0.2 | O197: 159.000001 | P197: =IF($C$4, 'Option vs Time'!$A$6*S197-EXP(-1*'Option vs Time'!$A$3*O197)*'Option vs Time'!$A$9*T197,-1*'Option vs Time'!$A$6*S197+EXP(-1*'Option vs Time'!$A$3*O197)*'Option vs Time'!$A$9*T197) -> 99.62519897 | Q197: =(LN('Option vs Time'!$A$6/'Option vs Time'!$A$9)+('Option vs Time'!$A$3+0.5*'Option vs Time'!$A$15^2)*O197)/('Option vs Time'!$A$15*SQRT(O197)) -> 3.429825125 | R197: =Q197-'Option vs Time'!$A$15*SQRT(O197) -> 0.9079210744 | S197: 0.9996980148 | T197: 0.8180400388 | U197: 0.01272309223
D198: 160.000001 | E198: =IF($C$4, 'Other Graphs'!$A$6*H198-EXP(-1*'Other Graphs'!$A$3*D198)*'Other Graphs'!$A$9*I198,-1*'Other Graphs'!$A$6*H198+EXP(-1*'Other Graphs'!$A$3*D198)*'Other Graphs'!$A$9*I198) -> 109.6352188 | F198: =(LN('Other Graphs'!$A$6/'Other Graphs'!$A$9)+('Other Graphs'!$A$3+0.5*'Other Graphs'!$A$15^2)*D198)/('Other Graphs'!$A$15*SQRT(D198)) -> 3.478505437 | G198: =F198-'Other Graphs'!$A$15*SQRT(D198) -> 0.948683301 | H198: 0.9997478909 | I198: 0.8286091452 | J198: =(F198*SQRT(D198)+SQRT(F198^2*D198-2*D198*LN('Other Graphs'!$A$6/'Other Graphs'!$A$9)-2*Data!D198^2*'Other Graphs'!$A$3))/D198 -> 0.35 | K198: =(F198*SQRT(D198)-SQRT(F198^2*D198-2*D198*LN('Other Graphs'!$A$6/'Other Graphs'!$A$9)-2*Data!D198^2*'Other Graphs'!$A$3))/D198 -> 0.2 | O198: 160.000001 | P198: =IF($C$4, 'Option vs Time'!$A$6*S198-EXP(-1*'Option vs Time'!$A$3*O198)*'Option vs Time'!$A$9*T198,-1*'Option vs Time'!$A$6*S198+EXP(-1*'Option vs Time'!$A$3*O198)*'Option vs Time'!$A$9*T198) -> 99.63792206 | Q198: =(LN('Option vs Time'!$A$6/'Option vs Time'!$A$9)+('Option vs Time'!$A$3+0.5*'Option vs Time'!$A$15^2)*O198)/('Option vs Time'!$A$15*SQRT(O198)) -> 3.440830781 | R198: =Q198-'Option vs Time'!$A$15*SQRT(O198) -> 0.9110086446 | S198: 0.9997100344 | T198: 0.8188545906 | U198: 0.01229190824
D199: 161.000001 | E199: =IF($C$4, 'Other Graphs'!$A$6*H199-EXP(-1*'Other Graphs'!$A$3*D199)*'Other Graphs'!$A$9*I199,-1*'Other Graphs'!$A$6*H199+EXP(-1*'Other Graphs'!$A$3*D199)*'Other Graphs'!$A$9*I199) -> 109.6476182 | F199: =(LN('Other Graphs'!$A$6/'Other Graphs'!$A$9)+('Other Graphs'!$A$3+0.5*'Other Graphs'!$A$15^2)*D199)/('Other Graphs'!$A$15*SQRT(D199)) -> 3.489358834 | G199: =F199-'Other Graphs'!$A$15*SQRT(D199) -> 0.9516433185 | H199: 0.9997579096 | I199: 0.8293610477 | J199: =(F199*SQRT(D199)+SQRT(F199^2*D199-2*D199*LN('Other Graphs'!$A$6/'Other Graphs'!$A$9)-2*Data!D199^2*'Other Graphs'!$A$3))/D199 -> 0.35 | K199: =(F199*SQRT(D199)-SQRT(F199^2*D199-2*D199*LN('Other Graphs'!$A$6/'Other Graphs'!$A$9)-2*Data!D199^2*'Other Graphs'!$A$3))/D199 -> 0.2 | O199: 161.000001 | P199: =IF($C$4, 'Option vs Time'!$A$6*S199-EXP(-1*'Option vs Time'!$A$3*O199)*'Option vs Time'!$A$9*T199,-1*'Option vs Time'!$A$6*S199+EXP(-1*'Option vs Time'!$A$3*O199)*'Option vs Time'!$A$9*T199) -> 99.65021397 | Q199: =(LN('Option vs Time'!$A$6/'Option vs Time'!$A$9)+('Option vs Time'!$A$3+0.5*'Option vs Time'!$A$15^2)*O199)/('Option vs Time'!$A$15*SQRT(O199)) -> 3.451801362 | R199: =Q199-'Option vs Time'!$A$15*SQRT(O199) -> 0.9140858463 | S199: 0.9997215712 | T199: 0.8196641305 | U199: 0.01187531004
D200: 162.000001 | E200: =IF($C$4, 'Other Graphs'!$A$6*H200-EXP(-1*'Other Graphs'!$A$3*D200)*'Other Graphs'!$A$9*I200,-1*'Other Graphs'!$A$6*H200+EXP(-1*'Other Graphs'!$A$3*D200)*'Other Graphs'!$A$9*I200) -> 109.6595967 | F200: =(LN('Other Graphs'!$A$6/'Other Graphs'!$A$9)+('Other Graphs'!$A$3+0.5*'Other Graphs'!$A$15^2)*D200)/('Other Graphs'!$A$15*SQRT(D200)) -> 3.500178578 | G200: =F200-'Other Graphs'!$A$15*SQRT(D200) -> 0.9545941575 | H200: 0.9997675267 | I200: 0.8301085136 | J200: =(F200*SQRT(D200)+SQRT(F200^2*D200-2*D200*LN('Other Graphs'!$A$6/'Other Graphs'!$A$9)-2*Data!D200^2*'Other Graphs'!$A$3))/D200 -> 0.35 | K200: =(F200*SQRT(D200)-SQRT(F200^2*D200-2*D200*LN('Other Graphs'!$A$6/'Other Graphs'!$A$9)-2*Data!D200^2*'Other Graphs'!$A$3))/D200 -> 0.2 | O200: 162.000001 | P200: =IF($C$4, 'Option vs Time'!$A$6*S200-EXP(-1*'Option vs Time'!$A$3*O200)*'Option vs Time'!$A$9*T200,-1*'Option vs Time'!$A$6*S200+EXP(-1*'Option vs Time'!$A$3*O200)*'Option vs Time'!$A$9*T200) -> 99.66208928 | Q200: =(LN('Option vs Time'!$A$6/'Option vs Time'!$A$9)+('Option vs Time'!$A$3+0.5*'Option vs Time'!$A$15^2)*O200)/('Option vs Time'!$A$15*SQRT(O200)) -> 3.462737203 | R200: =Q200-'Option vs Time'!$A$15*SQRT(O200) -> 0.917152783 | S200: 0.9997326448 | T200: 0.8204687074 | U200: 0.01147280522
D201: 163.000001 | E201: =IF($C$4, 'Other Graphs'!$A$6*H201-EXP(-1*'Other Graphs'!$A$3*D201)*'Other Graphs'!$A$9*I201,-1*'Other Graphs'!$A$6*H201+EXP(-1*'Other Graphs'!$A$3*D201)*'Other Graphs'!$A$9*I201) -> 109.6711685 | F201: =(LN('Other Graphs'!$A$6/'Other Graphs'!$A$9)+('Other Graphs'!$A$3+0.5*'Other Graphs'!$A$15^2)*D201)/('Other Graphs'!$A$15*SQRT(D201)) -> 3.510964978 | G201: =F201-'Other Graphs'!$A$15*SQRT(D201) -> 0.957535903 | H201: 0.9997767584 | I201: 0.8308515831 | J201: =(F201*SQRT(D201)+SQRT(F201^2*D201-2*D201*LN('Other Graphs'!$A$6/'Other Graphs'!$A$9)-2*Data!D201^2*'Other Graphs'!$A$3))/D201 -> 0.35 | K201: =(F201*SQRT(D201)-SQRT(F201^2*D201-2*D201*LN('Other Graphs'!$A$6/'Other Graphs'!$A$9)-2*Data!D201^2*'Other Graphs'!$A$3))/D201 -> 0.2 | O201: 163.000001 | P201: =IF($C$4, 'Option vs Time'!$A$6*S201-EXP(-1*'Option vs Time'!$A$3*O201)*'Option vs Time'!$A$9*T201,-1*'Option vs Time'!$A$6*S201+EXP(-1*'Option vs Time'!$A$3*O201)*'Option vs Time'!$A$9*T201) -> 99.67356209 | Q201: =(LN('Option vs Time'!$A$6/'Option vs Time'!$A$9)+('Option vs Time'!$A$3+0.5*'Option vs Time'!$A$15^2)*O201)/('Option vs Time'!$A$15*SQRT(O201)) -> 3.473638631 | R201: =Q201-'Option vs Time'!$A$15*SQRT(O201) -> 0.920209556 | S201: 0.999743274 | T201: 0.8212683692 | U201: 0.01108391793
... 244 more rows
